{"text_format":"3","workbook":"xlsx","n_sheets":12,"sheets":["JAAN","VEEBR","MÄRTS","APR","MAI","JUUNI","JUULI","AUG","SEPT","OKT","NOV","DETS"],"not_rendered":{"defined_names":40},"read":"whole","date_system":"1900"}

{"sheet":"JAAN","index":0,"n_rows":20,"n_cols":9,"rows_kept":20,"merged":[[16,2,17,2],[16,3,17,3],[17,4,19,8]]}
[null,"JAAN","P",{"$f":"UPPER(TEXT(D3,\"ddd\"))","v":"E"},"T","K","N","R","L"]
[null,{"$f":"YEAR(TODAY())","v":2018}]
[null,null,{"$f":"PäevadJaNädalad+DATE(Kalendriaasta,1,1)-WEEKDAY(DATE(Kalendriaasta,1,1),(NädalaAlgus=\"E\")+1)+1","v":"2017-12-31"},"2018-01-01","2018-01-02","2018-01-03","2018-01-04","2018-01-05","2018-01-06"]
[null,null,{"$f":"IF(DAY(Kalendripäev)=1,CONCATENATE(\"Nädal \",WEEKNUM(Kalendripäev),\"/Päev \",,Kalendripäev-DATE(YEAR(Kalendripäev),1,0)),CONCATENATE(\"Päev \",Kalendripäev-DATE(YEAR(Kalendripäev),1,0)))","v":"Päev 365"},{"$f":"IF(DAY(Kalendripäev)=1,CONCATENATE(\"Nädal \",WEEKNUM(Kalendripäev),\"/Päev \",,Kalendripäev-DATE(YEAR(Kalendripäev),1,0)),CONCATENATE(\"Päev \",Kalendripäev-DATE(YEAR(Kalendripäev),1,0)))","v":"Nädal 1/Päev 1"},{"$f":"IF(DAY(Kalendripäev)=1,CONCATENATE(\"Nädal \",WEEKNUM(Kalendripäev),\"/Päev \",,Kalendripäev-DATE(YEAR(Kalendripäev),1,0)),CONCATENATE(\"Päev \",Kalendripäev-DATE(YEAR(Kalendripäev),1,0)))","v":"Päev 2"},{"$f":"IF(DAY(Kalendripäev)=1,CONCATENATE(\"Nädal \",WEEKNUM(Kalendripäev),\"/Päev \",,Kalendripäev-DATE(YEAR(Kalendripäev),1,0)),CONCATENATE(\"Päev \",Kalendripäev-DATE(YEAR(Kalendripäev),1,0)))","v":"Päev 3"},{"$f":"IF(DAY(Kalendripäev)=1,CONCATENATE(\"Nädal \",WEEKNUM(Kalendripäev),\"/Päev \",,Kalendripäev-DATE(YEAR(Kalendripäev),1,0)),CONCATENATE(\"Päev \",Kalendripäev-DATE(YEAR(Kalendripäev),1,0)))","v":"Päev 4"},{"$f":"IF(DAY(Kalendripäev)=1,CONCATENATE(\"Nädal \",WEEKNUM(Kalendripäev),\"/Päev \",,Kalendripäev-DATE(YEAR(Kalendripäev),1,0)),CONCATENATE(\"Päev \",Kalendripäev-DATE(YEAR(Kalendripäev),1,0)))","v":"Päev 5"},{"$f":"IF(DAY(Kalendripäev)=1,CONCATENATE(\"Nädal \",WEEKNUM(Kalendripäev),\"/Päev \",,Kalendripäev-DATE(YEAR(Kalendripäev),1,0)),CONCATENATE(\"Päev \",Kalendripäev-DATE(YEAR(Kalendripäev),1,0)))","v":"Päev 6"}]
[]
[null,null,{"$f":"PäevadJaNädalad+DATE(Kalendriaasta,1,1)-WEEKDAY(DATE(Kalendriaasta,1,1),(NädalaAlgus=\"E\")+1)+8","v":"2018-01-07"},"2018-01-08","2018-01-09","2018-01-10","2018-01-11","2018-01-12","2018-01-13"]
[null,null,{"$f":"IF(WEEKDAY(Kalendripäev)=NädalaAlguseVäärtus,CONCATENATE(\"Nädal \",WEEKNUM(Kalendripäev),\"/Päev \",,Kalendripäev-DATE(YEAR(Kalendripäev),1,0)),CONCATENATE(\"Päev \",Kalendripäev-DATE(YEAR(Kalendripäev),1,0)))","v":"Nädal 2/Päev 7"},{"$f":"IF(WEEKDAY(Kalendripäev)=NädalaAlguseVäärtus,CONCATENATE(\"Nädal \",WEEKNUM(Kalendripäev),\"/Päev \",,Kalendripäev-DATE(YEAR(Kalendripäev),1,0)),CONCATENATE(\"Päev \",Kalendripäev-DATE(YEAR(Kalendripäev),1,0)))","v":"Päev 8"},{"$f":"IF(WEEKDAY(Kalendripäev)=NädalaAlguseVäärtus,CONCATENATE(\"Nädal \",WEEKNUM(Kalendripäev),\"/Päev \",,Kalendripäev-DATE(YEAR(Kalendripäev),1,0)),CONCATENATE(\"Päev \",Kalendripäev-DATE(YEAR(Kalendripäev),1,0)))","v":"Päev 9"},{"$f":"IF(WEEKDAY(Kalendripäev)=NädalaAlguseVäärtus,CONCATENATE(\"Nädal \",WEEKNUM(Kalendripäev),\"/Päev \",,Kalendripäev-DATE(YEAR(Kalendripäev),1,0)),CONCATENATE(\"Päev \",Kalendripäev-DATE(YEAR(Kalendripäev),1,0)))","v":"Päev 10"},{"$f":"IF(WEEKDAY(Kalendripäev)=NädalaAlguseVäärtus,CONCATENATE(\"Nädal \",WEEKNUM(Kalendripäev),\"/Päev \",,Kalendripäev-DATE(YEAR(Kalendripäev),1,0)),CONCATENATE(\"Päev \",Kalendripäev-DATE(YEAR(Kalendripäev),1,0)))","v":"Päev 11"},{"$f":"IF(WEEKDAY(Kalendripäev)=NädalaAlguseVäärtus,CONCATENATE(\"Nädal \",WEEKNUM(Kalendripäev),\"/Päev \",,Kalendripäev-DATE(YEAR(Kalendripäev),1,0)),CONCATENATE(\"Päev \",Kalendripäev-DATE(YEAR(Kalendripäev),1,0)))","v":"Päev 12"},{"$f":"IF(WEEKDAY(Kalendripäev)=NädalaAlguseVäärtus,CONCATENATE(\"Nädal \",WEEKNUM(Kalendripäev),\"/Päev \",,Kalendripäev-DATE(YEAR(Kalendripäev),1,0)),CONCATENATE(\"Päev \",Kalendripäev-DATE(YEAR(Kalendripäev),1,0)))","v":"Päev 13"}]
[]
[null,null,{"$f":"PäevadJaNädalad+DATE(Kalendriaasta,1,1)-WEEKDAY(DATE(Kalendriaasta,1,1),(NädalaAlgus=\"E\")+1)+15","v":"2018-01-14"},"2018-01-15","2018-01-16","2018-01-17","2018-01-18","2018-01-19","2018-01-20"]
[null,null,{"$f":"IF(WEEKDAY(Kalendripäev)=NädalaAlguseVäärtus,CONCATENATE(\"Nädal \",WEEKNUM(Kalendripäev),\"/Päev \",,Kalendripäev-DATE(YEAR(Kalendripäev),1,0)),CONCATENATE(\"Päev \",Kalendripäev-DATE(YEAR(Kalendripäev),1,0)))","v":"Nädal 3/Päev 14"},{"$f":"IF(WEEKDAY(Kalendripäev)=NädalaAlguseVäärtus,CONCATENATE(\"Nädal \",WEEKNUM(Kalendripäev),\"/Päev \",,Kalendripäev-DATE(YEAR(Kalendripäev),1,0)),CONCATENATE(\"Päev \",Kalendripäev-DATE(YEAR(Kalendripäev),1,0)))","v":"Päev 15"},{"$f":"IF(WEEKDAY(Kalendripäev)=NädalaAlguseVäärtus,CONCATENATE(\"Nädal \",WEEKNUM(Kalendripäev),\"/Päev \",,Kalendripäev-DATE(YEAR(Kalendripäev),1,0)),CONCATENATE(\"Päev \",Kalendripäev-DATE(YEAR(Kalendripäev),1,0)))","v":"Päev 16"},{"$f":"IF(WEEKDAY(Kalendripäev)=NädalaAlguseVäärtus,CONCATENATE(\"Nädal \",WEEKNUM(Kalendripäev),\"/Päev \",,Kalendripäev-DATE(YEAR(Kalendripäev),1,0)),CONCATENATE(\"Päev \",Kalendripäev-DATE(YEAR(Kalendripäev),1,0)))","v":"Päev 17"},{"$f":"IF(WEEKDAY(Kalendripäev)=NädalaAlguseVäärtus,CONCATENATE(\"Nädal \",WEEKNUM(Kalendripäev),\"/Päev \",,Kalendripäev-DATE(YEAR(Kalendripäev),1,0)),CONCATENATE(\"Päev \",Kalendripäev-DATE(YEAR(Kalendripäev),1,0)))","v":"Päev 18"},{"$f":"IF(WEEKDAY(Kalendripäev)=NädalaAlguseVäärtus,CONCATENATE(\"Nädal \",WEEKNUM(Kalendripäev),\"/Päev \",,Kalendripäev-DATE(YEAR(Kalendripäev),1,0)),CONCATENATE(\"Päev \",Kalendripäev-DATE(YEAR(Kalendripäev),1,0)))","v":"Päev 19"},{"$f":"IF(WEEKDAY(Kalendripäev)=NädalaAlguseVäärtus,CONCATENATE(\"Nädal \",WEEKNUM(Kalendripäev),\"/Päev \",,Kalendripäev-DATE(YEAR(Kalendripäev),1,0)),CONCATENATE(\"Päev \",Kalendripäev-DATE(YEAR(Kalendripäev),1,0)))","v":"Päev 20"}]
[]
[null,null,{"$f":"PäevadJaNädalad+DATE(Kalendriaasta,1,1)-WEEKDAY(DATE(Kalendriaasta,1,1),(NädalaAlgus=\"E\")+1)+22","v":"2018-01-21"},"2018-01-22","2018-01-23","2018-01-24","2018-01-25","2018-01-26","2018-01-27"]
[null,null,{"$f":"IF(WEEKDAY(Kalendripäev)=NädalaAlguseVäärtus,CONCATENATE(\"Nädal \",WEEKNUM(Kalendripäev),\"/Päev \",,Kalendripäev-DATE(YEAR(Kalendripäev),1,0)),CONCATENATE(\"Päev \",Kalendripäev-DATE(YEAR(Kalendripäev),1,0)))","v":"Nädal 4/Päev 21"},{"$f":"IF(WEEKDAY(Kalendripäev)=NädalaAlguseVäärtus,CONCATENATE(\"Nädal \",WEEKNUM(Kalendripäev),\"/Päev \",,Kalendripäev-DATE(YEAR(Kalendripäev),1,0)),CONCATENATE(\"Päev \",Kalendripäev-DATE(YEAR(Kalendripäev),1,0)))","v":"Päev 22"},{"$f":"IF(WEEKDAY(Kalendripäev)=NädalaAlguseVäärtus,CONCATENATE(\"Nädal \",WEEKNUM(Kalendripäev),\"/Päev \",,Kalendripäev-DATE(YEAR(Kalendripäev),1,0)),CONCATENATE(\"Päev \",Kalendripäev-DATE(YEAR(Kalendripäev),1,0)))","v":"Päev 23"},{"$f":"IF(WEEKDAY(Kalendripäev)=NädalaAlguseVäärtus,CONCATENATE(\"Nädal \",WEEKNUM(Kalendripäev),\"/Päev \",,Kalendripäev-DATE(YEAR(Kalendripäev),1,0)),CONCATENATE(\"Päev \",Kalendripäev-DATE(YEAR(Kalendripäev),1,0)))","v":"Päev 24"},{"$f":"IF(WEEKDAY(Kalendripäev)=NädalaAlguseVäärtus,CONCATENATE(\"Nädal \",WEEKNUM(Kalendripäev),\"/Päev \",,Kalendripäev-DATE(YEAR(Kalendripäev),1,0)),CONCATENATE(\"Päev \",Kalendripäev-DATE(YEAR(Kalendripäev),1,0)))","v":"Päev 25"},{"$f":"IF(WEEKDAY(Kalendripäev)=NädalaAlguseVäärtus,CONCATENATE(\"Nädal \",WEEKNUM(Kalendripäev),\"/Päev \",,Kalendripäev-DATE(YEAR(Kalendripäev),1,0)),CONCATENATE(\"Päev \",Kalendripäev-DATE(YEAR(Kalendripäev),1,0)))","v":"Päev 26"},{"$f":"IF(WEEKDAY(Kalendripäev)=NädalaAlguseVäärtus,CONCATENATE(\"Nädal \",WEEKNUM(Kalendripäev),\"/Päev \",,Kalendripäev-DATE(YEAR(Kalendripäev),1,0)),CONCATENATE(\"Päev \",Kalendripäev-DATE(YEAR(Kalendripäev),1,0)))","v":"Päev 27"}]
[]
[null,null,{"$f":"PäevadJaNädalad+DATE(Kalendriaasta,1,1)-WEEKDAY(DATE(Kalendriaasta,1,1),(NädalaAlgus=\"E\")+1)+29","v":"2018-01-28"},"2018-01-29","2018-01-30","2018-01-31","2018-02-01","2018-02-02","2018-02-03"]
[null,null,{"$f":"IF(WEEKDAY(Kalendripäev)=NädalaAlguseVäärtus,CONCATENATE(\"Nädal \",WEEKNUM(Kalendripäev),\"/Päev \",,Kalendripäev-DATE(YEAR(Kalendripäev),1,0)),CONCATENATE(\"Päev \",Kalendripäev-DATE(YEAR(Kalendripäev),1,0)))","v":"Nädal 5/Päev 28"},{"$f":"IF(WEEKDAY(Kalendripäev)=NädalaAlguseVäärtus,CONCATENATE(\"Nädal \",WEEKNUM(Kalendripäev),\"/Päev \",,Kalendripäev-DATE(YEAR(Kalendripäev),1,0)),CONCATENATE(\"Päev \",Kalendripäev-DATE(YEAR(Kalendripäev),1,0)))","v":"Päev 29"},{"$f":"IF(WEEKDAY(Kalendripäev)=NädalaAlguseVäärtus,CONCATENATE(\"Nädal \",WEEKNUM(Kalendripäev),\"/Päev \",,Kalendripäev-DATE(YEAR(Kalendripäev),1,0)),CONCATENATE(\"Päev \",Kalendripäev-DATE(YEAR(Kalendripäev),1,0)))","v":"Päev 30"},{"$f":"IF(WEEKDAY(Kalendripäev)=NädalaAlguseVäärtus,CONCATENATE(\"Nädal \",WEEKNUM(Kalendripäev),\"/Päev \",,Kalendripäev-DATE(YEAR(Kalendripäev),1,0)),CONCATENATE(\"Päev \",Kalendripäev-DATE(YEAR(Kalendripäev),1,0)))","v":"Päev 31"},{"$f":"IF(WEEKDAY(Kalendripäev)=NädalaAlguseVäärtus,CONCATENATE(\"Nädal \",WEEKNUM(Kalendripäev),\"/Päev \",,Kalendripäev-DATE(YEAR(Kalendripäev),1,0)),CONCATENATE(\"Päev \",Kalendripäev-DATE(YEAR(Kalendripäev),1,0)))","v":"Päev 32"},{"$f":"IF(WEEKDAY(Kalendripäev)=NädalaAlguseVäärtus,CONCATENATE(\"Nädal \",WEEKNUM(Kalendripäev),\"/Päev \",,Kalendripäev-DATE(YEAR(Kalendripäev),1,0)),CONCATENATE(\"Päev \",Kalendripäev-DATE(YEAR(Kalendripäev),1,0)))","v":"Päev 33"},{"$f":"IF(WEEKDAY(Kalendripäev)=NädalaAlguseVäärtus,CONCATENATE(\"Nädal \",WEEKNUM(Kalendripäev),\"/Päev \",,Kalendripäev-DATE(YEAR(Kalendripäev),1,0)),CONCATENATE(\"Päev \",Kalendripäev-DATE(YEAR(Kalendripäev),1,0)))","v":"Päev 34"}]
[{"$nulls":4},"MÄRKMED"]
[]
[null,null,{"$f":"PäevadJaNädalad+DATE(Kalendriaasta,1,1)-WEEKDAY(DATE(Kalendriaasta,1,1),(NädalaAlgus=\"E\")+1)+36","v":"2018-02-04"},"2018-02-05"]
[null,null,{"$f":"IF(WEEKDAY(Kalendripäev)=NädalaAlguseVäärtus,CONCATENATE(\"Nädal \",WEEKNUM(Kalendripäev),\"/Päev \",,Kalendripäev-DATE(YEAR(Kalendripäev),1,0)),CONCATENATE(\"Päev \",Kalendripäev-DATE(YEAR(Kalendripäev),1,0)))","v":"Nädal 6/Päev 35"},{"$f":"IF(WEEKDAY(Kalendripäev)=NädalaAlguseVäärtus,CONCATENATE(\"Nädal \",WEEKNUM(Kalendripäev),\"/Päev \",,Kalendripäev-DATE(YEAR(Kalendripäev),1,0)),CONCATENATE(\"Päev \",Kalendripäev-DATE(YEAR(Kalendripäev),1,0)))","v":"Päev 36"}]

{"sheet":"VEEBR","index":1,"n_rows":20,"n_cols":9,"rows_kept":20,"merged":[[16,2,17,2],[17,4,19,8]]}
[null,"VEEBR",{"$f":"UPPER(TEXT(NädalaAlgus,\"ddd\"))","v":"P"},{"$f":"UPPER(TEXT(D3,\"ddd\"))","v":"E"},"T","K","N","R","L"]
[null,{"$f":"Kalendriaasta","v":2018}]
[null,null,{"$f":"PäevadJaNädalad+DATE(Kalendriaasta,2,1)-WEEKDAY(DATE(Kalendriaasta,2,1),(NädalaAlgus=\"E\")+1)+1","v":"2018-01-28"},"2018-01-29","2018-01-30","2018-01-31","2018-02-01","2018-02-02","2018-02-03"]
[null,null,{"$f":"IF(DAY(Kalendripäev)=1,CONCATENATE(\"Nädal \",WEEKNUM(Kalendripäev),\"/Päev \",,Kalendripäev-DATE(YEAR(Kalendripäev),1,0)),CONCATENATE(\"Päev \",Kalendripäev-DATE(YEAR(Kalendripäev),1,0)))","v":"Päev 28"},{"$f":"IF(DAY(Kalendripäev)=1,CONCATENATE(\"Nädal \",WEEKNUM(Kalendripäev),\"/Päev \",,Kalendripäev-DATE(YEAR(Kalendripäev),1,0)),CONCATENATE(\"Päev \",Kalendripäev-DATE(YEAR(Kalendripäev),1,0)))","v":"Päev 29"},{"$f":"IF(DAY(Kalendripäev)=1,CONCATENATE(\"Nädal \",WEEKNUM(Kalendripäev),\"/Päev \",,Kalendripäev-DATE(YEAR(Kalendripäev),1,0)),CONCATENATE(\"Päev \",Kalendripäev-DATE(YEAR(Kalendripäev),1,0)))","v":"Päev 30"},{"$f":"IF(DAY(Kalendripäev)=1,CONCATENATE(\"Nädal \",WEEKNUM(Kalendripäev),\"/Päev \",,Kalendripäev-DATE(YEAR(Kalendripäev),1,0)),CONCATENATE(\"Päev \",Kalendripäev-DATE(YEAR(Kalendripäev),1,0)))","v":"Päev 31"},{"$f":"IF(DAY(Kalendripäev)=1,CONCATENATE(\"Nädal \",WEEKNUM(Kalendripäev),\"/Päev \",,Kalendripäev-DATE(YEAR(Kalendripäev),1,0)),CONCATENATE(\"Päev \",Kalendripäev-DATE(YEAR(Kalendripäev),1,0)))","v":"Nädal 5/Päev 32"},{"$f":"IF(DAY(Kalendripäev)=1,CONCATENATE(\"Nädal \",WEEKNUM(Kalendripäev),\"/Päev \",,Kalendripäev-DATE(YEAR(Kalendripäev),1,0)),CONCATENATE(\"Päev \",Kalendripäev-DATE(YEAR(Kalendripäev),1,0)))","v":"Päev 33"},{"$f":"IF(DAY(Kalendripäev)=1,CONCATENATE(\"Nädal \",WEEKNUM(Kalendripäev),\"/Päev \",,Kalendripäev-DATE(YEAR(Kalendripäev),1,0)),CONCATENATE(\"Päev \",Kalendripäev-DATE(YEAR(Kalendripäev),1,0)))","v":"Päev 34"}]
[]
[null,null,{"$f":"PäevadJaNädalad+DATE(Kalendriaasta,2,1)-WEEKDAY(DATE(Kalendriaasta,2,1),(NädalaAlgus=\"E\")+1)+8","v":"2018-02-04"},"2018-02-05","2018-02-06","2018-02-07","2018-02-08","2018-02-09","2018-02-10"]
[null,null,{"$f":"IF(WEEKDAY(Kalendripäev)=NädalaAlguseVäärtus,CONCATENATE(\"Nädal \",WEEKNUM(Kalendripäev),\"/Päev \",,Kalendripäev-DATE(YEAR(Kalendripäev),1,0)),CONCATENATE(\"Päev \",Kalendripäev-DATE(YEAR(Kalendripäev),1,0)))","v":"Nädal 6/Päev 35"},{"$f":"IF(WEEKDAY(Kalendripäev)=NädalaAlguseVäärtus,CONCATENATE(\"Nädal \",WEEKNUM(Kalendripäev),\"/Päev \",,Kalendripäev-DATE(YEAR(Kalendripäev),1,0)),CONCATENATE(\"Päev \",Kalendripäev-DATE(YEAR(Kalendripäev),1,0)))","v":"Päev 36"},{"$f":"IF(WEEKDAY(Kalendripäev)=NädalaAlguseVäärtus,CONCATENATE(\"Nädal \",WEEKNUM(Kalendripäev),\"/Päev \",,Kalendripäev-DATE(YEAR(Kalendripäev),1,0)),CONCATENATE(\"Päev \",Kalendripäev-DATE(YEAR(Kalendripäev),1,0)))","v":"Päev 37"},{"$f":"IF(WEEKDAY(Kalendripäev)=NädalaAlguseVäärtus,CONCATENATE(\"Nädal \",WEEKNUM(Kalendripäev),\"/Päev \",,Kalendripäev-DATE(YEAR(Kalendripäev),1,0)),CONCATENATE(\"Päev \",Kalendripäev-DATE(YEAR(Kalendripäev),1,0)))","v":"Päev 38"},{"$f":"IF(WEEKDAY(Kalendripäev)=NädalaAlguseVäärtus,CONCATENATE(\"Nädal \",WEEKNUM(Kalendripäev),\"/Päev \",,Kalendripäev-DATE(YEAR(Kalendripäev),1,0)),CONCATENATE(\"Päev \",Kalendripäev-DATE(YEAR(Kalendripäev),1,0)))","v":"Päev 39"},{"$f":"IF(WEEKDAY(Kalendripäev)=NädalaAlguseVäärtus,CONCATENATE(\"Nädal \",WEEKNUM(Kalendripäev),\"/Päev \",,Kalendripäev-DATE(YEAR(Kalendripäev),1,0)),CONCATENATE(\"Päev \",Kalendripäev-DATE(YEAR(Kalendripäev),1,0)))","v":"Päev 40"},{"$f":"IF(WEEKDAY(Kalendripäev)=NädalaAlguseVäärtus,CONCATENATE(\"Nädal \",WEEKNUM(Kalendripäev),\"/Päev \",,Kalendripäev-DATE(YEAR(Kalendripäev),1,0)),CONCATENATE(\"Päev \",Kalendripäev-DATE(YEAR(Kalendripäev),1,0)))","v":"Päev 41"}]
[]
[null,null,{"$f":"PäevadJaNädalad+DATE(Kalendriaasta,2,1)-WEEKDAY(DATE(Kalendriaasta,2,1),(NädalaAlgus=\"E\")+1)+15","v":"2018-02-11"},"2018-02-12","2018-02-13","2018-02-14","2018-02-15","2018-02-16","2018-02-17"]
[null,null,{"$f":"IF(WEEKDAY(Kalendripäev)=NädalaAlguseVäärtus,CONCATENATE(\"Nädal \",WEEKNUM(Kalendripäev),\"/Päev \",,Kalendripäev-DATE(YEAR(Kalendripäev),1,0)),CONCATENATE(\"Päev \",Kalendripäev-DATE(YEAR(Kalendripäev),1,0)))","v":"Nädal 7/Päev 42"},{"$f":"IF(WEEKDAY(Kalendripäev)=NädalaAlguseVäärtus,CONCATENATE(\"Nädal \",WEEKNUM(Kalendripäev),\"/Päev \",,Kalendripäev-DATE(YEAR(Kalendripäev),1,0)),CONCATENATE(\"Päev \",Kalendripäev-DATE(YEAR(Kalendripäev),1,0)))","v":"Päev 43"},{"$f":"IF(WEEKDAY(Kalendripäev)=NädalaAlguseVäärtus,CONCATENATE(\"Nädal \",WEEKNUM(Kalendripäev),\"/Päev \",,Kalendripäev-DATE(YEAR(Kalendripäev),1,0)),CONCATENATE(\"Päev \",Kalendripäev-DATE(YEAR(Kalendripäev),1,0)))","v":"Päev 44"},{"$f":"IF(WEEKDAY(Kalendripäev)=NädalaAlguseVäärtus,CONCATENATE(\"Nädal \",WEEKNUM(Kalendripäev),\"/Päev \",,Kalendripäev-DATE(YEAR(Kalendripäev),1,0)),CONCATENATE(\"Päev \",Kalendripäev-DATE(YEAR(Kalendripäev),1,0)))","v":"Päev 45"},{"$f":"IF(WEEKDAY(Kalendripäev)=NädalaAlguseVäärtus,CONCATENATE(\"Nädal \",WEEKNUM(Kalendripäev),\"/Päev \",,Kalendripäev-DATE(YEAR(Kalendripäev),1,0)),CONCATENATE(\"Päev \",Kalendripäev-DATE(YEAR(Kalendripäev),1,0)))","v":"Päev 46"},{"$f":"IF(WEEKDAY(Kalendripäev)=NädalaAlguseVäärtus,CONCATENATE(\"Nädal \",WEEKNUM(Kalendripäev),\"/Päev \",,Kalendripäev-DATE(YEAR(Kalendripäev),1,0)),CONCATENATE(\"Päev \",Kalendripäev-DATE(YEAR(Kalendripäev),1,0)))","v":"Päev 47"},{"$f":"IF(WEEKDAY(Kalendripäev)=NädalaAlguseVäärtus,CONCATENATE(\"Nädal \",WEEKNUM(Kalendripäev),\"/Päev \",,Kalendripäev-DATE(YEAR(Kalendripäev),1,0)),CONCATENATE(\"Päev \",Kalendripäev-DATE(YEAR(Kalendripäev),1,0)))","v":"Päev 48"}]
[]
[null,null,{"$f":"PäevadJaNädalad+DATE(Kalendriaasta,2,1)-WEEKDAY(DATE(Kalendriaasta,2,1),(NädalaAlgus=\"E\")+1)+22","v":"2018-02-18"},"2018-02-19","2018-02-20","2018-02-21","2018-02-22","2018-02-23","2018-02-24"]
[null,null,{"$f":"IF(WEEKDAY(Kalendripäev)=NädalaAlguseVäärtus,CONCATENATE(\"Nädal \",WEEKNUM(Kalendripäev),\"/Päev \",,Kalendripäev-DATE(YEAR(Kalendripäev),1,0)),CONCATENATE(\"Päev \",Kalendripäev-DATE(YEAR(Kalendripäev),1,0)))","v":"Nädal 8/Päev 49"},{"$f":"IF(WEEKDAY(Kalendripäev)=NädalaAlguseVäärtus,CONCATENATE(\"Nädal \",WEEKNUM(Kalendripäev),\"/Päev \",,Kalendripäev-DATE(YEAR(Kalendripäev),1,0)),CONCATENATE(\"Päev \",Kalendripäev-DATE(YEAR(Kalendripäev),1,0)))","v":"Päev 50"},{"$f":"IF(WEEKDAY(Kalendripäev)=NädalaAlguseVäärtus,CONCATENATE(\"Nädal \",WEEKNUM(Kalendripäev),\"/Päev \",,Kalendripäev-DATE(YEAR(Kalendripäev),1,0)),CONCATENATE(\"Päev \",Kalendripäev-DATE(YEAR(Kalendripäev),1,0)))","v":"Päev 51"},{"$f":"IF(WEEKDAY(Kalendripäev)=NädalaAlguseVäärtus,CONCATENATE(\"Nädal \",WEEKNUM(Kalendripäev),\"/Päev \",,Kalendripäev-DATE(YEAR(Kalendripäev),1,0)),CONCATENATE(\"Päev \",Kalendripäev-DATE(YEAR(Kalendripäev),1,0)))","v":"Päev 52"},{"$f":"IF(WEEKDAY(Kalendripäev)=NädalaAlguseVäärtus,CONCATENATE(\"Nädal \",WEEKNUM(Kalendripäev),\"/Päev \",,Kalendripäev-DATE(YEAR(Kalendripäev),1,0)),CONCATENATE(\"Päev \",Kalendripäev-DATE(YEAR(Kalendripäev),1,0)))","v":"Päev 53"},{"$f":"IF(WEEKDAY(Kalendripäev)=NädalaAlguseVäärtus,CONCATENATE(\"Nädal \",WEEKNUM(Kalendripäev),\"/Päev \",,Kalendripäev-DATE(YEAR(Kalendripäev),1,0)),CONCATENATE(\"Päev \",Kalendripäev-DATE(YEAR(Kalendripäev),1,0)))","v":"Päev 54"},{"$f":"IF(WEEKDAY(Kalendripäev)=NädalaAlguseVäärtus,CONCATENATE(\"Nädal \",WEEKNUM(Kalendripäev),\"/Päev \",,Kalendripäev-DATE(YEAR(Kalendripäev),1,0)),CONCATENATE(\"Päev \",Kalendripäev-DATE(YEAR(Kalendripäev),1,0)))","v":"Päev 55"}]
[]
[null,null,{"$f":"PäevadJaNädalad+DATE(Kalendriaasta,2,1)-WEEKDAY(DATE(Kalendriaasta,2,1),(NädalaAlgus=\"E\")+1)+29","v":"2018-02-25"},"2018-02-26","2018-02-27","2018-02-28","2018-03-01","2018-03-02","2018-03-03"]
[null,null,{"$f":"IF(WEEKDAY(Kalendripäev)=NädalaAlguseVäärtus,CONCATENATE(\"Nädal \",WEEKNUM(Kalendripäev),\"/Päev \",,Kalendripäev-DATE(YEAR(Kalendripäev),1,0)),CONCATENATE(\"Päev \",Kalendripäev-DATE(YEAR(Kalendripäev),1,0)))","v":"Nädal 9/Päev 56"},{"$f":"IF(WEEKDAY(Kalendripäev)=NädalaAlguseVäärtus,CONCATENATE(\"Nädal \",WEEKNUM(Kalendripäev),\"/Päev \",,Kalendripäev-DATE(YEAR(Kalendripäev),1,0)),CONCATENATE(\"Päev \",Kalendripäev-DATE(YEAR(Kalendripäev),1,0)))","v":"Päev 57"},{"$f":"IF(WEEKDAY(Kalendripäev)=NädalaAlguseVäärtus,CONCATENATE(\"Nädal \",WEEKNUM(Kalendripäev),\"/Päev \",,Kalendripäev-DATE(YEAR(Kalendripäev),1,0)),CONCATENATE(\"Päev \",Kalendripäev-DATE(YEAR(Kalendripäev),1,0)))","v":"Päev 58"},{"$f":"IF(WEEKDAY(Kalendripäev)=NädalaAlguseVäärtus,CONCATENATE(\"Nädal \",WEEKNUM(Kalendripäev),\"/Päev \",,Kalendripäev-DATE(YEAR(Kalendripäev),1,0)),CONCATENATE(\"Päev \",Kalendripäev-DATE(YEAR(Kalendripäev),1,0)))","v":"Päev 59"},{"$f":"IF(WEEKDAY(Kalendripäev)=NädalaAlguseVäärtus,CONCATENATE(\"Nädal \",WEEKNUM(Kalendripäev),\"/Päev \",,Kalendripäev-DATE(YEAR(Kalendripäev),1,0)),CONCATENATE(\"Päev \",Kalendripäev-DATE(YEAR(Kalendripäev),1,0)))","v":"Päev 60"},{"$f":"IF(WEEKDAY(Kalendripäev)=NädalaAlguseVäärtus,CONCATENATE(\"Nädal \",WEEKNUM(Kalendripäev),\"/Päev \",,Kalendripäev-DATE(YEAR(Kalendripäev),1,0)),CONCATENATE(\"Päev \",Kalendripäev-DATE(YEAR(Kalendripäev),1,0)))","v":"Päev 61"},{"$f":"IF(WEEKDAY(Kalendripäev)=NädalaAlguseVäärtus,CONCATENATE(\"Nädal \",WEEKNUM(Kalendripäev),\"/Päev \",,Kalendripäev-DATE(YEAR(Kalendripäev),1,0)),CONCATENATE(\"Päev \",Kalendripäev-DATE(YEAR(Kalendripäev),1,0)))","v":"Päev 62"}]
[{"$nulls":4},"MÄRKMED"]
[]
[null,null,{"$f":"PäevadJaNädalad+DATE(Kalendriaasta,2,1)-WEEKDAY(DATE(Kalendriaasta,2,1),(NädalaAlgus=\"E\")+1)+36","v":"2018-03-04"},"2018-03-05"]
[null,null,{"$f":"IF(WEEKDAY(Kalendripäev)=NädalaAlguseVäärtus,CONCATENATE(\"Nädal \",WEEKNUM(Kalendripäev),\"/Päev \",,Kalendripäev-DATE(YEAR(Kalendripäev),1,0)),CONCATENATE(\"Päev \",Kalendripäev-DATE(YEAR(Kalendripäev),1,0)))","v":"Nädal 10/Päev 63"},{"$f":"IF(WEEKDAY(Kalendripäev)=NädalaAlguseVäärtus,CONCATENATE(\"Nädal \",WEEKNUM(Kalendripäev),\"/Päev \",,Kalendripäev-DATE(YEAR(Kalendripäev),1,0)),CONCATENATE(\"Päev \",Kalendripäev-DATE(YEAR(Kalendripäev),1,0)))","v":"Päev 64"}]

{"sheet":"MÄRTS","index":2,"n_rows":20,"n_cols":9,"rows_kept":20,"merged":[[16,2,17,2],[17,4,19,8]]}
[null,"MÄRTS",{"$f":"UPPER(TEXT(NädalaAlgus,\"ddd\"))","v":"P"},{"$f":"UPPER(TEXT(D3,\"ddd\"))","v":"E"},"T","K","N","R","L"]
[null,{"$f":"Kalendriaasta","v":2018}]
[null,null,{"$f":"PäevadJaNädalad+DATE(Kalendriaasta,3,1)-WEEKDAY(DATE(Kalendriaasta,3,1),(NädalaAlgus=\"E\")+1)+1","v":"2018-02-25"},"2018-02-26","2018-02-27","2018-02-28","2018-03-01","2018-03-02","2018-03-03"]
[null,null,{"$f":"IF(DAY(Kalendripäev)=1,CONCATENATE(\"Nädal \",WEEKNUM(Kalendripäev),\"/Päev \",,Kalendripäev-DATE(YEAR(Kalendripäev),1,0)),CONCATENATE(\"Päev \",Kalendripäev-DATE(YEAR(Kalendripäev),1,0)))","v":"Päev 56"},{"$f":"IF(DAY(Kalendripäev)=1,CONCATENATE(\"Nädal \",WEEKNUM(Kalendripäev),\"/Päev \",,Kalendripäev-DATE(YEAR(Kalendripäev),1,0)),CONCATENATE(\"Päev \",Kalendripäev-DATE(YEAR(Kalendripäev),1,0)))","v":"Päev 57"},{"$f":"IF(DAY(Kalendripäev)=1,CONCATENATE(\"Nädal \",WEEKNUM(Kalendripäev),\"/Päev \",,Kalendripäev-DATE(YEAR(Kalendripäev),1,0)),CONCATENATE(\"Päev \",Kalendripäev-DATE(YEAR(Kalendripäev),1,0)))","v":"Päev 58"},{"$f":"IF(DAY(Kalendripäev)=1,CONCATENATE(\"Nädal \",WEEKNUM(Kalendripäev),\"/Päev \",,Kalendripäev-DATE(YEAR(Kalendripäev),1,0)),CONCATENATE(\"Päev \",Kalendripäev-DATE(YEAR(Kalendripäev),1,0)))","v":"Päev 59"},{"$f":"IF(DAY(Kalendripäev)=1,CONCATENATE(\"Nädal \",WEEKNUM(Kalendripäev),\"/Päev \",,Kalendripäev-DATE(YEAR(Kalendripäev),1,0)),CONCATENATE(\"Päev \",Kalendripäev-DATE(YEAR(Kalendripäev),1,0)))","v":"Nädal 9/Päev 60"},{"$f":"IF(DAY(Kalendripäev)=1,CONCATENATE(\"Nädal \",WEEKNUM(Kalendripäev),\"/Päev \",,Kalendripäev-DATE(YEAR(Kalendripäev),1,0)),CONCATENATE(\"Päev \",Kalendripäev-DATE(YEAR(Kalendripäev),1,0)))","v":"Päev 61"},{"$f":"IF(DAY(Kalendripäev)=1,CONCATENATE(\"Nädal \",WEEKNUM(Kalendripäev),\"/Päev \",,Kalendripäev-DATE(YEAR(Kalendripäev),1,0)),CONCATENATE(\"Päev \",Kalendripäev-DATE(YEAR(Kalendripäev),1,0)))","v":"Päev 62"}]
[]
[null,null,{"$f":"PäevadJaNädalad+DATE(Kalendriaasta,3,1)-WEEKDAY(DATE(Kalendriaasta,3,1),(NädalaAlgus=\"E\")+1)+8","v":"2018-03-04"},"2018-03-05","2018-03-06","2018-03-07","2018-03-08","2018-03-09","2018-03-10"]
[null,null,{"$f":"IF(WEEKDAY(Kalendripäev)=NädalaAlguseVäärtus,CONCATENATE(\"Nädal \",WEEKNUM(Kalendripäev),\"/Päev \",,Kalendripäev-DATE(YEAR(Kalendripäev),1,0)),CONCATENATE(\"Päev \",Kalendripäev-DATE(YEAR(Kalendripäev),1,0)))","v":"Nädal 10/Päev 63"},{"$f":"IF(WEEKDAY(Kalendripäev)=NädalaAlguseVäärtus,CONCATENATE(\"Nädal \",WEEKNUM(Kalendripäev),\"/Päev \",,Kalendripäev-DATE(YEAR(Kalendripäev),1,0)),CONCATENATE(\"Päev \",Kalendripäev-DATE(YEAR(Kalendripäev),1,0)))","v":"Päev 64"},{"$f":"IF(WEEKDAY(Kalendripäev)=NädalaAlguseVäärtus,CONCATENATE(\"Nädal \",WEEKNUM(Kalendripäev),\"/Päev \",,Kalendripäev-DATE(YEAR(Kalendripäev),1,0)),CONCATENATE(\"Päev \",Kalendripäev-DATE(YEAR(Kalendripäev),1,0)))","v":"Päev 65"},{"$f":"IF(WEEKDAY(Kalendripäev)=NädalaAlguseVäärtus,CONCATENATE(\"Nädal \",WEEKNUM(Kalendripäev),\"/Päev \",,Kalendripäev-DATE(YEAR(Kalendripäev),1,0)),CONCATENATE(\"Päev \",Kalendripäev-DATE(YEAR(Kalendripäev),1,0)))","v":"Päev 66"},{"$f":"IF(WEEKDAY(Kalendripäev)=NädalaAlguseVäärtus,CONCATENATE(\"Nädal \",WEEKNUM(Kalendripäev),\"/Päev \",,Kalendripäev-DATE(YEAR(Kalendripäev),1,0)),CONCATENATE(\"Päev \",Kalendripäev-DATE(YEAR(Kalendripäev),1,0)))","v":"Päev 67"},{"$f":"IF(WEEKDAY(Kalendripäev)=NädalaAlguseVäärtus,CONCATENATE(\"Nädal \",WEEKNUM(Kalendripäev),\"/Päev \",,Kalendripäev-DATE(YEAR(Kalendripäev),1,0)),CONCATENATE(\"Päev \",Kalendripäev-DATE(YEAR(Kalendripäev),1,0)))","v":"Päev 68"},{"$f":"IF(WEEKDAY(Kalendripäev)=NädalaAlguseVäärtus,CONCATENATE(\"Nädal \",WEEKNUM(Kalendripäev),\"/Päev \",,Kalendripäev-DATE(YEAR(Kalendripäev),1,0)),CONCATENATE(\"Päev \",Kalendripäev-DATE(YEAR(Kalendripäev),1,0)))","v":"Päev 69"}]
[]
[null,null,{"$f":"PäevadJaNädalad+DATE(Kalendriaasta,3,1)-WEEKDAY(DATE(Kalendriaasta,3,1),(NädalaAlgus=\"E\")+1)+15","v":"2018-03-11"},"2018-03-12","2018-03-13","2018-03-14","2018-03-15","2018-03-16","2018-03-17"]
[null,null,{"$f":"IF(WEEKDAY(Kalendripäev)=NädalaAlguseVäärtus,CONCATENATE(\"Nädal \",WEEKNUM(Kalendripäev),\"/Päev \",,Kalendripäev-DATE(YEAR(Kalendripäev),1,0)),CONCATENATE(\"Päev \",Kalendripäev-DATE(YEAR(Kalendripäev),1,0)))","v":"Nädal 11/Päev 70"},{"$f":"IF(WEEKDAY(Kalendripäev)=NädalaAlguseVäärtus,CONCATENATE(\"Nädal \",WEEKNUM(Kalendripäev),\"/Päev \",,Kalendripäev-DATE(YEAR(Kalendripäev),1,0)),CONCATENATE(\"Päev \",Kalendripäev-DATE(YEAR(Kalendripäev),1,0)))","v":"Päev 71"},{"$f":"IF(WEEKDAY(Kalendripäev)=NädalaAlguseVäärtus,CONCATENATE(\"Nädal \",WEEKNUM(Kalendripäev),\"/Päev \",,Kalendripäev-DATE(YEAR(Kalendripäev),1,0)),CONCATENATE(\"Päev \",Kalendripäev-DATE(YEAR(Kalendripäev),1,0)))","v":"Päev 72"},{"$f":"IF(WEEKDAY(Kalendripäev)=NädalaAlguseVäärtus,CONCATENATE(\"Nädal \",WEEKNUM(Kalendripäev),\"/Päev \",,Kalendripäev-DATE(YEAR(Kalendripäev),1,0)),CONCATENATE(\"Päev \",Kalendripäev-DATE(YEAR(Kalendripäev),1,0)))","v":"Päev 73"},{"$f":"IF(WEEKDAY(Kalendripäev)=NädalaAlguseVäärtus,CONCATENATE(\"Nädal \",WEEKNUM(Kalendripäev),\"/Päev \",,Kalendripäev-DATE(YEAR(Kalendripäev),1,0)),CONCATENATE(\"Päev \",Kalendripäev-DATE(YEAR(Kalendripäev),1,0)))","v":"Päev 74"},{"$f":"IF(WEEKDAY(Kalendripäev)=NädalaAlguseVäärtus,CONCATENATE(\"Nädal \",WEEKNUM(Kalendripäev),\"/Päev \",,Kalendripäev-DATE(YEAR(Kalendripäev),1,0)),CONCATENATE(\"Päev \",Kalendripäev-DATE(YEAR(Kalendripäev),1,0)))","v":"Päev 75"},{"$f":"IF(WEEKDAY(Kalendripäev)=NädalaAlguseVäärtus,CONCATENATE(\"Nädal \",WEEKNUM(Kalendripäev),\"/Päev \",,Kalendripäev-DATE(YEAR(Kalendripäev),1,0)),CONCATENATE(\"Päev \",Kalendripäev-DATE(YEAR(Kalendripäev),1,0)))","v":"Päev 76"}]
[]
[null,null,{"$f":"PäevadJaNädalad+DATE(Kalendriaasta,3,1)-WEEKDAY(DATE(Kalendriaasta,3,1),(NädalaAlgus=\"E\")+1)+22","v":"2018-03-18"},"2018-03-19","2018-03-20","2018-03-21","2018-03-22","2018-03-23","2018-03-24"]
[null,null,{"$f":"IF(WEEKDAY(Kalendripäev)=NädalaAlguseVäärtus,CONCATENATE(\"Nädal \",WEEKNUM(Kalendripäev),\"/Päev \",,Kalendripäev-DATE(YEAR(Kalendripäev),1,0)),CONCATENATE(\"Päev \",Kalendripäev-DATE(YEAR(Kalendripäev),1,0)))","v":"Nädal 12/Päev 77"},{"$f":"IF(WEEKDAY(Kalendripäev)=NädalaAlguseVäärtus,CONCATENATE(\"Nädal \",WEEKNUM(Kalendripäev),\"/Päev \",,Kalendripäev-DATE(YEAR(Kalendripäev),1,0)),CONCATENATE(\"Päev \",Kalendripäev-DATE(YEAR(Kalendripäev),1,0)))","v":"Päev 78"},{"$f":"IF(WEEKDAY(Kalendripäev)=NädalaAlguseVäärtus,CONCATENATE(\"Nädal \",WEEKNUM(Kalendripäev),\"/Päev \",,Kalendripäev-DATE(YEAR(Kalendripäev),1,0)),CONCATENATE(\"Päev \",Kalendripäev-DATE(YEAR(Kalendripäev),1,0)))","v":"Päev 79"},{"$f":"IF(WEEKDAY(Kalendripäev)=NädalaAlguseVäärtus,CONCATENATE(\"Nädal \",WEEKNUM(Kalendripäev),\"/Päev \",,Kalendripäev-DATE(YEAR(Kalendripäev),1,0)),CONCATENATE(\"Päev \",Kalendripäev-DATE(YEAR(Kalendripäev),1,0)))","v":"Päev 80"},{"$f":"IF(WEEKDAY(Kalendripäev)=NädalaAlguseVäärtus,CONCATENATE(\"Nädal \",WEEKNUM(Kalendripäev),\"/Päev \",,Kalendripäev-DATE(YEAR(Kalendripäev),1,0)),CONCATENATE(\"Päev \",Kalendripäev-DATE(YEAR(Kalendripäev),1,0)))","v":"Päev 81"},{"$f":"IF(WEEKDAY(Kalendripäev)=NädalaAlguseVäärtus,CONCATENATE(\"Nädal \",WEEKNUM(Kalendripäev),\"/Päev \",,Kalendripäev-DATE(YEAR(Kalendripäev),1,0)),CONCATENATE(\"Päev \",Kalendripäev-DATE(YEAR(Kalendripäev),1,0)))","v":"Päev 82"},{"$f":"IF(WEEKDAY(Kalendripäev)=NädalaAlguseVäärtus,CONCATENATE(\"Nädal \",WEEKNUM(Kalendripäev),\"/Päev \",,Kalendripäev-DATE(YEAR(Kalendripäev),1,0)),CONCATENATE(\"Päev \",Kalendripäev-DATE(YEAR(Kalendripäev),1,0)))","v":"Päev 83"}]
[]
[null,null,{"$f":"PäevadJaNädalad+DATE(Kalendriaasta,3,1)-WEEKDAY(DATE(Kalendriaasta,3,1),(NädalaAlgus=\"E\")+1)+29","v":"2018-03-25"},"2018-03-26","2018-03-27","2018-03-28","2018-03-29","2018-03-30","2018-03-31"]
[null,null,{"$f":"IF(WEEKDAY(Kalendripäev)=NädalaAlguseVäärtus,CONCATENATE(\"Nädal \",WEEKNUM(Kalendripäev),\"/Päev \",,Kalendripäev-DATE(YEAR(Kalendripäev),1,0)),CONCATENATE(\"Päev \",Kalendripäev-DATE(YEAR(Kalendripäev),1,0)))","v":"Nädal 13/Päev 84"},{"$f":"IF(WEEKDAY(Kalendripäev)=NädalaAlguseVäärtus,CONCATENATE(\"Nädal \",WEEKNUM(Kalendripäev),\"/Päev \",,Kalendripäev-DATE(YEAR(Kalendripäev),1,0)),CONCATENATE(\"Päev \",Kalendripäev-DATE(YEAR(Kalendripäev),1,0)))","v":"Päev 85"},{"$f":"IF(WEEKDAY(Kalendripäev)=NädalaAlguseVäärtus,CONCATENATE(\"Nädal \",WEEKNUM(Kalendripäev),\"/Päev \",,Kalendripäev-DATE(YEAR(Kalendripäev),1,0)),CONCATENATE(\"Päev \",Kalendripäev-DATE(YEAR(Kalendripäev),1,0)))","v":"Päev 86"},{"$f":"IF(WEEKDAY(Kalendripäev)=NädalaAlguseVäärtus,CONCATENATE(\"Nädal \",WEEKNUM(Kalendripäev),\"/Päev \",,Kalendripäev-DATE(YEAR(Kalendripäev),1,0)),CONCATENATE(\"Päev \",Kalendripäev-DATE(YEAR(Kalendripäev),1,0)))","v":"Päev 87"},{"$f":"IF(WEEKDAY(Kalendripäev)=NädalaAlguseVäärtus,CONCATENATE(\"Nädal \",WEEKNUM(Kalendripäev),\"/Päev \",,Kalendripäev-DATE(YEAR(Kalendripäev),1,0)),CONCATENATE(\"Päev \",Kalendripäev-DATE(YEAR(Kalendripäev),1,0)))","v":"Päev 88"},{"$f":"IF(WEEKDAY(Kalendripäev)=NädalaAlguseVäärtus,CONCATENATE(\"Nädal \",WEEKNUM(Kalendripäev),\"/Päev \",,Kalendripäev-DATE(YEAR(Kalendripäev),1,0)),CONCATENATE(\"Päev \",Kalendripäev-DATE(YEAR(Kalendripäev),1,0)))","v":"Päev 89"},{"$f":"IF(WEEKDAY(Kalendripäev)=NädalaAlguseVäärtus,CONCATENATE(\"Nädal \",WEEKNUM(Kalendripäev),\"/Päev \",,Kalendripäev-DATE(YEAR(Kalendripäev),1,0)),CONCATENATE(\"Päev \",Kalendripäev-DATE(YEAR(Kalendripäev),1,0)))","v":"Päev 90"}]
[{"$nulls":4},"MÄRKMED"]
[]
[null,null,{"$f":"PäevadJaNädalad+DATE(Kalendriaasta,3,1)-WEEKDAY(DATE(Kalendriaasta,3,1),(NädalaAlgus=\"E\")+1)+36","v":"2018-04-01"},"2018-04-02"]
[null,null,{"$f":"IF(WEEKDAY(Kalendripäev)=NädalaAlguseVäärtus,CONCATENATE(\"Nädal \",WEEKNUM(Kalendripäev),\"/Päev \",,Kalendripäev-DATE(YEAR(Kalendripäev),1,0)),CONCATENATE(\"Päev \",Kalendripäev-DATE(YEAR(Kalendripäev),1,0)))","v":"Nädal 14/Päev 91"},{"$f":"IF(WEEKDAY(Kalendripäev)=NädalaAlguseVäärtus,CONCATENATE(\"Nädal \",WEEKNUM(Kalendripäev),\"/Päev \",,Kalendripäev-DATE(YEAR(Kalendripäev),1,0)),CONCATENATE(\"Päev \",Kalendripäev-DATE(YEAR(Kalendripäev),1,0)))","v":"Päev 92"}]

{"sheet":"APR","index":3,"n_rows":20,"n_cols":9,"rows_kept":20,"merged":[[16,2,17,2],[17,4,19,8]]}
[null,"APR",{"$f":"UPPER(TEXT(NädalaAlgus,\"ddd\"))","v":"P"},{"$f":"UPPER(TEXT(D3,\"ddd\"))","v":"E"},"T","K","N","R","L"]
[null,{"$f":"Kalendriaasta","v":2018}]
[null,null,{"$f":"PäevadJaNädalad+DATE(Kalendriaasta,4,1)-WEEKDAY(DATE(Kalendriaasta,4,1),(NädalaAlgus=\"E\")+1)+1","v":"2018-04-01"},"2018-04-02","2018-04-03","2018-04-04","2018-04-05","2018-04-06","2018-04-07"]
[null,null,{"$f":"IF(DAY(Kalendripäev)=1,CONCATENATE(\"Nädal \",WEEKNUM(Kalendripäev),\"/Päev \",,Kalendripäev-DATE(YEAR(Kalendripäev),1,0)),CONCATENATE(\"Päev \",Kalendripäev-DATE(YEAR(Kalendripäev),1,0)))","v":"Nädal 14/Päev 91"},{"$f":"IF(DAY(Kalendripäev)=1,CONCATENATE(\"Nädal \",WEEKNUM(Kalendripäev),\"/Päev \",,Kalendripäev-DATE(YEAR(Kalendripäev),1,0)),CONCATENATE(\"Päev \",Kalendripäev-DATE(YEAR(Kalendripäev),1,0)))","v":"Päev 92"},{"$f":"IF(DAY(Kalendripäev)=1,CONCATENATE(\"Nädal \",WEEKNUM(Kalendripäev),\"/Päev \",,Kalendripäev-DATE(YEAR(Kalendripäev),1,0)),CONCATENATE(\"Päev \",Kalendripäev-DATE(YEAR(Kalendripäev),1,0)))","v":"Päev 93"},{"$f":"IF(DAY(Kalendripäev)=1,CONCATENATE(\"Nädal \",WEEKNUM(Kalendripäev),\"/Päev \",,Kalendripäev-DATE(YEAR(Kalendripäev),1,0)),CONCATENATE(\"Päev \",Kalendripäev-DATE(YEAR(Kalendripäev),1,0)))","v":"Päev 94"},{"$f":"IF(DAY(Kalendripäev)=1,CONCATENATE(\"Nädal \",WEEKNUM(Kalendripäev),\"/Päev \",,Kalendripäev-DATE(YEAR(Kalendripäev),1,0)),CONCATENATE(\"Päev \",Kalendripäev-DATE(YEAR(Kalendripäev),1,0)))","v":"Päev 95"},{"$f":"IF(DAY(Kalendripäev)=1,CONCATENATE(\"Nädal \",WEEKNUM(Kalendripäev),\"/Päev \",,Kalendripäev-DATE(YEAR(Kalendripäev),1,0)),CONCATENATE(\"Päev \",Kalendripäev-DATE(YEAR(Kalendripäev),1,0)))","v":"Päev 96"},{"$f":"IF(DAY(Kalendripäev)=1,CONCATENATE(\"Nädal \",WEEKNUM(Kalendripäev),\"/Päev \",,Kalendripäev-DATE(YEAR(Kalendripäev),1,0)),CONCATENATE(\"Päev \",Kalendripäev-DATE(YEAR(Kalendripäev),1,0)))","v":"Päev 97"}]
[]
[null,null,{"$f":"PäevadJaNädalad+DATE(Kalendriaasta,4,1)-WEEKDAY(DATE(Kalendriaasta,4,1),(NädalaAlgus=\"E\")+1)+8","v":"2018-04-08"},"2018-04-09","2018-04-10","2018-04-11","2018-04-12","2018-04-13","2018-04-14"]
[null,null,{"$f":"IF(WEEKDAY(Kalendripäev)=NädalaAlguseVäärtus,CONCATENATE(\"Nädal \",WEEKNUM(Kalendripäev),\"/Päev \",,Kalendripäev-DATE(YEAR(Kalendripäev),1,0)),CONCATENATE(\"Päev \",Kalendripäev-DATE(YEAR(Kalendripäev),1,0)))","v":"Nädal 15/Päev 98"},{"$f":"IF(WEEKDAY(Kalendripäev)=NädalaAlguseVäärtus,CONCATENATE(\"Nädal \",WEEKNUM(Kalendripäev),\"/Päev \",,Kalendripäev-DATE(YEAR(Kalendripäev),1,0)),CONCATENATE(\"Päev \",Kalendripäev-DATE(YEAR(Kalendripäev),1,0)))","v":"Päev 99"},{"$f":"IF(WEEKDAY(Kalendripäev)=NädalaAlguseVäärtus,CONCATENATE(\"Nädal \",WEEKNUM(Kalendripäev),\"/Päev \",,Kalendripäev-DATE(YEAR(Kalendripäev),1,0)),CONCATENATE(\"Päev \",Kalendripäev-DATE(YEAR(Kalendripäev),1,0)))","v":"Päev 100"},{"$f":"IF(WEEKDAY(Kalendripäev)=NädalaAlguseVäärtus,CONCATENATE(\"Nädal \",WEEKNUM(Kalendripäev),\"/Päev \",,Kalendripäev-DATE(YEAR(Kalendripäev),1,0)),CONCATENATE(\"Päev \",Kalendripäev-DATE(YEAR(Kalendripäev),1,0)))","v":"Päev 101"},{"$f":"IF(WEEKDAY(Kalendripäev)=NädalaAlguseVäärtus,CONCATENATE(\"Nädal \",WEEKNUM(Kalendripäev),\"/Päev \",,Kalendripäev-DATE(YEAR(Kalendripäev),1,0)),CONCATENATE(\"Päev \",Kalendripäev-DATE(YEAR(Kalendripäev),1,0)))","v":"Päev 102"},{"$f":"IF(WEEKDAY(Kalendripäev)=NädalaAlguseVäärtus,CONCATENATE(\"Nädal \",WEEKNUM(Kalendripäev),\"/Päev \",,Kalendripäev-DATE(YEAR(Kalendripäev),1,0)),CONCATENATE(\"Päev \",Kalendripäev-DATE(YEAR(Kalendripäev),1,0)))","v":"Päev 103"},{"$f":"IF(WEEKDAY(Kalendripäev)=NädalaAlguseVäärtus,CONCATENATE(\"Nädal \",WEEKNUM(Kalendripäev),\"/Päev \",,Kalendripäev-DATE(YEAR(Kalendripäev),1,0)),CONCATENATE(\"Päev \",Kalendripäev-DATE(YEAR(Kalendripäev),1,0)))","v":"Päev 104"}]
[]
[null,null,{"$f":"PäevadJaNädalad+DATE(Kalendriaasta,4,1)-WEEKDAY(DATE(Kalendriaasta,4,1),(NädalaAlgus=\"E\")+1)+15","v":"2018-04-15"},"2018-04-16","2018-04-17","2018-04-18","2018-04-19","2018-04-20","2018-04-21"]
[null,null,{"$f":"IF(WEEKDAY(Kalendripäev)=NädalaAlguseVäärtus,CONCATENATE(\"Nädal \",WEEKNUM(Kalendripäev),\"/Päev \",,Kalendripäev-DATE(YEAR(Kalendripäev),1,0)),CONCATENATE(\"Päev \",Kalendripäev-DATE(YEAR(Kalendripäev),1,0)))","v":"Nädal 16/Päev 105"},{"$f":"IF(WEEKDAY(Kalendripäev)=NädalaAlguseVäärtus,CONCATENATE(\"Nädal \",WEEKNUM(Kalendripäev),\"/Päev \",,Kalendripäev-DATE(YEAR(Kalendripäev),1,0)),CONCATENATE(\"Päev \",Kalendripäev-DATE(YEAR(Kalendripäev),1,0)))","v":"Päev 106"},{"$f":"IF(WEEKDAY(Kalendripäev)=NädalaAlguseVäärtus,CONCATENATE(\"Nädal \",WEEKNUM(Kalendripäev),\"/Päev \",,Kalendripäev-DATE(YEAR(Kalendripäev),1,0)),CONCATENATE(\"Päev \",Kalendripäev-DATE(YEAR(Kalendripäev),1,0)))","v":"Päev 107"},{"$f":"IF(WEEKDAY(Kalendripäev)=NädalaAlguseVäärtus,CONCATENATE(\"Nädal \",WEEKNUM(Kalendripäev),\"/Päev \",,Kalendripäev-DATE(YEAR(Kalendripäev),1,0)),CONCATENATE(\"Päev \",Kalendripäev-DATE(YEAR(Kalendripäev),1,0)))","v":"Päev 108"},{"$f":"IF(WEEKDAY(Kalendripäev)=NädalaAlguseVäärtus,CONCATENATE(\"Nädal \",WEEKNUM(Kalendripäev),\"/Päev \",,Kalendripäev-DATE(YEAR(Kalendripäev),1,0)),CONCATENATE(\"Päev \",Kalendripäev-DATE(YEAR(Kalendripäev),1,0)))","v":"Päev 109"},{"$f":"IF(WEEKDAY(Kalendripäev)=NädalaAlguseVäärtus,CONCATENATE(\"Nädal \",WEEKNUM(Kalendripäev),\"/Päev \",,Kalendripäev-DATE(YEAR(Kalendripäev),1,0)),CONCATENATE(\"Päev \",Kalendripäev-DATE(YEAR(Kalendripäev),1,0)))","v":"Päev 110"},{"$f":"IF(WEEKDAY(Kalendripäev)=NädalaAlguseVäärtus,CONCATENATE(\"Nädal \",WEEKNUM(Kalendripäev),\"/Päev \",,Kalendripäev-DATE(YEAR(Kalendripäev),1,0)),CONCATENATE(\"Päev \",Kalendripäev-DATE(YEAR(Kalendripäev),1,0)))","v":"Päev 111"}]
[]
[null,null,{"$f":"PäevadJaNädalad+DATE(Kalendriaasta,4,1)-WEEKDAY(DATE(Kalendriaasta,4,1),(NädalaAlgus=\"E\")+1)+22","v":"2018-04-22"},"2018-04-23","2018-04-24","2018-04-25","2018-04-26","2018-04-27","2018-04-28"]
[null,null,{"$f":"IF(WEEKDAY(Kalendripäev)=NädalaAlguseVäärtus,CONCATENATE(\"Nädal \",WEEKNUM(Kalendripäev),\"/Päev \",,Kalendripäev-DATE(YEAR(Kalendripäev),1,0)),CONCATENATE(\"Päev \",Kalendripäev-DATE(YEAR(Kalendripäev),1,0)))","v":"Nädal 17/Päev 112"},{"$f":"IF(WEEKDAY(Kalendripäev)=NädalaAlguseVäärtus,CONCATENATE(\"Nädal \",WEEKNUM(Kalendripäev),\"/Päev \",,Kalendripäev-DATE(YEAR(Kalendripäev),1,0)),CONCATENATE(\"Päev \",Kalendripäev-DATE(YEAR(Kalendripäev),1,0)))","v":"Päev 113"},{"$f":"IF(WEEKDAY(Kalendripäev)=NädalaAlguseVäärtus,CONCATENATE(\"Nädal \",WEEKNUM(Kalendripäev),\"/Päev \",,Kalendripäev-DATE(YEAR(Kalendripäev),1,0)),CONCATENATE(\"Päev \",Kalendripäev-DATE(YEAR(Kalendripäev),1,0)))","v":"Päev 114"},{"$f":"IF(WEEKDAY(Kalendripäev)=NädalaAlguseVäärtus,CONCATENATE(\"Nädal \",WEEKNUM(Kalendripäev),\"/Päev \",,Kalendripäev-DATE(YEAR(Kalendripäev),1,0)),CONCATENATE(\"Päev \",Kalendripäev-DATE(YEAR(Kalendripäev),1,0)))","v":"Päev 115"},{"$f":"IF(WEEKDAY(Kalendripäev)=NädalaAlguseVäärtus,CONCATENATE(\"Nädal \",WEEKNUM(Kalendripäev),\"/Päev \",,Kalendripäev-DATE(YEAR(Kalendripäev),1,0)),CONCATENATE(\"Päev \",Kalendripäev-DATE(YEAR(Kalendripäev),1,0)))","v":"Päev 116"},{"$f":"IF(WEEKDAY(Kalendripäev)=NädalaAlguseVäärtus,CONCATENATE(\"Nädal \",WEEKNUM(Kalendripäev),\"/Päev \",,Kalendripäev-DATE(YEAR(Kalendripäev),1,0)),CONCATENATE(\"Päev \",Kalendripäev-DATE(YEAR(Kalendripäev),1,0)))","v":"Päev 117"},{"$f":"IF(WEEKDAY(Kalendripäev)=NädalaAlguseVäärtus,CONCATENATE(\"Nädal \",WEEKNUM(Kalendripäev),\"/Päev \",,Kalendripäev-DATE(YEAR(Kalendripäev),1,0)),CONCATENATE(\"Päev \",Kalendripäev-DATE(YEAR(Kalendripäev),1,0)))","v":"Päev 118"}]
[]
[null,null,{"$f":"PäevadJaNädalad+DATE(Kalendriaasta,4,1)-WEEKDAY(DATE(Kalendriaasta,4,1),(NädalaAlgus=\"E\")+1)+29","v":"2018-04-29"},"2018-04-30","2018-05-01","2018-05-02","2018-05-03","2018-05-04","2018-05-05"]
[null,null,{"$f":"IF(WEEKDAY(Kalendripäev)=NädalaAlguseVäärtus,CONCATENATE(\"Nädal \",WEEKNUM(Kalendripäev),\"/Päev \",,Kalendripäev-DATE(YEAR(Kalendripäev),1,0)),CONCATENATE(\"Päev \",Kalendripäev-DATE(YEAR(Kalendripäev),1,0)))","v":"Nädal 18/Päev 119"},{"$f":"IF(WEEKDAY(Kalendripäev)=NädalaAlguseVäärtus,CONCATENATE(\"Nädal \",WEEKNUM(Kalendripäev),\"/Päev \",,Kalendripäev-DATE(YEAR(Kalendripäev),1,0)),CONCATENATE(\"Päev \",Kalendripäev-DATE(YEAR(Kalendripäev),1,0)))","v":"Päev 120"},{"$f":"IF(WEEKDAY(Kalendripäev)=NädalaAlguseVäärtus,CONCATENATE(\"Nädal \",WEEKNUM(Kalendripäev),\"/Päev \",,Kalendripäev-DATE(YEAR(Kalendripäev),1,0)),CONCATENATE(\"Päev \",Kalendripäev-DATE(YEAR(Kalendripäev),1,0)))","v":"Päev 121"},{"$f":"IF(WEEKDAY(Kalendripäev)=NädalaAlguseVäärtus,CONCATENATE(\"Nädal \",WEEKNUM(Kalendripäev),\"/Päev \",,Kalendripäev-DATE(YEAR(Kalendripäev),1,0)),CONCATENATE(\"Päev \",Kalendripäev-DATE(YEAR(Kalendripäev),1,0)))","v":"Päev 122"},{"$f":"IF(WEEKDAY(Kalendripäev)=NädalaAlguseVäärtus,CONCATENATE(\"Nädal \",WEEKNUM(Kalendripäev),\"/Päev \",,Kalendripäev-DATE(YEAR(Kalendripäev),1,0)),CONCATENATE(\"Päev \",Kalendripäev-DATE(YEAR(Kalendripäev),1,0)))","v":"Päev 123"},{"$f":"IF(WEEKDAY(Kalendripäev)=NädalaAlguseVäärtus,CONCATENATE(\"Nädal \",WEEKNUM(Kalendripäev),\"/Päev \",,Kalendripäev-DATE(YEAR(Kalendripäev),1,0)),CONCATENATE(\"Päev \",Kalendripäev-DATE(YEAR(Kalendripäev),1,0)))","v":"Päev 124"},{"$f":"IF(WEEKDAY(Kalendripäev)=NädalaAlguseVäärtus,CONCATENATE(\"Nädal \",WEEKNUM(Kalendripäev),\"/Päev \",,Kalendripäev-DATE(YEAR(Kalendripäev),1,0)),CONCATENATE(\"Päev \",Kalendripäev-DATE(YEAR(Kalendripäev),1,0)))","v":"Päev 125"}]
[{"$nulls":4},"MÄRKMED"]
[]
[null,null,{"$f":"PäevadJaNädalad+DATE(Kalendriaasta,4,1)-WEEKDAY(DATE(Kalendriaasta,4,1),(NädalaAlgus=\"E\")+1)+36","v":"2018-05-06"},"2018-05-07"]
[null,null,{"$f":"IF(WEEKDAY(Kalendripäev)=NädalaAlguseVäärtus,CONCATENATE(\"Nädal \",WEEKNUM(Kalendripäev),\"/Päev \",,Kalendripäev-DATE(YEAR(Kalendripäev),1,0)),CONCATENATE(\"Päev \",Kalendripäev-DATE(YEAR(Kalendripäev),1,0)))","v":"Nädal 19/Päev 126"},{"$f":"IF(WEEKDAY(Kalendripäev)=NädalaAlguseVäärtus,CONCATENATE(\"Nädal \",WEEKNUM(Kalendripäev),\"/Päev \",,Kalendripäev-DATE(YEAR(Kalendripäev),1,0)),CONCATENATE(\"Päev \",Kalendripäev-DATE(YEAR(Kalendripäev),1,0)))","v":"Päev 127"}]

{"sheet":"MAI","index":4,"n_rows":20,"n_cols":9,"rows_kept":20,"merged":[[16,2,17,2],[17,4,19,8]]}
[null,"MAI",{"$f":"UPPER(TEXT(NädalaAlgus,\"ddd\"))","v":"P"},{"$f":"UPPER(TEXT(D3,\"ddd\"))","v":"E"},"T","K","N","R","L"]
[null,{"$f":"Kalendriaasta","v":2018}]
[null,null,{"$f":"PäevadJaNädalad+DATE(Kalendriaasta,5,1)-WEEKDAY(DATE(Kalendriaasta,5,1),(NädalaAlgus=\"E\")+1)+1","v":"2018-04-29"},"2018-04-30","2018-05-01","2018-05-02","2018-05-03","2018-05-04","2018-05-05"]
[null,null,{"$f":"IF(DAY(Kalendripäev)=1,CONCATENATE(\"Nädal \",WEEKNUM(Kalendripäev),\"/Päev \",,Kalendripäev-DATE(YEAR(Kalendripäev),1,0)),CONCATENATE(\"Päev \",Kalendripäev-DATE(YEAR(Kalendripäev),1,0)))","v":"Päev 119"},{"$f":"IF(DAY(Kalendripäev)=1,CONCATENATE(\"Nädal \",WEEKNUM(Kalendripäev),\"/Päev \",,Kalendripäev-DATE(YEAR(Kalendripäev),1,0)),CONCATENATE(\"Päev \",Kalendripäev-DATE(YEAR(Kalendripäev),1,0)))","v":"Päev 120"},{"$f":"IF(DAY(Kalendripäev)=1,CONCATENATE(\"Nädal \",WEEKNUM(Kalendripäev),\"/Päev \",,Kalendripäev-DATE(YEAR(Kalendripäev),1,0)),CONCATENATE(\"Päev \",Kalendripäev-DATE(YEAR(Kalendripäev),1,0)))","v":"Nädal 18/Päev 121"},{"$f":"IF(DAY(Kalendripäev)=1,CONCATENATE(\"Nädal \",WEEKNUM(Kalendripäev),\"/Päev \",,Kalendripäev-DATE(YEAR(Kalendripäev),1,0)),CONCATENATE(\"Päev \",Kalendripäev-DATE(YEAR(Kalendripäev),1,0)))","v":"Päev 122"},{"$f":"IF(DAY(Kalendripäev)=1,CONCATENATE(\"Nädal \",WEEKNUM(Kalendripäev),\"/Päev \",,Kalendripäev-DATE(YEAR(Kalendripäev),1,0)),CONCATENATE(\"Päev \",Kalendripäev-DATE(YEAR(Kalendripäev),1,0)))","v":"Päev 123"},{"$f":"IF(DAY(Kalendripäev)=1,CONCATENATE(\"Nädal \",WEEKNUM(Kalendripäev),\"/Päev \",,Kalendripäev-DATE(YEAR(Kalendripäev),1,0)),CONCATENATE(\"Päev \",Kalendripäev-DATE(YEAR(Kalendripäev),1,0)))","v":"Päev 124"},{"$f":"IF(DAY(Kalendripäev)=1,CONCATENATE(\"Nädal \",WEEKNUM(Kalendripäev),\"/Päev \",,Kalendripäev-DATE(YEAR(Kalendripäev),1,0)),CONCATENATE(\"Päev \",Kalendripäev-DATE(YEAR(Kalendripäev),1,0)))","v":"Päev 125"}]
[]
[null,null,{"$f":"PäevadJaNädalad+DATE(Kalendriaasta,5,1)-WEEKDAY(DATE(Kalendriaasta,5,1),(NädalaAlgus=\"E\")+1)+8","v":"2018-05-06"},"2018-05-07","2018-05-08","2018-05-09","2018-05-10","2018-05-11","2018-05-12"]
[null,null,{"$f":"IF(WEEKDAY(Kalendripäev)=NädalaAlguseVäärtus,CONCATENATE(\"Nädal \",WEEKNUM(Kalendripäev),\"/Päev \",,Kalendripäev-DATE(YEAR(Kalendripäev),1,0)),CONCATENATE(\"Päev \",Kalendripäev-DATE(YEAR(Kalendripäev),1,0)))","v":"Nädal 19/Päev 126"},{"$f":"IF(WEEKDAY(Kalendripäev)=NädalaAlguseVäärtus,CONCATENATE(\"Nädal \",WEEKNUM(Kalendripäev),\"/Päev \",,Kalendripäev-DATE(YEAR(Kalendripäev),1,0)),CONCATENATE(\"Päev \",Kalendripäev-DATE(YEAR(Kalendripäev),1,0)))","v":"Päev 127"},{"$f":"IF(WEEKDAY(Kalendripäev)=NädalaAlguseVäärtus,CONCATENATE(\"Nädal \",WEEKNUM(Kalendripäev),\"/Päev \",,Kalendripäev-DATE(YEAR(Kalendripäev),1,0)),CONCATENATE(\"Päev \",Kalendripäev-DATE(YEAR(Kalendripäev),1,0)))","v":"Päev 128"},{"$f":"IF(WEEKDAY(Kalendripäev)=NädalaAlguseVäärtus,CONCATENATE(\"Nädal \",WEEKNUM(Kalendripäev),\"/Päev \",,Kalendripäev-DATE(YEAR(Kalendripäev),1,0)),CONCATENATE(\"Päev \",Kalendripäev-DATE(YEAR(Kalendripäev),1,0)))","v":"Päev 129"},{"$f":"IF(WEEKDAY(Kalendripäev)=NädalaAlguseVäärtus,CONCATENATE(\"Nädal \",WEEKNUM(Kalendripäev),\"/Päev \",,Kalendripäev-DATE(YEAR(Kalendripäev),1,0)),CONCATENATE(\"Päev \",Kalendripäev-DATE(YEAR(Kalendripäev),1,0)))","v":"Päev 130"},{"$f":"IF(WEEKDAY(Kalendripäev)=NädalaAlguseVäärtus,CONCATENATE(\"Nädal \",WEEKNUM(Kalendripäev),\"/Päev \",,Kalendripäev-DATE(YEAR(Kalendripäev),1,0)),CONCATENATE(\"Päev \",Kalendripäev-DATE(YEAR(Kalendripäev),1,0)))","v":"Päev 131"},{"$f":"IF(WEEKDAY(Kalendripäev)=NädalaAlguseVäärtus,CONCATENATE(\"Nädal \",WEEKNUM(Kalendripäev),\"/Päev \",,Kalendripäev-DATE(YEAR(Kalendripäev),1,0)),CONCATENATE(\"Päev \",Kalendripäev-DATE(YEAR(Kalendripäev),1,0)))","v":"Päev 132"}]
[]
[null,null,{"$f":"PäevadJaNädalad+DATE(Kalendriaasta,5,1)-WEEKDAY(DATE(Kalendriaasta,5,1),(NädalaAlgus=\"E\")+1)+15","v":"2018-05-13"},"2018-05-14","2018-05-15","2018-05-16","2018-05-17","2018-05-18","2018-05-19"]
[null,null,{"$f":"IF(WEEKDAY(Kalendripäev)=NädalaAlguseVäärtus,CONCATENATE(\"Nädal \",WEEKNUM(Kalendripäev),\"/Päev \",,Kalendripäev-DATE(YEAR(Kalendripäev),1,0)),CONCATENATE(\"Päev \",Kalendripäev-DATE(YEAR(Kalendripäev),1,0)))","v":"Nädal 20/Päev 133"},{"$f":"IF(WEEKDAY(Kalendripäev)=NädalaAlguseVäärtus,CONCATENATE(\"Nädal \",WEEKNUM(Kalendripäev),\"/Päev \",,Kalendripäev-DATE(YEAR(Kalendripäev),1,0)),CONCATENATE(\"Päev \",Kalendripäev-DATE(YEAR(Kalendripäev),1,0)))","v":"Päev 134"},{"$f":"IF(WEEKDAY(Kalendripäev)=NädalaAlguseVäärtus,CONCATENATE(\"Nädal \",WEEKNUM(Kalendripäev),\"/Päev \",,Kalendripäev-DATE(YEAR(Kalendripäev),1,0)),CONCATENATE(\"Päev \",Kalendripäev-DATE(YEAR(Kalendripäev),1,0)))","v":"Päev 135"},{"$f":"IF(WEEKDAY(Kalendripäev)=NädalaAlguseVäärtus,CONCATENATE(\"Nädal \",WEEKNUM(Kalendripäev),\"/Päev \",,Kalendripäev-DATE(YEAR(Kalendripäev),1,0)),CONCATENATE(\"Päev \",Kalendripäev-DATE(YEAR(Kalendripäev),1,0)))","v":"Päev 136"},{"$f":"IF(WEEKDAY(Kalendripäev)=NädalaAlguseVäärtus,CONCATENATE(\"Nädal \",WEEKNUM(Kalendripäev),\"/Päev \",,Kalendripäev-DATE(YEAR(Kalendripäev),1,0)),CONCATENATE(\"Päev \",Kalendripäev-DATE(YEAR(Kalendripäev),1,0)))","v":"Päev 137"},{"$f":"IF(WEEKDAY(Kalendripäev)=NädalaAlguseVäärtus,CONCATENATE(\"Nädal \",WEEKNUM(Kalendripäev),\"/Päev \",,Kalendripäev-DATE(YEAR(Kalendripäev),1,0)),CONCATENATE(\"Päev \",Kalendripäev-DATE(YEAR(Kalendripäev),1,0)))","v":"Päev 138"},{"$f":"IF(WEEKDAY(Kalendripäev)=NädalaAlguseVäärtus,CONCATENATE(\"Nädal \",WEEKNUM(Kalendripäev),\"/Päev \",,Kalendripäev-DATE(YEAR(Kalendripäev),1,0)),CONCATENATE(\"Päev \",Kalendripäev-DATE(YEAR(Kalendripäev),1,0)))","v":"Päev 139"}]
[]
[null,null,{"$f":"PäevadJaNädalad+DATE(Kalendriaasta,5,1)-WEEKDAY(DATE(Kalendriaasta,5,1),(NädalaAlgus=\"E\")+1)+22","v":"2018-05-20"},"2018-05-21","2018-05-22","2018-05-23","2018-05-24","2018-05-25","2018-05-26"]
[null,null,{"$f":"IF(WEEKDAY(Kalendripäev)=NädalaAlguseVäärtus,CONCATENATE(\"Nädal \",WEEKNUM(Kalendripäev),\"/Päev \",,Kalendripäev-DATE(YEAR(Kalendripäev),1,0)),CONCATENATE(\"Päev \",Kalendripäev-DATE(YEAR(Kalendripäev),1,0)))","v":"Nädal 21/Päev 140"},{"$f":"IF(WEEKDAY(Kalendripäev)=NädalaAlguseVäärtus,CONCATENATE(\"Nädal \",WEEKNUM(Kalendripäev),\"/Päev \",,Kalendripäev-DATE(YEAR(Kalendripäev),1,0)),CONCATENATE(\"Päev \",Kalendripäev-DATE(YEAR(Kalendripäev),1,0)))","v":"Päev 141"},{"$f":"IF(WEEKDAY(Kalendripäev)=NädalaAlguseVäärtus,CONCATENATE(\"Nädal \",WEEKNUM(Kalendripäev),\"/Päev \",,Kalendripäev-DATE(YEAR(Kalendripäev),1,0)),CONCATENATE(\"Päev \",Kalendripäev-DATE(YEAR(Kalendripäev),1,0)))","v":"Päev 142"},{"$f":"IF(WEEKDAY(Kalendripäev)=NädalaAlguseVäärtus,CONCATENATE(\"Nädal \",WEEKNUM(Kalendripäev),\"/Päev \",,Kalendripäev-DATE(YEAR(Kalendripäev),1,0)),CONCATENATE(\"Päev \",Kalendripäev-DATE(YEAR(Kalendripäev),1,0)))","v":"Päev 143"},{"$f":"IF(WEEKDAY(Kalendripäev)=NädalaAlguseVäärtus,CONCATENATE(\"Nädal \",WEEKNUM(Kalendripäev),\"/Päev \",,Kalendripäev-DATE(YEAR(Kalendripäev),1,0)),CONCATENATE(\"Päev \",Kalendripäev-DATE(YEAR(Kalendripäev),1,0)))","v":"Päev 144"},{"$f":"IF(WEEKDAY(Kalendripäev)=NädalaAlguseVäärtus,CONCATENATE(\"Nädal \",WEEKNUM(Kalendripäev),\"/Päev \",,Kalendripäev-DATE(YEAR(Kalendripäev),1,0)),CONCATENATE(\"Päev \",Kalendripäev-DATE(YEAR(Kalendripäev),1,0)))","v":"Päev 145"},{"$f":"IF(WEEKDAY(Kalendripäev)=NädalaAlguseVäärtus,CONCATENATE(\"Nädal \",WEEKNUM(Kalendripäev),\"/Päev \",,Kalendripäev-DATE(YEAR(Kalendripäev),1,0)),CONCATENATE(\"Päev \",Kalendripäev-DATE(YEAR(Kalendripäev),1,0)))","v":"Päev 146"}]
[]
[null,null,{"$f":"PäevadJaNädalad+DATE(Kalendriaasta,5,1)-WEEKDAY(DATE(Kalendriaasta,5,1),(NädalaAlgus=\"E\")+1)+29","v":"2018-05-27"},"2018-05-28","2018-05-29","2018-05-30","2018-05-31","2018-06-01","2018-06-02"]
[null,null,{"$f":"IF(WEEKDAY(Kalendripäev)=NädalaAlguseVäärtus,CONCATENATE(\"Nädal \",WEEKNUM(Kalendripäev),\"/Päev \",,Kalendripäev-DATE(YEAR(Kalendripäev),1,0)),CONCATENATE(\"Päev \",Kalendripäev-DATE(YEAR(Kalendripäev),1,0)))","v":"Nädal 22/Päev 147"},{"$f":"IF(WEEKDAY(Kalendripäev)=NädalaAlguseVäärtus,CONCATENATE(\"Nädal \",WEEKNUM(Kalendripäev),\"/Päev \",,Kalendripäev-DATE(YEAR(Kalendripäev),1,0)),CONCATENATE(\"Päev \",Kalendripäev-DATE(YEAR(Kalendripäev),1,0)))","v":"Päev 148"},{"$f":"IF(WEEKDAY(Kalendripäev)=NädalaAlguseVäärtus,CONCATENATE(\"Nädal \",WEEKNUM(Kalendripäev),\"/Päev \",,Kalendripäev-DATE(YEAR(Kalendripäev),1,0)),CONCATENATE(\"Päev \",Kalendripäev-DATE(YEAR(Kalendripäev),1,0)))","v":"Päev 149"},{"$f":"IF(WEEKDAY(Kalendripäev)=NädalaAlguseVäärtus,CONCATENATE(\"Nädal \",WEEKNUM(Kalendripäev),\"/Päev \",,Kalendripäev-DATE(YEAR(Kalendripäev),1,0)),CONCATENATE(\"Päev \",Kalendripäev-DATE(YEAR(Kalendripäev),1,0)))","v":"Päev 150"},{"$f":"IF(WEEKDAY(Kalendripäev)=NädalaAlguseVäärtus,CONCATENATE(\"Nädal \",WEEKNUM(Kalendripäev),\"/Päev \",,Kalendripäev-DATE(YEAR(Kalendripäev),1,0)),CONCATENATE(\"Päev \",Kalendripäev-DATE(YEAR(Kalendripäev),1,0)))","v":"Päev 151"},{"$f":"IF(WEEKDAY(Kalendripäev)=NädalaAlguseVäärtus,CONCATENATE(\"Nädal \",WEEKNUM(Kalendripäev),\"/Päev \",,Kalendripäev-DATE(YEAR(Kalendripäev),1,0)),CONCATENATE(\"Päev \",Kalendripäev-DATE(YEAR(Kalendripäev),1,0)))","v":"Päev 152"},{"$f":"IF(WEEKDAY(Kalendripäev)=NädalaAlguseVäärtus,CONCATENATE(\"Nädal \",WEEKNUM(Kalendripäev),\"/Päev \",,Kalendripäev-DATE(YEAR(Kalendripäev),1,0)),CONCATENATE(\"Päev \",Kalendripäev-DATE(YEAR(Kalendripäev),1,0)))","v":"Päev 153"}]
[{"$nulls":4},"MÄRKMED"]
[]
[null,null,{"$f":"PäevadJaNädalad+DATE(Kalendriaasta,5,1)-WEEKDAY(DATE(Kalendriaasta,5,1),(NädalaAlgus=\"E\")+1)+36","v":"2018-06-03"},"2018-06-04"]
[null,null,{"$f":"IF(WEEKDAY(Kalendripäev)=NädalaAlguseVäärtus,CONCATENATE(\"Nädal \",WEEKNUM(Kalendripäev),\"/Päev \",,Kalendripäev-DATE(YEAR(Kalendripäev),1,0)),CONCATENATE(\"Päev \",Kalendripäev-DATE(YEAR(Kalendripäev),1,0)))","v":"Nädal 23/Päev 154"},{"$f":"IF(WEEKDAY(Kalendripäev)=NädalaAlguseVäärtus,CONCATENATE(\"Nädal \",WEEKNUM(Kalendripäev),\"/Päev \",,Kalendripäev-DATE(YEAR(Kalendripäev),1,0)),CONCATENATE(\"Päev \",Kalendripäev-DATE(YEAR(Kalendripäev),1,0)))","v":"Päev 155"}]

{"sheet":"JUUNI","index":5,"n_rows":20,"n_cols":9,"rows_kept":20,"merged":[[16,2,17,2],[17,4,19,8]]}
[null,"JUUNI",{"$f":"UPPER(TEXT(NädalaAlgus,\"ddd\"))","v":"P"},{"$f":"UPPER(TEXT(D3,\"ddd\"))","v":"E"},"T","K","N","R","L"]
[null,{"$f":"Kalendriaasta","v":2018}]
[null,null,{"$f":"PäevadJaNädalad+DATE(Kalendriaasta,6,1)-WEEKDAY(DATE(Kalendriaasta,6,1),(NädalaAlgus=\"E\")+1)+1","v":"2018-05-27"},"2018-05-28","2018-05-29","2018-05-30","2018-05-31","2018-06-01","2018-06-02"]
[null,null,{"$f":"IF(DAY(Kalendripäev)=1,CONCATENATE(\"Nädal \",WEEKNUM(Kalendripäev),\"/Päev \",,Kalendripäev-DATE(YEAR(Kalendripäev),1,0)),CONCATENATE(\"Päev \",Kalendripäev-DATE(YEAR(Kalendripäev),1,0)))","v":"Päev 147"},{"$f":"IF(DAY(Kalendripäev)=1,CONCATENATE(\"Nädal \",WEEKNUM(Kalendripäev),\"/Päev \",,Kalendripäev-DATE(YEAR(Kalendripäev),1,0)),CONCATENATE(\"Päev \",Kalendripäev-DATE(YEAR(Kalendripäev),1,0)))","v":"Päev 148"},{"$f":"IF(DAY(Kalendripäev)=1,CONCATENATE(\"Nädal \",WEEKNUM(Kalendripäev),\"/Päev \",,Kalendripäev-DATE(YEAR(Kalendripäev),1,0)),CONCATENATE(\"Päev \",Kalendripäev-DATE(YEAR(Kalendripäev),1,0)))","v":"Päev 149"},{"$f":"IF(DAY(Kalendripäev)=1,CONCATENATE(\"Nädal \",WEEKNUM(Kalendripäev),\"/Päev \",,Kalendripäev-DATE(YEAR(Kalendripäev),1,0)),CONCATENATE(\"Päev \",Kalendripäev-DATE(YEAR(Kalendripäev),1,0)))","v":"Päev 150"},{"$f":"IF(DAY(Kalendripäev)=1,CONCATENATE(\"Nädal \",WEEKNUM(Kalendripäev),\"/Päev \",,Kalendripäev-DATE(YEAR(Kalendripäev),1,0)),CONCATENATE(\"Päev \",Kalendripäev-DATE(YEAR(Kalendripäev),1,0)))","v":"Päev 151"},{"$f":"IF(DAY(Kalendripäev)=1,CONCATENATE(\"Nädal \",WEEKNUM(Kalendripäev),\"/Päev \",,Kalendripäev-DATE(YEAR(Kalendripäev),1,0)),CONCATENATE(\"Päev \",Kalendripäev-DATE(YEAR(Kalendripäev),1,0)))","v":"Nädal 22/Päev 152"},{"$f":"IF(DAY(Kalendripäev)=1,CONCATENATE(\"Nädal \",WEEKNUM(Kalendripäev),\"/Päev \",,Kalendripäev-DATE(YEAR(Kalendripäev),1,0)),CONCATENATE(\"Päev \",Kalendripäev-DATE(YEAR(Kalendripäev),1,0)))","v":"Päev 153"}]
[]
[null,null,{"$f":"PäevadJaNädalad+DATE(Kalendriaasta,6,1)-WEEKDAY(DATE(Kalendriaasta,6,1),(NädalaAlgus=\"E\")+1)+8","v":"2018-06-03"},"2018-06-04","2018-06-05","2018-06-06","2018-06-07","2018-06-08","2018-06-09"]
[null,null,{"$f":"IF(WEEKDAY(Kalendripäev)=NädalaAlguseVäärtus,CONCATENATE(\"Nädal \",WEEKNUM(Kalendripäev),\"/Päev \",,Kalendripäev-DATE(YEAR(Kalendripäev),1,0)),CONCATENATE(\"Päev \",Kalendripäev-DATE(YEAR(Kalendripäev),1,0)))","v":"Nädal 23/Päev 154"},{"$f":"IF(WEEKDAY(Kalendripäev)=NädalaAlguseVäärtus,CONCATENATE(\"Nädal \",WEEKNUM(Kalendripäev),\"/Päev \",,Kalendripäev-DATE(YEAR(Kalendripäev),1,0)),CONCATENATE(\"Päev \",Kalendripäev-DATE(YEAR(Kalendripäev),1,0)))","v":"Päev 155"},{"$f":"IF(WEEKDAY(Kalendripäev)=NädalaAlguseVäärtus,CONCATENATE(\"Nädal \",WEEKNUM(Kalendripäev),\"/Päev \",,Kalendripäev-DATE(YEAR(Kalendripäev),1,0)),CONCATENATE(\"Päev \",Kalendripäev-DATE(YEAR(Kalendripäev),1,0)))","v":"Päev 156"},{"$f":"IF(WEEKDAY(Kalendripäev)=NädalaAlguseVäärtus,CONCATENATE(\"Nädal \",WEEKNUM(Kalendripäev),\"/Päev \",,Kalendripäev-DATE(YEAR(Kalendripäev),1,0)),CONCATENATE(\"Päev \",Kalendripäev-DATE(YEAR(Kalendripäev),1,0)))","v":"Päev 157"},{"$f":"IF(WEEKDAY(Kalendripäev)=NädalaAlguseVäärtus,CONCATENATE(\"Nädal \",WEEKNUM(Kalendripäev),\"/Päev \",,Kalendripäev-DATE(YEAR(Kalendripäev),1,0)),CONCATENATE(\"Päev \",Kalendripäev-DATE(YEAR(Kalendripäev),1,0)))","v":"Päev 158"},{"$f":"IF(WEEKDAY(Kalendripäev)=NädalaAlguseVäärtus,CONCATENATE(\"Nädal \",WEEKNUM(Kalendripäev),\"/Päev \",,Kalendripäev-DATE(YEAR(Kalendripäev),1,0)),CONCATENATE(\"Päev \",Kalendripäev-DATE(YEAR(Kalendripäev),1,0)))","v":"Päev 159"},{"$f":"IF(WEEKDAY(Kalendripäev)=NädalaAlguseVäärtus,CONCATENATE(\"Nädal \",WEEKNUM(Kalendripäev),\"/Päev \",,Kalendripäev-DATE(YEAR(Kalendripäev),1,0)),CONCATENATE(\"Päev \",Kalendripäev-DATE(YEAR(Kalendripäev),1,0)))","v":"Päev 160"}]
[]
[null,null,{"$f":"PäevadJaNädalad+DATE(Kalendriaasta,6,1)-WEEKDAY(DATE(Kalendriaasta,6,1),(NädalaAlgus=\"E\")+1)+15","v":"2018-06-10"},"2018-06-11","2018-06-12","2018-06-13","2018-06-14","2018-06-15","2018-06-16"]
[null,null,{"$f":"IF(WEEKDAY(Kalendripäev)=NädalaAlguseVäärtus,CONCATENATE(\"Nädal \",WEEKNUM(Kalendripäev),\"/Päev \",,Kalendripäev-DATE(YEAR(Kalendripäev),1,0)),CONCATENATE(\"Päev \",Kalendripäev-DATE(YEAR(Kalendripäev),1,0)))","v":"Nädal 24/Päev 161"},{"$f":"IF(WEEKDAY(Kalendripäev)=NädalaAlguseVäärtus,CONCATENATE(\"Nädal \",WEEKNUM(Kalendripäev),\"/Päev \",,Kalendripäev-DATE(YEAR(Kalendripäev),1,0)),CONCATENATE(\"Päev \",Kalendripäev-DATE(YEAR(Kalendripäev),1,0)))","v":"Päev 162"},{"$f":"IF(WEEKDAY(Kalendripäev)=NädalaAlguseVäärtus,CONCATENATE(\"Nädal \",WEEKNUM(Kalendripäev),\"/Päev \",,Kalendripäev-DATE(YEAR(Kalendripäev),1,0)),CONCATENATE(\"Päev \",Kalendripäev-DATE(YEAR(Kalendripäev),1,0)))","v":"Päev 163"},{"$f":"IF(WEEKDAY(Kalendripäev)=NädalaAlguseVäärtus,CONCATENATE(\"Nädal \",WEEKNUM(Kalendripäev),\"/Päev \",,Kalendripäev-DATE(YEAR(Kalendripäev),1,0)),CONCATENATE(\"Päev \",Kalendripäev-DATE(YEAR(Kalendripäev),1,0)))","v":"Päev 164"},{"$f":"IF(WEEKDAY(Kalendripäev)=NädalaAlguseVäärtus,CONCATENATE(\"Nädal \",WEEKNUM(Kalendripäev),\"/Päev \",,Kalendripäev-DATE(YEAR(Kalendripäev),1,0)),CONCATENATE(\"Päev \",Kalendripäev-DATE(YEAR(Kalendripäev),1,0)))","v":"Päev 165"},{"$f":"IF(WEEKDAY(Kalendripäev)=NädalaAlguseVäärtus,CONCATENATE(\"Nädal \",WEEKNUM(Kalendripäev),\"/Päev \",,Kalendripäev-DATE(YEAR(Kalendripäev),1,0)),CONCATENATE(\"Päev \",Kalendripäev-DATE(YEAR(Kalendripäev),1,0)))","v":"Päev 166"},{"$f":"IF(WEEKDAY(Kalendripäev)=NädalaAlguseVäärtus,CONCATENATE(\"Nädal \",WEEKNUM(Kalendripäev),\"/Päev \",,Kalendripäev-DATE(YEAR(Kalendripäev),1,0)),CONCATENATE(\"Päev \",Kalendripäev-DATE(YEAR(Kalendripäev),1,0)))","v":"Päev 167"}]
[]
[null,null,{"$f":"PäevadJaNädalad+DATE(Kalendriaasta,6,1)-WEEKDAY(DATE(Kalendriaasta,6,1),(NädalaAlgus=\"E\")+1)+22","v":"2018-06-17"},"2018-06-18","2018-06-19","2018-06-20","2018-06-21","2018-06-22","2018-06-23"]
[null,null,{"$f":"IF(WEEKDAY(Kalendripäev)=NädalaAlguseVäärtus,CONCATENATE(\"Nädal \",WEEKNUM(Kalendripäev),\"/Päev \",,Kalendripäev-DATE(YEAR(Kalendripäev),1,0)),CONCATENATE(\"Päev \",Kalendripäev-DATE(YEAR(Kalendripäev),1,0)))","v":"Nädal 25/Päev 168"},{"$f":"IF(WEEKDAY(Kalendripäev)=NädalaAlguseVäärtus,CONCATENATE(\"Nädal \",WEEKNUM(Kalendripäev),\"/Päev \",,Kalendripäev-DATE(YEAR(Kalendripäev),1,0)),CONCATENATE(\"Päev \",Kalendripäev-DATE(YEAR(Kalendripäev),1,0)))","v":"Päev 169"},{"$f":"IF(WEEKDAY(Kalendripäev)=NädalaAlguseVäärtus,CONCATENATE(\"Nädal \",WEEKNUM(Kalendripäev),\"/Päev \",,Kalendripäev-DATE(YEAR(Kalendripäev),1,0)),CONCATENATE(\"Päev \",Kalendripäev-DATE(YEAR(Kalendripäev),1,0)))","v":"Päev 170"},{"$f":"IF(WEEKDAY(Kalendripäev)=NädalaAlguseVäärtus,CONCATENATE(\"Nädal \",WEEKNUM(Kalendripäev),\"/Päev \",,Kalendripäev-DATE(YEAR(Kalendripäev),1,0)),CONCATENATE(\"Päev \",Kalendripäev-DATE(YEAR(Kalendripäev),1,0)))","v":"Päev 171"},{"$f":"IF(WEEKDAY(Kalendripäev)=NädalaAlguseVäärtus,CONCATENATE(\"Nädal \",WEEKNUM(Kalendripäev),\"/Päev \",,Kalendripäev-DATE(YEAR(Kalendripäev),1,0)),CONCATENATE(\"Päev \",Kalendripäev-DATE(YEAR(Kalendripäev),1,0)))","v":"Päev 172"},{"$f":"IF(WEEKDAY(Kalendripäev)=NädalaAlguseVäärtus,CONCATENATE(\"Nädal \",WEEKNUM(Kalendripäev),\"/Päev \",,Kalendripäev-DATE(YEAR(Kalendripäev),1,0)),CONCATENATE(\"Päev \",Kalendripäev-DATE(YEAR(Kalendripäev),1,0)))","v":"Päev 173"},{"$f":"IF(WEEKDAY(Kalendripäev)=NädalaAlguseVäärtus,CONCATENATE(\"Nädal \",WEEKNUM(Kalendripäev),\"/Päev \",,Kalendripäev-DATE(YEAR(Kalendripäev),1,0)),CONCATENATE(\"Päev \",Kalendripäev-DATE(YEAR(Kalendripäev),1,0)))","v":"Päev 174"}]
[]
[null,null,{"$f":"PäevadJaNädalad+DATE(Kalendriaasta,6,1)-WEEKDAY(DATE(Kalendriaasta,6,1),(NädalaAlgus=\"E\")+1)+29","v":"2018-06-24"},"2018-06-25","2018-06-26","2018-06-27","2018-06-28","2018-06-29","2018-06-30"]
[null,null,{"$f":"IF(WEEKDAY(Kalendripäev)=NädalaAlguseVäärtus,CONCATENATE(\"Nädal \",WEEKNUM(Kalendripäev),\"/Päev \",,Kalendripäev-DATE(YEAR(Kalendripäev),1,0)),CONCATENATE(\"Päev \",Kalendripäev-DATE(YEAR(Kalendripäev),1,0)))","v":"Nädal 26/Päev 175"},{"$f":"IF(WEEKDAY(Kalendripäev)=NädalaAlguseVäärtus,CONCATENATE(\"Nädal \",WEEKNUM(Kalendripäev),\"/Päev \",,Kalendripäev-DATE(YEAR(Kalendripäev),1,0)),CONCATENATE(\"Päev \",Kalendripäev-DATE(YEAR(Kalendripäev),1,0)))","v":"Päev 176"},{"$f":"IF(WEEKDAY(Kalendripäev)=NädalaAlguseVäärtus,CONCATENATE(\"Nädal \",WEEKNUM(Kalendripäev),\"/Päev \",,Kalendripäev-DATE(YEAR(Kalendripäev),1,0)),CONCATENATE(\"Päev \",Kalendripäev-DATE(YEAR(Kalendripäev),1,0)))","v":"Päev 177"},{"$f":"IF(WEEKDAY(Kalendripäev)=NädalaAlguseVäärtus,CONCATENATE(\"Nädal \",WEEKNUM(Kalendripäev),\"/Päev \",,Kalendripäev-DATE(YEAR(Kalendripäev),1,0)),CONCATENATE(\"Päev \",Kalendripäev-DATE(YEAR(Kalendripäev),1,0)))","v":"Päev 178"},{"$f":"IF(WEEKDAY(Kalendripäev)=NädalaAlguseVäärtus,CONCATENATE(\"Nädal \",WEEKNUM(Kalendripäev),\"/Päev \",,Kalendripäev-DATE(YEAR(Kalendripäev),1,0)),CONCATENATE(\"Päev \",Kalendripäev-DATE(YEAR(Kalendripäev),1,0)))","v":"Päev 179"},{"$f":"IF(WEEKDAY(Kalendripäev)=NädalaAlguseVäärtus,CONCATENATE(\"Nädal \",WEEKNUM(Kalendripäev),\"/Päev \",,Kalendripäev-DATE(YEAR(Kalendripäev),1,0)),CONCATENATE(\"Päev \",Kalendripäev-DATE(YEAR(Kalendripäev),1,0)))","v":"Päev 180"},{"$f":"IF(WEEKDAY(Kalendripäev)=NädalaAlguseVäärtus,CONCATENATE(\"Nädal \",WEEKNUM(Kalendripäev),\"/Päev \",,Kalendripäev-DATE(YEAR(Kalendripäev),1,0)),CONCATENATE(\"Päev \",Kalendripäev-DATE(YEAR(Kalendripäev),1,0)))","v":"Päev 181"}]
[{"$nulls":4},"MÄRKMED"]
[]
[null,null,{"$f":"PäevadJaNädalad+DATE(Kalendriaasta,6,1)-WEEKDAY(DATE(Kalendriaasta,6,1),(NädalaAlgus=\"E\")+1)+36","v":"2018-07-01"},"2018-07-02"]
[null,null,{"$f":"IF(WEEKDAY(Kalendripäev)=NädalaAlguseVäärtus,CONCATENATE(\"Nädal \",WEEKNUM(Kalendripäev),\"/Päev \",,Kalendripäev-DATE(YEAR(Kalendripäev),1,0)),CONCATENATE(\"Päev \",Kalendripäev-DATE(YEAR(Kalendripäev),1,0)))","v":"Nädal 27/Päev 182"},{"$f":"IF(WEEKDAY(Kalendripäev)=NädalaAlguseVäärtus,CONCATENATE(\"Nädal \",WEEKNUM(Kalendripäev),\"/Päev \",,Kalendripäev-DATE(YEAR(Kalendripäev),1,0)),CONCATENATE(\"Päev \",Kalendripäev-DATE(YEAR(Kalendripäev),1,0)))","v":"Päev 183"}]

{"sheet":"JUULI","index":6,"n_rows":20,"n_cols":9,"rows_kept":20,"merged":[[16,2,17,2],[17,4,19,8]]}
[null,"JUULI",{"$f":"UPPER(TEXT(NädalaAlgus,\"ddd\"))","v":"P"},{"$f":"UPPER(TEXT(D3,\"ddd\"))","v":"E"},"T","K","N","R","L"]
[null,{"$f":"Kalendriaasta","v":2018}]
[null,null,{"$f":"PäevadJaNädalad+DATE(Kalendriaasta,7,1)-WEEKDAY(DATE(Kalendriaasta,7,1),(NädalaAlgus=\"E\")+1)+1","v":"2018-07-01"},"2018-07-02","2018-07-03","2018-07-04","2018-07-05","2018-07-06","2018-07-07"]
[null,null,{"$f":"IF(DAY(Kalendripäev)=1,CONCATENATE(\"Nädal \",WEEKNUM(Kalendripäev),\"/Päev \",,Kalendripäev-DATE(YEAR(Kalendripäev),1,0)),CONCATENATE(\"Päev \",Kalendripäev-DATE(YEAR(Kalendripäev),1,0)))","v":"Nädal 27/Päev 182"},{"$f":"IF(DAY(Kalendripäev)=1,CONCATENATE(\"Nädal \",WEEKNUM(Kalendripäev),\"/Päev \",,Kalendripäev-DATE(YEAR(Kalendripäev),1,0)),CONCATENATE(\"Päev \",Kalendripäev-DATE(YEAR(Kalendripäev),1,0)))","v":"Päev 183"},{"$f":"IF(DAY(Kalendripäev)=1,CONCATENATE(\"Nädal \",WEEKNUM(Kalendripäev),\"/Päev \",,Kalendripäev-DATE(YEAR(Kalendripäev),1,0)),CONCATENATE(\"Päev \",Kalendripäev-DATE(YEAR(Kalendripäev),1,0)))","v":"Päev 184"},{"$f":"IF(DAY(Kalendripäev)=1,CONCATENATE(\"Nädal \",WEEKNUM(Kalendripäev),\"/Päev \",,Kalendripäev-DATE(YEAR(Kalendripäev),1,0)),CONCATENATE(\"Päev \",Kalendripäev-DATE(YEAR(Kalendripäev),1,0)))","v":"Päev 185"},{"$f":"IF(DAY(Kalendripäev)=1,CONCATENATE(\"Nädal \",WEEKNUM(Kalendripäev),\"/Päev \",,Kalendripäev-DATE(YEAR(Kalendripäev),1,0)),CONCATENATE(\"Päev \",Kalendripäev-DATE(YEAR(Kalendripäev),1,0)))","v":"Päev 186"},{"$f":"IF(DAY(Kalendripäev)=1,CONCATENATE(\"Nädal \",WEEKNUM(Kalendripäev),\"/Päev \",,Kalendripäev-DATE(YEAR(Kalendripäev),1,0)),CONCATENATE(\"Päev \",Kalendripäev-DATE(YEAR(Kalendripäev),1,0)))","v":"Päev 187"},{"$f":"IF(DAY(Kalendripäev)=1,CONCATENATE(\"Nädal \",WEEKNUM(Kalendripäev),\"/Päev \",,Kalendripäev-DATE(YEAR(Kalendripäev),1,0)),CONCATENATE(\"Päev \",Kalendripäev-DATE(YEAR(Kalendripäev),1,0)))","v":"Päev 188"}]
[]
[null,null,{"$f":"PäevadJaNädalad+DATE(Kalendriaasta,7,1)-WEEKDAY(DATE(Kalendriaasta,7,1),(NädalaAlgus=\"E\")+1)+8","v":"2018-07-08"},"2018-07-09","2018-07-10","2018-07-11","2018-07-12","2018-07-13","2018-07-14"]
[null,null,{"$f":"IF(WEEKDAY(Kalendripäev)=NädalaAlguseVäärtus,CONCATENATE(\"Nädal \",WEEKNUM(Kalendripäev),\"/Päev \",,Kalendripäev-DATE(YEAR(Kalendripäev),1,0)),CONCATENATE(\"Päev \",Kalendripäev-DATE(YEAR(Kalendripäev),1,0)))","v":"Nädal 28/Päev 189"},{"$f":"IF(WEEKDAY(Kalendripäev)=NädalaAlguseVäärtus,CONCATENATE(\"Nädal \",WEEKNUM(Kalendripäev),\"/Päev \",,Kalendripäev-DATE(YEAR(Kalendripäev),1,0)),CONCATENATE(\"Päev \",Kalendripäev-DATE(YEAR(Kalendripäev),1,0)))","v":"Päev 190"},{"$f":"IF(WEEKDAY(Kalendripäev)=NädalaAlguseVäärtus,CONCATENATE(\"Nädal \",WEEKNUM(Kalendripäev),\"/Päev \",,Kalendripäev-DATE(YEAR(Kalendripäev),1,0)),CONCATENATE(\"Päev \",Kalendripäev-DATE(YEAR(Kalendripäev),1,0)))","v":"Päev 191"},{"$f":"IF(WEEKDAY(Kalendripäev)=NädalaAlguseVäärtus,CONCATENATE(\"Nädal \",WEEKNUM(Kalendripäev),\"/Päev \",,Kalendripäev-DATE(YEAR(Kalendripäev),1,0)),CONCATENATE(\"Päev \",Kalendripäev-DATE(YEAR(Kalendripäev),1,0)))","v":"Päev 192"},{"$f":"IF(WEEKDAY(Kalendripäev)=NädalaAlguseVäärtus,CONCATENATE(\"Nädal \",WEEKNUM(Kalendripäev),\"/Päev \",,Kalendripäev-DATE(YEAR(Kalendripäev),1,0)),CONCATENATE(\"Päev \",Kalendripäev-DATE(YEAR(Kalendripäev),1,0)))","v":"Päev 193"},{"$f":"IF(WEEKDAY(Kalendripäev)=NädalaAlguseVäärtus,CONCATENATE(\"Nädal \",WEEKNUM(Kalendripäev),\"/Päev \",,Kalendripäev-DATE(YEAR(Kalendripäev),1,0)),CONCATENATE(\"Päev \",Kalendripäev-DATE(YEAR(Kalendripäev),1,0)))","v":"Päev 194"},{"$f":"IF(WEEKDAY(Kalendripäev)=NädalaAlguseVäärtus,CONCATENATE(\"Nädal \",WEEKNUM(Kalendripäev),\"/Päev \",,Kalendripäev-DATE(YEAR(Kalendripäev),1,0)),CONCATENATE(\"Päev \",Kalendripäev-DATE(YEAR(Kalendripäev),1,0)))","v":"Päev 195"}]
[]
[null,null,{"$f":"PäevadJaNädalad+DATE(Kalendriaasta,7,1)-WEEKDAY(DATE(Kalendriaasta,7,1),(NädalaAlgus=\"E\")+1)+15","v":"2018-07-15"},"2018-07-16","2018-07-17","2018-07-18","2018-07-19","2018-07-20","2018-07-21"]
[null,null,{"$f":"IF(WEEKDAY(Kalendripäev)=NädalaAlguseVäärtus,CONCATENATE(\"Nädal \",WEEKNUM(Kalendripäev),\"/Päev \",,Kalendripäev-DATE(YEAR(Kalendripäev),1,0)),CONCATENATE(\"Päev \",Kalendripäev-DATE(YEAR(Kalendripäev),1,0)))","v":"Nädal 29/Päev 196"},{"$f":"IF(WEEKDAY(Kalendripäev)=NädalaAlguseVäärtus,CONCATENATE(\"Nädal \",WEEKNUM(Kalendripäev),\"/Päev \",,Kalendripäev-DATE(YEAR(Kalendripäev),1,0)),CONCATENATE(\"Päev \",Kalendripäev-DATE(YEAR(Kalendripäev),1,0)))","v":"Päev 197"},{"$f":"IF(WEEKDAY(Kalendripäev)=NädalaAlguseVäärtus,CONCATENATE(\"Nädal \",WEEKNUM(Kalendripäev),\"/Päev \",,Kalendripäev-DATE(YEAR(Kalendripäev),1,0)),CONCATENATE(\"Päev \",Kalendripäev-DATE(YEAR(Kalendripäev),1,0)))","v":"Päev 198"},{"$f":"IF(WEEKDAY(Kalendripäev)=NädalaAlguseVäärtus,CONCATENATE(\"Nädal \",WEEKNUM(Kalendripäev),\"/Päev \",,Kalendripäev-DATE(YEAR(Kalendripäev),1,0)),CONCATENATE(\"Päev \",Kalendripäev-DATE(YEAR(Kalendripäev),1,0)))","v":"Päev 199"},{"$f":"IF(WEEKDAY(Kalendripäev)=NädalaAlguseVäärtus,CONCATENATE(\"Nädal \",WEEKNUM(Kalendripäev),\"/Päev \",,Kalendripäev-DATE(YEAR(Kalendripäev),1,0)),CONCATENATE(\"Päev \",Kalendripäev-DATE(YEAR(Kalendripäev),1,0)))","v":"Päev 200"},{"$f":"IF(WEEKDAY(Kalendripäev)=NädalaAlguseVäärtus,CONCATENATE(\"Nädal \",WEEKNUM(Kalendripäev),\"/Päev \",,Kalendripäev-DATE(YEAR(Kalendripäev),1,0)),CONCATENATE(\"Päev \",Kalendripäev-DATE(YEAR(Kalendripäev),1,0)))","v":"Päev 201"},{"$f":"IF(WEEKDAY(Kalendripäev)=NädalaAlguseVäärtus,CONCATENATE(\"Nädal \",WEEKNUM(Kalendripäev),\"/Päev \",,Kalendripäev-DATE(YEAR(Kalendripäev),1,0)),CONCATENATE(\"Päev \",Kalendripäev-DATE(YEAR(Kalendripäev),1,0)))","v":"Päev 202"}]
[]
[null,null,{"$f":"PäevadJaNädalad+DATE(Kalendriaasta,7,1)-WEEKDAY(DATE(Kalendriaasta,7,1),(NädalaAlgus=\"E\")+1)+22","v":"2018-07-22"},"2018-07-23","2018-07-24","2018-07-25","2018-07-26","2018-07-27","2018-07-28"]
[null,null,{"$f":"IF(WEEKDAY(Kalendripäev)=NädalaAlguseVäärtus,CONCATENATE(\"Nädal \",WEEKNUM(Kalendripäev),\"/Päev \",,Kalendripäev-DATE(YEAR(Kalendripäev),1,0)),CONCATENATE(\"Päev \",Kalendripäev-DATE(YEAR(Kalendripäev),1,0)))","v":"Nädal 30/Päev 203"},{"$f":"IF(WEEKDAY(Kalendripäev)=NädalaAlguseVäärtus,CONCATENATE(\"Nädal \",WEEKNUM(Kalendripäev),\"/Päev \",,Kalendripäev-DATE(YEAR(Kalendripäev),1,0)),CONCATENATE(\"Päev \",Kalendripäev-DATE(YEAR(Kalendripäev),1,0)))","v":"Päev 204"},{"$f":"IF(WEEKDAY(Kalendripäev)=NädalaAlguseVäärtus,CONCATENATE(\"Nädal \",WEEKNUM(Kalendripäev),\"/Päev \",,Kalendripäev-DATE(YEAR(Kalendripäev),1,0)),CONCATENATE(\"Päev \",Kalendripäev-DATE(YEAR(Kalendripäev),1,0)))","v":"Päev 205"},{"$f":"IF(WEEKDAY(Kalendripäev)=NädalaAlguseVäärtus,CONCATENATE(\"Nädal \",WEEKNUM(Kalendripäev),\"/Päev \",,Kalendripäev-DATE(YEAR(Kalendripäev),1,0)),CONCATENATE(\"Päev \",Kalendripäev-DATE(YEAR(Kalendripäev),1,0)))","v":"Päev 206"},{"$f":"IF(WEEKDAY(Kalendripäev)=NädalaAlguseVäärtus,CONCATENATE(\"Nädal \",WEEKNUM(Kalendripäev),\"/Päev \",,Kalendripäev-DATE(YEAR(Kalendripäev),1,0)),CONCATENATE(\"Päev \",Kalendripäev-DATE(YEAR(Kalendripäev),1,0)))","v":"Päev 207"},{"$f":"IF(WEEKDAY(Kalendripäev)=NädalaAlguseVäärtus,CONCATENATE(\"Nädal \",WEEKNUM(Kalendripäev),\"/Päev \",,Kalendripäev-DATE(YEAR(Kalendripäev),1,0)),CONCATENATE(\"Päev \",Kalendripäev-DATE(YEAR(Kalendripäev),1,0)))","v":"Päev 208"},{"$f":"IF(WEEKDAY(Kalendripäev)=NädalaAlguseVäärtus,CONCATENATE(\"Nädal \",WEEKNUM(Kalendripäev),\"/Päev \",,Kalendripäev-DATE(YEAR(Kalendripäev),1,0)),CONCATENATE(\"Päev \",Kalendripäev-DATE(YEAR(Kalendripäev),1,0)))","v":"Päev 209"}]
[]
[null,null,{"$f":"PäevadJaNädalad+DATE(Kalendriaasta,7,1)-WEEKDAY(DATE(Kalendriaasta,7,1),(NädalaAlgus=\"E\")+1)+29","v":"2018-07-29"},"2018-07-30","2018-07-31","2018-08-01","2018-08-02","2018-08-03","2018-08-04"]
[null,null,{"$f":"IF(WEEKDAY(Kalendripäev)=NädalaAlguseVäärtus,CONCATENATE(\"Nädal \",WEEKNUM(Kalendripäev),\"/Päev \",,Kalendripäev-DATE(YEAR(Kalendripäev),1,0)),CONCATENATE(\"Päev \",Kalendripäev-DATE(YEAR(Kalendripäev),1,0)))","v":"Nädal 31/Päev 210"},{"$f":"IF(WEEKDAY(Kalendripäev)=NädalaAlguseVäärtus,CONCATENATE(\"Nädal \",WEEKNUM(Kalendripäev),\"/Päev \",,Kalendripäev-DATE(YEAR(Kalendripäev),1,0)),CONCATENATE(\"Päev \",Kalendripäev-DATE(YEAR(Kalendripäev),1,0)))","v":"Päev 211"},{"$f":"IF(WEEKDAY(Kalendripäev)=NädalaAlguseVäärtus,CONCATENATE(\"Nädal \",WEEKNUM(Kalendripäev),\"/Päev \",,Kalendripäev-DATE(YEAR(Kalendripäev),1,0)),CONCATENATE(\"Päev \",Kalendripäev-DATE(YEAR(Kalendripäev),1,0)))","v":"Päev 212"},{"$f":"IF(WEEKDAY(Kalendripäev)=NädalaAlguseVäärtus,CONCATENATE(\"Nädal \",WEEKNUM(Kalendripäev),\"/Päev \",,Kalendripäev-DATE(YEAR(Kalendripäev),1,0)),CONCATENATE(\"Päev \",Kalendripäev-DATE(YEAR(Kalendripäev),1,0)))","v":"Päev 213"},{"$f":"IF(WEEKDAY(Kalendripäev)=NädalaAlguseVäärtus,CONCATENATE(\"Nädal \",WEEKNUM(Kalendripäev),\"/Päev \",,Kalendripäev-DATE(YEAR(Kalendripäev),1,0)),CONCATENATE(\"Päev \",Kalendripäev-DATE(YEAR(Kalendripäev),1,0)))","v":"Päev 214"},{"$f":"IF(WEEKDAY(Kalendripäev)=NädalaAlguseVäärtus,CONCATENATE(\"Nädal \",WEEKNUM(Kalendripäev),\"/Päev \",,Kalendripäev-DATE(YEAR(Kalendripäev),1,0)),CONCATENATE(\"Päev \",Kalendripäev-DATE(YEAR(Kalendripäev),1,0)))","v":"Päev 215"},{"$f":"IF(WEEKDAY(Kalendripäev)=NädalaAlguseVäärtus,CONCATENATE(\"Nädal \",WEEKNUM(Kalendripäev),\"/Päev \",,Kalendripäev-DATE(YEAR(Kalendripäev),1,0)),CONCATENATE(\"Päev \",Kalendripäev-DATE(YEAR(Kalendripäev),1,0)))","v":"Päev 216"}]
[{"$nulls":4},"MÄRKMED"]
[]
[null,null,{"$f":"PäevadJaNädalad+DATE(Kalendriaasta,7,1)-WEEKDAY(DATE(Kalendriaasta,7,1),(NädalaAlgus=\"E\")+1)+36","v":"2018-08-05"},"2018-08-06"]
[null,null,{"$f":"IF(WEEKDAY(Kalendripäev)=NädalaAlguseVäärtus,CONCATENATE(\"Nädal \",WEEKNUM(Kalendripäev),\"/Päev \",,Kalendripäev-DATE(YEAR(Kalendripäev),1,0)),CONCATENATE(\"Päev \",Kalendripäev-DATE(YEAR(Kalendripäev),1,0)))","v":"Nädal 32/Päev 217"},{"$f":"IF(WEEKDAY(Kalendripäev)=NädalaAlguseVäärtus,CONCATENATE(\"Nädal \",WEEKNUM(Kalendripäev),\"/Päev \",,Kalendripäev-DATE(YEAR(Kalendripäev),1,0)),CONCATENATE(\"Päev \",Kalendripäev-DATE(YEAR(Kalendripäev),1,0)))","v":"Päev 218"}]

{"sheet":"AUG","index":7,"n_rows":20,"n_cols":9,"rows_kept":20,"merged":[[16,2,17,2],[17,4,19,8]]}
[null,"AUG",{"$f":"UPPER(TEXT(NädalaAlgus,\"ddd\"))","v":"P"},{"$f":"UPPER(TEXT(D3,\"ddd\"))","v":"E"},"T","K","N","R","L"]
[null,{"$f":"Kalendriaasta","v":2018}]
[null,null,{"$f":"PäevadJaNädalad+DATE(Kalendriaasta,8,1)-WEEKDAY(DATE(Kalendriaasta,8,1),(NädalaAlgus=\"E\")+1)+1","v":"2018-07-29"},"2018-07-30","2018-07-31","2018-08-01","2018-08-02","2018-08-03","2018-08-04"]
[null,null,{"$f":"IF(DAY(Kalendripäev)=1,CONCATENATE(\"Nädal \",WEEKNUM(Kalendripäev),\"/Päev \",,Kalendripäev-DATE(YEAR(Kalendripäev),1,0)),CONCATENATE(\"Päev \",Kalendripäev-DATE(YEAR(Kalendripäev),1,0)))","v":"Päev 210"},{"$f":"IF(DAY(Kalendripäev)=1,CONCATENATE(\"Nädal \",WEEKNUM(Kalendripäev),\"/Päev \",,Kalendripäev-DATE(YEAR(Kalendripäev),1,0)),CONCATENATE(\"Päev \",Kalendripäev-DATE(YEAR(Kalendripäev),1,0)))","v":"Päev 211"},{"$f":"IF(DAY(Kalendripäev)=1,CONCATENATE(\"Nädal \",WEEKNUM(Kalendripäev),\"/Päev \",,Kalendripäev-DATE(YEAR(Kalendripäev),1,0)),CONCATENATE(\"Päev \",Kalendripäev-DATE(YEAR(Kalendripäev),1,0)))","v":"Päev 212"},{"$f":"IF(DAY(Kalendripäev)=1,CONCATENATE(\"Nädal \",WEEKNUM(Kalendripäev),\"/Päev \",,Kalendripäev-DATE(YEAR(Kalendripäev),1,0)),CONCATENATE(\"Päev \",Kalendripäev-DATE(YEAR(Kalendripäev),1,0)))","v":"Nädal 31/Päev 213"},{"$f":"IF(DAY(Kalendripäev)=1,CONCATENATE(\"Nädal \",WEEKNUM(Kalendripäev),\"/Päev \",,Kalendripäev-DATE(YEAR(Kalendripäev),1,0)),CONCATENATE(\"Päev \",Kalendripäev-DATE(YEAR(Kalendripäev),1,0)))","v":"Päev 214"},{"$f":"IF(DAY(Kalendripäev)=1,CONCATENATE(\"Nädal \",WEEKNUM(Kalendripäev),\"/Päev \",,Kalendripäev-DATE(YEAR(Kalendripäev),1,0)),CONCATENATE(\"Päev \",Kalendripäev-DATE(YEAR(Kalendripäev),1,0)))","v":"Päev 215"},{"$f":"IF(DAY(Kalendripäev)=1,CONCATENATE(\"Nädal \",WEEKNUM(Kalendripäev),\"/Päev \",,Kalendripäev-DATE(YEAR(Kalendripäev),1,0)),CONCATENATE(\"Päev \",Kalendripäev-DATE(YEAR(Kalendripäev),1,0)))","v":"Päev 216"}]
[]
[null,null,{"$f":"PäevadJaNädalad+DATE(Kalendriaasta,8,1)-WEEKDAY(DATE(Kalendriaasta,8,1),(NädalaAlgus=\"E\")+1)+8","v":"2018-08-05"},"2018-08-06","2018-08-07","2018-08-08","2018-08-09","2018-08-10","2018-08-11"]
[null,null,{"$f":"IF(WEEKDAY(Kalendripäev)=NädalaAlguseVäärtus,CONCATENATE(\"Nädal \",WEEKNUM(Kalendripäev),\"/Päev \",,Kalendripäev-DATE(YEAR(Kalendripäev),1,0)),CONCATENATE(\"Päev \",Kalendripäev-DATE(YEAR(Kalendripäev),1,0)))","v":"Nädal 32/Päev 217"},{"$f":"IF(WEEKDAY(Kalendripäev)=NädalaAlguseVäärtus,CONCATENATE(\"Nädal \",WEEKNUM(Kalendripäev),\"/Päev \",,Kalendripäev-DATE(YEAR(Kalendripäev),1,0)),CONCATENATE(\"Päev \",Kalendripäev-DATE(YEAR(Kalendripäev),1,0)))","v":"Päev 218"},{"$f":"IF(WEEKDAY(Kalendripäev)=NädalaAlguseVäärtus,CONCATENATE(\"Nädal \",WEEKNUM(Kalendripäev),\"/Päev \",,Kalendripäev-DATE(YEAR(Kalendripäev),1,0)),CONCATENATE(\"Päev \",Kalendripäev-DATE(YEAR(Kalendripäev),1,0)))","v":"Päev 219"},{"$f":"IF(WEEKDAY(Kalendripäev)=NädalaAlguseVäärtus,CONCATENATE(\"Nädal \",WEEKNUM(Kalendripäev),\"/Päev \",,Kalendripäev-DATE(YEAR(Kalendripäev),1,0)),CONCATENATE(\"Päev \",Kalendripäev-DATE(YEAR(Kalendripäev),1,0)))","v":"Päev 220"},{"$f":"IF(WEEKDAY(Kalendripäev)=NädalaAlguseVäärtus,CONCATENATE(\"Nädal \",WEEKNUM(Kalendripäev),\"/Päev \",,Kalendripäev-DATE(YEAR(Kalendripäev),1,0)),CONCATENATE(\"Päev \",Kalendripäev-DATE(YEAR(Kalendripäev),1,0)))","v":"Päev 221"},{"$f":"IF(WEEKDAY(Kalendripäev)=NädalaAlguseVäärtus,CONCATENATE(\"Nädal \",WEEKNUM(Kalendripäev),\"/Päev \",,Kalendripäev-DATE(YEAR(Kalendripäev),1,0)),CONCATENATE(\"Päev \",Kalendripäev-DATE(YEAR(Kalendripäev),1,0)))","v":"Päev 222"},{"$f":"IF(WEEKDAY(Kalendripäev)=NädalaAlguseVäärtus,CONCATENATE(\"Nädal \",WEEKNUM(Kalendripäev),\"/Päev \",,Kalendripäev-DATE(YEAR(Kalendripäev),1,0)),CONCATENATE(\"Päev \",Kalendripäev-DATE(YEAR(Kalendripäev),1,0)))","v":"Päev 223"}]
[]
[null,null,{"$f":"PäevadJaNädalad+DATE(Kalendriaasta,8,1)-WEEKDAY(DATE(Kalendriaasta,8,1),(NädalaAlgus=\"E\")+1)+15","v":"2018-08-12"},"2018-08-13","2018-08-14","2018-08-15","2018-08-16","2018-08-17","2018-08-18"]
[null,null,{"$f":"IF(WEEKDAY(Kalendripäev)=NädalaAlguseVäärtus,CONCATENATE(\"Nädal \",WEEKNUM(Kalendripäev),\"/Päev \",,Kalendripäev-DATE(YEAR(Kalendripäev),1,0)),CONCATENATE(\"Päev \",Kalendripäev-DATE(YEAR(Kalendripäev),1,0)))","v":"Nädal 33/Päev 224"},{"$f":"IF(WEEKDAY(Kalendripäev)=NädalaAlguseVäärtus,CONCATENATE(\"Nädal \",WEEKNUM(Kalendripäev),\"/Päev \",,Kalendripäev-DATE(YEAR(Kalendripäev),1,0)),CONCATENATE(\"Päev \",Kalendripäev-DATE(YEAR(Kalendripäev),1,0)))","v":"Päev 225"},{"$f":"IF(WEEKDAY(Kalendripäev)=NädalaAlguseVäärtus,CONCATENATE(\"Nädal \",WEEKNUM(Kalendripäev),\"/Päev \",,Kalendripäev-DATE(YEAR(Kalendripäev),1,0)),CONCATENATE(\"Päev \",Kalendripäev-DATE(YEAR(Kalendripäev),1,0)))","v":"Päev 226"},{"$f":"IF(WEEKDAY(Kalendripäev)=NädalaAlguseVäärtus,CONCATENATE(\"Nädal \",WEEKNUM(Kalendripäev),\"/Päev \",,Kalendripäev-DATE(YEAR(Kalendripäev),1,0)),CONCATENATE(\"Päev \",Kalendripäev-DATE(YEAR(Kalendripäev),1,0)))","v":"Päev 227"},{"$f":"IF(WEEKDAY(Kalendripäev)=NädalaAlguseVäärtus,CONCATENATE(\"Nädal \",WEEKNUM(Kalendripäev),\"/Päev \",,Kalendripäev-DATE(YEAR(Kalendripäev),1,0)),CONCATENATE(\"Päev \",Kalendripäev-DATE(YEAR(Kalendripäev),1,0)))","v":"Päev 228"},{"$f":"IF(WEEKDAY(Kalendripäev)=NädalaAlguseVäärtus,CONCATENATE(\"Nädal \",WEEKNUM(Kalendripäev),\"/Päev \",,Kalendripäev-DATE(YEAR(Kalendripäev),1,0)),CONCATENATE(\"Päev \",Kalendripäev-DATE(YEAR(Kalendripäev),1,0)))","v":"Päev 229"},{"$f":"IF(WEEKDAY(Kalendripäev)=NädalaAlguseVäärtus,CONCATENATE(\"Nädal \",WEEKNUM(Kalendripäev),\"/Päev \",,Kalendripäev-DATE(YEAR(Kalendripäev),1,0)),CONCATENATE(\"Päev \",Kalendripäev-DATE(YEAR(Kalendripäev),1,0)))","v":"Päev 230"}]
[]
[null,null,{"$f":"PäevadJaNädalad+DATE(Kalendriaasta,8,1)-WEEKDAY(DATE(Kalendriaasta,8,1),(NädalaAlgus=\"E\")+1)+22","v":"2018-08-19"},"2018-08-20","2018-08-21","2018-08-22","2018-08-23","2018-08-24","2018-08-25"]
[null,null,{"$f":"IF(WEEKDAY(Kalendripäev)=NädalaAlguseVäärtus,CONCATENATE(\"Nädal \",WEEKNUM(Kalendripäev),\"/Päev \",,Kalendripäev-DATE(YEAR(Kalendripäev),1,0)),CONCATENATE(\"Päev \",Kalendripäev-DATE(YEAR(Kalendripäev),1,0)))","v":"Nädal 34/Päev 231"},{"$f":"IF(WEEKDAY(Kalendripäev)=NädalaAlguseVäärtus,CONCATENATE(\"Nädal \",WEEKNUM(Kalendripäev),\"/Päev \",,Kalendripäev-DATE(YEAR(Kalendripäev),1,0)),CONCATENATE(\"Päev \",Kalendripäev-DATE(YEAR(Kalendripäev),1,0)))","v":"Päev 232"},{"$f":"IF(WEEKDAY(Kalendripäev)=NädalaAlguseVäärtus,CONCATENATE(\"Nädal \",WEEKNUM(Kalendripäev),\"/Päev \",,Kalendripäev-DATE(YEAR(Kalendripäev),1,0)),CONCATENATE(\"Päev \",Kalendripäev-DATE(YEAR(Kalendripäev),1,0)))","v":"Päev 233"},{"$f":"IF(WEEKDAY(Kalendripäev)=NädalaAlguseVäärtus,CONCATENATE(\"Nädal \",WEEKNUM(Kalendripäev),\"/Päev \",,Kalendripäev-DATE(YEAR(Kalendripäev),1,0)),CONCATENATE(\"Päev \",Kalendripäev-DATE(YEAR(Kalendripäev),1,0)))","v":"Päev 234"},{"$f":"IF(WEEKDAY(Kalendripäev)=NädalaAlguseVäärtus,CONCATENATE(\"Nädal \",WEEKNUM(Kalendripäev),\"/Päev \",,Kalendripäev-DATE(YEAR(Kalendripäev),1,0)),CONCATENATE(\"Päev \",Kalendripäev-DATE(YEAR(Kalendripäev),1,0)))","v":"Päev 235"},{"$f":"IF(WEEKDAY(Kalendripäev)=NädalaAlguseVäärtus,CONCATENATE(\"Nädal \",WEEKNUM(Kalendripäev),\"/Päev \",,Kalendripäev-DATE(YEAR(Kalendripäev),1,0)),CONCATENATE(\"Päev \",Kalendripäev-DATE(YEAR(Kalendripäev),1,0)))","v":"Päev 236"},{"$f":"IF(WEEKDAY(Kalendripäev)=NädalaAlguseVäärtus,CONCATENATE(\"Nädal \",WEEKNUM(Kalendripäev),\"/Päev \",,Kalendripäev-DATE(YEAR(Kalendripäev),1,0)),CONCATENATE(\"Päev \",Kalendripäev-DATE(YEAR(Kalendripäev),1,0)))","v":"Päev 237"}]
[]
[null,null,{"$f":"PäevadJaNädalad+DATE(Kalendriaasta,8,1)-WEEKDAY(DATE(Kalendriaasta,8,1),(NädalaAlgus=\"E\")+1)+29","v":"2018-08-26"},"2018-08-27","2018-08-28","2018-08-29","2018-08-30","2018-08-31","2018-09-01"]
[null,null,{"$f":"IF(WEEKDAY(Kalendripäev)=NädalaAlguseVäärtus,CONCATENATE(\"Nädal \",WEEKNUM(Kalendripäev),\"/Päev \",,Kalendripäev-DATE(YEAR(Kalendripäev),1,0)),CONCATENATE(\"Päev \",Kalendripäev-DATE(YEAR(Kalendripäev),1,0)))","v":"Nädal 35/Päev 238"},{"$f":"IF(WEEKDAY(Kalendripäev)=NädalaAlguseVäärtus,CONCATENATE(\"Nädal \",WEEKNUM(Kalendripäev),\"/Päev \",,Kalendripäev-DATE(YEAR(Kalendripäev),1,0)),CONCATENATE(\"Päev \",Kalendripäev-DATE(YEAR(Kalendripäev),1,0)))","v":"Päev 239"},{"$f":"IF(WEEKDAY(Kalendripäev)=NädalaAlguseVäärtus,CONCATENATE(\"Nädal \",WEEKNUM(Kalendripäev),\"/Päev \",,Kalendripäev-DATE(YEAR(Kalendripäev),1,0)),CONCATENATE(\"Päev \",Kalendripäev-DATE(YEAR(Kalendripäev),1,0)))","v":"Päev 240"},{"$f":"IF(WEEKDAY(Kalendripäev)=NädalaAlguseVäärtus,CONCATENATE(\"Nädal \",WEEKNUM(Kalendripäev),\"/Päev \",,Kalendripäev-DATE(YEAR(Kalendripäev),1,0)),CONCATENATE(\"Päev \",Kalendripäev-DATE(YEAR(Kalendripäev),1,0)))","v":"Päev 241"},{"$f":"IF(WEEKDAY(Kalendripäev)=NädalaAlguseVäärtus,CONCATENATE(\"Nädal \",WEEKNUM(Kalendripäev),\"/Päev \",,Kalendripäev-DATE(YEAR(Kalendripäev),1,0)),CONCATENATE(\"Päev \",Kalendripäev-DATE(YEAR(Kalendripäev),1,0)))","v":"Päev 242"},{"$f":"IF(WEEKDAY(Kalendripäev)=NädalaAlguseVäärtus,CONCATENATE(\"Nädal \",WEEKNUM(Kalendripäev),\"/Päev \",,Kalendripäev-DATE(YEAR(Kalendripäev),1,0)),CONCATENATE(\"Päev \",Kalendripäev-DATE(YEAR(Kalendripäev),1,0)))","v":"Päev 243"},{"$f":"IF(WEEKDAY(Kalendripäev)=NädalaAlguseVäärtus,CONCATENATE(\"Nädal \",WEEKNUM(Kalendripäev),\"/Päev \",,Kalendripäev-DATE(YEAR(Kalendripäev),1,0)),CONCATENATE(\"Päev \",Kalendripäev-DATE(YEAR(Kalendripäev),1,0)))","v":"Päev 244"}]
[{"$nulls":4},"MÄRKMED"]
[]
[null,null,{"$f":"PäevadJaNädalad+DATE(Kalendriaasta,8,1)-WEEKDAY(DATE(Kalendriaasta,8,1),(NädalaAlgus=\"E\")+1)+36","v":"2018-09-02"},"2018-09-03"]
[null,null,{"$f":"IF(WEEKDAY(Kalendripäev)=NädalaAlguseVäärtus,CONCATENATE(\"Nädal \",WEEKNUM(Kalendripäev),\"/Päev \",,Kalendripäev-DATE(YEAR(Kalendripäev),1,0)),CONCATENATE(\"Päev \",Kalendripäev-DATE(YEAR(Kalendripäev),1,0)))","v":"Nädal 36/Päev 245"},{"$f":"IF(WEEKDAY(Kalendripäev)=NädalaAlguseVäärtus,CONCATENATE(\"Nädal \",WEEKNUM(Kalendripäev),\"/Päev \",,Kalendripäev-DATE(YEAR(Kalendripäev),1,0)),CONCATENATE(\"Päev \",Kalendripäev-DATE(YEAR(Kalendripäev),1,0)))","v":"Päev 246"}]

{"sheet":"SEPT","index":8,"n_rows":20,"n_cols":9,"rows_kept":20,"merged":[[16,2,17,2],[17,4,19,8]]}
[null,"SEPT",{"$f":"UPPER(TEXT(NädalaAlgus,\"ddd\"))","v":"P"},{"$f":"UPPER(TEXT(D3,\"ddd\"))","v":"E"},"T","K","N","R","L"]
[null,{"$f":"Kalendriaasta","v":2018}]
[null,null,{"$f":"PäevadJaNädalad+DATE(Kalendriaasta,9,1)-WEEKDAY(DATE(Kalendriaasta,9,1),(NädalaAlgus=\"E\")+1)+1","v":"2018-08-26"},"2018-08-27","2018-08-28","2018-08-29","2018-08-30","2018-08-31","2018-09-01"]
[null,null,{"$f":"IF(DAY(Kalendripäev)=1,CONCATENATE(\"Nädal \",WEEKNUM(Kalendripäev),\"/Päev \",,Kalendripäev-DATE(YEAR(Kalendripäev),1,0)),CONCATENATE(\"Päev \",Kalendripäev-DATE(YEAR(Kalendripäev),1,0)))","v":"Päev 238"},{"$f":"IF(DAY(Kalendripäev)=1,CONCATENATE(\"Nädal \",WEEKNUM(Kalendripäev),\"/Päev \",,Kalendripäev-DATE(YEAR(Kalendripäev),1,0)),CONCATENATE(\"Päev \",Kalendripäev-DATE(YEAR(Kalendripäev),1,0)))","v":"Päev 239"},{"$f":"IF(DAY(Kalendripäev)=1,CONCATENATE(\"Nädal \",WEEKNUM(Kalendripäev),\"/Päev \",,Kalendripäev-DATE(YEAR(Kalendripäev),1,0)),CONCATENATE(\"Päev \",Kalendripäev-DATE(YEAR(Kalendripäev),1,0)))","v":"Päev 240"},{"$f":"IF(DAY(Kalendripäev)=1,CONCATENATE(\"Nädal \",WEEKNUM(Kalendripäev),\"/Päev \",,Kalendripäev-DATE(YEAR(Kalendripäev),1,0)),CONCATENATE(\"Päev \",Kalendripäev-DATE(YEAR(Kalendripäev),1,0)))","v":"Päev 241"},{"$f":"IF(DAY(Kalendripäev)=1,CONCATENATE(\"Nädal \",WEEKNUM(Kalendripäev),\"/Päev \",,Kalendripäev-DATE(YEAR(Kalendripäev),1,0)),CONCATENATE(\"Päev \",Kalendripäev-DATE(YEAR(Kalendripäev),1,0)))","v":"Päev 242"},{"$f":"IF(DAY(Kalendripäev)=1,CONCATENATE(\"Nädal \",WEEKNUM(Kalendripäev),\"/Päev \",,Kalendripäev-DATE(YEAR(Kalendripäev),1,0)),CONCATENATE(\"Päev \",Kalendripäev-DATE(YEAR(Kalendripäev),1,0)))","v":"Päev 243"},{"$f":"IF(DAY(Kalendripäev)=1,CONCATENATE(\"Nädal \",WEEKNUM(Kalendripäev),\"/Päev \",,Kalendripäev-DATE(YEAR(Kalendripäev),1,0)),CONCATENATE(\"Päev \",Kalendripäev-DATE(YEAR(Kalendripäev),1,0)))","v":"Nädal 35/Päev 244"}]
[]
[null,null,{"$f":"PäevadJaNädalad+DATE(Kalendriaasta,9,1)-WEEKDAY(DATE(Kalendriaasta,9,1),(NädalaAlgus=\"E\")+1)+8","v":"2018-09-02"},"2018-09-03","2018-09-04","2018-09-05","2018-09-06","2018-09-07","2018-09-08"]
[null,null,{"$f":"IF(WEEKDAY(Kalendripäev)=NädalaAlguseVäärtus,CONCATENATE(\"Nädal \",WEEKNUM(Kalendripäev),\"/Päev \",,Kalendripäev-DATE(YEAR(Kalendripäev),1,0)),CONCATENATE(\"Päev \",Kalendripäev-DATE(YEAR(Kalendripäev),1,0)))","v":"Nädal 36/Päev 245"},{"$f":"IF(WEEKDAY(Kalendripäev)=NädalaAlguseVäärtus,CONCATENATE(\"Nädal \",WEEKNUM(Kalendripäev),\"/Päev \",,Kalendripäev-DATE(YEAR(Kalendripäev),1,0)),CONCATENATE(\"Päev \",Kalendripäev-DATE(YEAR(Kalendripäev),1,0)))","v":"Päev 246"},{"$f":"IF(WEEKDAY(Kalendripäev)=NädalaAlguseVäärtus,CONCATENATE(\"Nädal \",WEEKNUM(Kalendripäev),\"/Päev \",,Kalendripäev-DATE(YEAR(Kalendripäev),1,0)),CONCATENATE(\"Päev \",Kalendripäev-DATE(YEAR(Kalendripäev),1,0)))","v":"Päev 247"},{"$f":"IF(WEEKDAY(Kalendripäev)=NädalaAlguseVäärtus,CONCATENATE(\"Nädal \",WEEKNUM(Kalendripäev),\"/Päev \",,Kalendripäev-DATE(YEAR(Kalendripäev),1,0)),CONCATENATE(\"Päev \",Kalendripäev-DATE(YEAR(Kalendripäev),1,0)))","v":"Päev 248"},{"$f":"IF(WEEKDAY(Kalendripäev)=NädalaAlguseVäärtus,CONCATENATE(\"Nädal \",WEEKNUM(Kalendripäev),\"/Päev \",,Kalendripäev-DATE(YEAR(Kalendripäev),1,0)),CONCATENATE(\"Päev \",Kalendripäev-DATE(YEAR(Kalendripäev),1,0)))","v":"Päev 249"},{"$f":"IF(WEEKDAY(Kalendripäev)=NädalaAlguseVäärtus,CONCATENATE(\"Nädal \",WEEKNUM(Kalendripäev),\"/Päev \",,Kalendripäev-DATE(YEAR(Kalendripäev),1,0)),CONCATENATE(\"Päev \",Kalendripäev-DATE(YEAR(Kalendripäev),1,0)))","v":"Päev 250"},{"$f":"IF(WEEKDAY(Kalendripäev)=NädalaAlguseVäärtus,CONCATENATE(\"Nädal \",WEEKNUM(Kalendripäev),\"/Päev \",,Kalendripäev-DATE(YEAR(Kalendripäev),1,0)),CONCATENATE(\"Päev \",Kalendripäev-DATE(YEAR(Kalendripäev),1,0)))","v":"Päev 251"}]
[]
[null,null,{"$f":"PäevadJaNädalad+DATE(Kalendriaasta,9,1)-WEEKDAY(DATE(Kalendriaasta,9,1),(NädalaAlgus=\"E\")+1)+15","v":"2018-09-09"},"2018-09-10","2018-09-11","2018-09-12","2018-09-13","2018-09-14","2018-09-15"]
[null,null,{"$f":"IF(WEEKDAY(Kalendripäev)=NädalaAlguseVäärtus,CONCATENATE(\"Nädal \",WEEKNUM(Kalendripäev),\"/Päev \",,Kalendripäev-DATE(YEAR(Kalendripäev),1,0)),CONCATENATE(\"Päev \",Kalendripäev-DATE(YEAR(Kalendripäev),1,0)))","v":"Nädal 37/Päev 252"},{"$f":"IF(WEEKDAY(Kalendripäev)=NädalaAlguseVäärtus,CONCATENATE(\"Nädal \",WEEKNUM(Kalendripäev),\"/Päev \",,Kalendripäev-DATE(YEAR(Kalendripäev),1,0)),CONCATENATE(\"Päev \",Kalendripäev-DATE(YEAR(Kalendripäev),1,0)))","v":"Päev 253"},{"$f":"IF(WEEKDAY(Kalendripäev)=NädalaAlguseVäärtus,CONCATENATE(\"Nädal \",WEEKNUM(Kalendripäev),\"/Päev \",,Kalendripäev-DATE(YEAR(Kalendripäev),1,0)),CONCATENATE(\"Päev \",Kalendripäev-DATE(YEAR(Kalendripäev),1,0)))","v":"Päev 254"},{"$f":"IF(WEEKDAY(Kalendripäev)=NädalaAlguseVäärtus,CONCATENATE(\"Nädal \",WEEKNUM(Kalendripäev),\"/Päev \",,Kalendripäev-DATE(YEAR(Kalendripäev),1,0)),CONCATENATE(\"Päev \",Kalendripäev-DATE(YEAR(Kalendripäev),1,0)))","v":"Päev 255"},{"$f":"IF(WEEKDAY(Kalendripäev)=NädalaAlguseVäärtus,CONCATENATE(\"Nädal \",WEEKNUM(Kalendripäev),\"/Päev \",,Kalendripäev-DATE(YEAR(Kalendripäev),1,0)),CONCATENATE(\"Päev \",Kalendripäev-DATE(YEAR(Kalendripäev),1,0)))","v":"Päev 256"},{"$f":"IF(WEEKDAY(Kalendripäev)=NädalaAlguseVäärtus,CONCATENATE(\"Nädal \",WEEKNUM(Kalendripäev),\"/Päev \",,Kalendripäev-DATE(YEAR(Kalendripäev),1,0)),CONCATENATE(\"Päev \",Kalendripäev-DATE(YEAR(Kalendripäev),1,0)))","v":"Päev 257"},{"$f":"IF(WEEKDAY(Kalendripäev)=NädalaAlguseVäärtus,CONCATENATE(\"Nädal \",WEEKNUM(Kalendripäev),\"/Päev \",,Kalendripäev-DATE(YEAR(Kalendripäev),1,0)),CONCATENATE(\"Päev \",Kalendripäev-DATE(YEAR(Kalendripäev),1,0)))","v":"Päev 258"}]
[]
[null,null,{"$f":"PäevadJaNädalad+DATE(Kalendriaasta,9,1)-WEEKDAY(DATE(Kalendriaasta,9,1),(NädalaAlgus=\"E\")+1)+22","v":"2018-09-16"},"2018-09-17","2018-09-18","2018-09-19","2018-09-20","2018-09-21","2018-09-22"]
[null,null,{"$f":"IF(WEEKDAY(Kalendripäev)=NädalaAlguseVäärtus,CONCATENATE(\"Nädal \",WEEKNUM(Kalendripäev),\"/Päev \",,Kalendripäev-DATE(YEAR(Kalendripäev),1,0)),CONCATENATE(\"Päev \",Kalendripäev-DATE(YEAR(Kalendripäev),1,0)))","v":"Nädal 38/Päev 259"},{"$f":"IF(WEEKDAY(Kalendripäev)=NädalaAlguseVäärtus,CONCATENATE(\"Nädal \",WEEKNUM(Kalendripäev),\"/Päev \",,Kalendripäev-DATE(YEAR(Kalendripäev),1,0)),CONCATENATE(\"Päev \",Kalendripäev-DATE(YEAR(Kalendripäev),1,0)))","v":"Päev 260"},{"$f":"IF(WEEKDAY(Kalendripäev)=NädalaAlguseVäärtus,CONCATENATE(\"Nädal \",WEEKNUM(Kalendripäev),\"/Päev \",,Kalendripäev-DATE(YEAR(Kalendripäev),1,0)),CONCATENATE(\"Päev \",Kalendripäev-DATE(YEAR(Kalendripäev),1,0)))","v":"Päev 261"},{"$f":"IF(WEEKDAY(Kalendripäev)=NädalaAlguseVäärtus,CONCATENATE(\"Nädal \",WEEKNUM(Kalendripäev),\"/Päev \",,Kalendripäev-DATE(YEAR(Kalendripäev),1,0)),CONCATENATE(\"Päev \",Kalendripäev-DATE(YEAR(Kalendripäev),1,0)))","v":"Päev 262"},{"$f":"IF(WEEKDAY(Kalendripäev)=NädalaAlguseVäärtus,CONCATENATE(\"Nädal \",WEEKNUM(Kalendripäev),\"/Päev \",,Kalendripäev-DATE(YEAR(Kalendripäev),1,0)),CONCATENATE(\"Päev \",Kalendripäev-DATE(YEAR(Kalendripäev),1,0)))","v":"Päev 263"},{"$f":"IF(WEEKDAY(Kalendripäev)=NädalaAlguseVäärtus,CONCATENATE(\"Nädal \",WEEKNUM(Kalendripäev),\"/Päev \",,Kalendripäev-DATE(YEAR(Kalendripäev),1,0)),CONCATENATE(\"Päev \",Kalendripäev-DATE(YEAR(Kalendripäev),1,0)))","v":"Päev 264"},{"$f":"IF(WEEKDAY(Kalendripäev)=NädalaAlguseVäärtus,CONCATENATE(\"Nädal \",WEEKNUM(Kalendripäev),\"/Päev \",,Kalendripäev-DATE(YEAR(Kalendripäev),1,0)),CONCATENATE(\"Päev \",Kalendripäev-DATE(YEAR(Kalendripäev),1,0)))","v":"Päev 265"}]
[]
[null,null,{"$f":"PäevadJaNädalad+DATE(Kalendriaasta,9,1)-WEEKDAY(DATE(Kalendriaasta,9,1),(NädalaAlgus=\"E\")+1)+29","v":"2018-09-23"},"2018-09-24","2018-09-25","2018-09-26","2018-09-27","2018-09-28","2018-09-29"]
[null,null,{"$f":"IF(WEEKDAY(Kalendripäev)=NädalaAlguseVäärtus,CONCATENATE(\"Nädal \",WEEKNUM(Kalendripäev),\"/Päev \",,Kalendripäev-DATE(YEAR(Kalendripäev),1,0)),CONCATENATE(\"Päev \",Kalendripäev-DATE(YEAR(Kalendripäev),1,0)))","v":"Nädal 39/Päev 266"},{"$f":"IF(WEEKDAY(Kalendripäev)=NädalaAlguseVäärtus,CONCATENATE(\"Nädal \",WEEKNUM(Kalendripäev),\"/Päev \",,Kalendripäev-DATE(YEAR(Kalendripäev),1,0)),CONCATENATE(\"Päev \",Kalendripäev-DATE(YEAR(Kalendripäev),1,0)))","v":"Päev 267"},{"$f":"IF(WEEKDAY(Kalendripäev)=NädalaAlguseVäärtus,CONCATENATE(\"Nädal \",WEEKNUM(Kalendripäev),\"/Päev \",,Kalendripäev-DATE(YEAR(Kalendripäev),1,0)),CONCATENATE(\"Päev \",Kalendripäev-DATE(YEAR(Kalendripäev),1,0)))","v":"Päev 268"},{"$f":"IF(WEEKDAY(Kalendripäev)=NädalaAlguseVäärtus,CONCATENATE(\"Nädal \",WEEKNUM(Kalendripäev),\"/Päev \",,Kalendripäev-DATE(YEAR(Kalendripäev),1,0)),CONCATENATE(\"Päev \",Kalendripäev-DATE(YEAR(Kalendripäev),1,0)))","v":"Päev 269"},{"$f":"IF(WEEKDAY(Kalendripäev)=NädalaAlguseVäärtus,CONCATENATE(\"Nädal \",WEEKNUM(Kalendripäev),\"/Päev \",,Kalendripäev-DATE(YEAR(Kalendripäev),1,0)),CONCATENATE(\"Päev \",Kalendripäev-DATE(YEAR(Kalendripäev),1,0)))","v":"Päev 270"},{"$f":"IF(WEEKDAY(Kalendripäev)=NädalaAlguseVäärtus,CONCATENATE(\"Nädal \",WEEKNUM(Kalendripäev),\"/Päev \",,Kalendripäev-DATE(YEAR(Kalendripäev),1,0)),CONCATENATE(\"Päev \",Kalendripäev-DATE(YEAR(Kalendripäev),1,0)))","v":"Päev 271"},{"$f":"IF(WEEKDAY(Kalendripäev)=NädalaAlguseVäärtus,CONCATENATE(\"Nädal \",WEEKNUM(Kalendripäev),\"/Päev \",,Kalendripäev-DATE(YEAR(Kalendripäev),1,0)),CONCATENATE(\"Päev \",Kalendripäev-DATE(YEAR(Kalendripäev),1,0)))","v":"Päev 272"}]
[{"$nulls":4},"MÄRKMED"]
[]
[null,null,{"$f":"PäevadJaNädalad+DATE(Kalendriaasta,9,1)-WEEKDAY(DATE(Kalendriaasta,9,1),(NädalaAlgus=\"E\")+1)+36","v":"2018-09-30"},"2018-10-01"]
[null,null,{"$f":"IF(WEEKDAY(Kalendripäev)=NädalaAlguseVäärtus,CONCATENATE(\"Nädal \",WEEKNUM(Kalendripäev),\"/Päev \",,Kalendripäev-DATE(YEAR(Kalendripäev),1,0)),CONCATENATE(\"Päev \",Kalendripäev-DATE(YEAR(Kalendripäev),1,0)))","v":"Nädal 40/Päev 273"},{"$f":"IF(WEEKDAY(Kalendripäev)=NädalaAlguseVäärtus,CONCATENATE(\"Nädal \",WEEKNUM(Kalendripäev),\"/Päev \",,Kalendripäev-DATE(YEAR(Kalendripäev),1,0)),CONCATENATE(\"Päev \",Kalendripäev-DATE(YEAR(Kalendripäev),1,0)))","v":"Päev 274"}]

{"sheet":"OKT","index":9,"n_rows":20,"n_cols":9,"rows_kept":20,"merged":[[16,2,17,2],[17,4,19,8]]}
[null,"OKT",{"$f":"UPPER(TEXT(NädalaAlgus,\"ddd\"))","v":"P"},{"$f":"UPPER(TEXT(D3,\"ddd\"))","v":"E"},"T","K","N","R","L"]
[null,{"$f":"Kalendriaasta","v":2018}]
[null,null,{"$f":"PäevadJaNädalad+DATE(Kalendriaasta,10,1)-WEEKDAY(DATE(Kalendriaasta,10,1),(NädalaAlgus=\"E\")+1)+1","v":"2018-09-30"},"2018-10-01","2018-10-02","2018-10-03","2018-10-04","2018-10-05","2018-10-06"]
[null,null,{"$f":"IF(DAY(Kalendripäev)=1,CONCATENATE(\"Nädal \",WEEKNUM(Kalendripäev),\"/Päev \",,Kalendripäev-DATE(YEAR(Kalendripäev),1,0)),CONCATENATE(\"Päev \",Kalendripäev-DATE(YEAR(Kalendripäev),1,0)))","v":"Päev 273"},{"$f":"IF(DAY(Kalendripäev)=1,CONCATENATE(\"Nädal \",WEEKNUM(Kalendripäev),\"/Päev \",,Kalendripäev-DATE(YEAR(Kalendripäev),1,0)),CONCATENATE(\"Päev \",Kalendripäev-DATE(YEAR(Kalendripäev),1,0)))","v":"Nädal 40/Päev 274"},{"$f":"IF(DAY(Kalendripäev)=1,CONCATENATE(\"Nädal \",WEEKNUM(Kalendripäev),\"/Päev \",,Kalendripäev-DATE(YEAR(Kalendripäev),1,0)),CONCATENATE(\"Päev \",Kalendripäev-DATE(YEAR(Kalendripäev),1,0)))","v":"Päev 275"},{"$f":"IF(DAY(Kalendripäev)=1,CONCATENATE(\"Nädal \",WEEKNUM(Kalendripäev),\"/Päev \",,Kalendripäev-DATE(YEAR(Kalendripäev),1,0)),CONCATENATE(\"Päev \",Kalendripäev-DATE(YEAR(Kalendripäev),1,0)))","v":"Päev 276"},{"$f":"IF(DAY(Kalendripäev)=1,CONCATENATE(\"Nädal \",WEEKNUM(Kalendripäev),\"/Päev \",,Kalendripäev-DATE(YEAR(Kalendripäev),1,0)),CONCATENATE(\"Päev \",Kalendripäev-DATE(YEAR(Kalendripäev),1,0)))","v":"Päev 277"},{"$f":"IF(DAY(Kalendripäev)=1,CONCATENATE(\"Nädal \",WEEKNUM(Kalendripäev),\"/Päev \",,Kalendripäev-DATE(YEAR(Kalendripäev),1,0)),CONCATENATE(\"Päev \",Kalendripäev-DATE(YEAR(Kalendripäev),1,0)))","v":"Päev 278"},{"$f":"IF(DAY(Kalendripäev)=1,CONCATENATE(\"Nädal \",WEEKNUM(Kalendripäev),\"/Päev \",,Kalendripäev-DATE(YEAR(Kalendripäev),1,0)),CONCATENATE(\"Päev \",Kalendripäev-DATE(YEAR(Kalendripäev),1,0)))","v":"Päev 279"}]
[]
[null,null,{"$f":"PäevadJaNädalad+DATE(Kalendriaasta,10,1)-WEEKDAY(DATE(Kalendriaasta,10,1),(NädalaAlgus=\"E\")+1)+8","v":"2018-10-07"},"2018-10-08","2018-10-09","2018-10-10","2018-10-11","2018-10-12","2018-10-13"]
[null,null,{"$f":"IF(WEEKDAY(Kalendripäev)=NädalaAlguseVäärtus,CONCATENATE(\"Nädal \",WEEKNUM(Kalendripäev),\"/Päev \",,Kalendripäev-DATE(YEAR(Kalendripäev),1,0)),CONCATENATE(\"Päev \",Kalendripäev-DATE(YEAR(Kalendripäev),1,0)))","v":"Nädal 41/Päev 280"},{"$f":"IF(WEEKDAY(Kalendripäev)=NädalaAlguseVäärtus,CONCATENATE(\"Nädal \",WEEKNUM(Kalendripäev),\"/Päev \",,Kalendripäev-DATE(YEAR(Kalendripäev),1,0)),CONCATENATE(\"Päev \",Kalendripäev-DATE(YEAR(Kalendripäev),1,0)))","v":"Päev 281"},{"$f":"IF(WEEKDAY(Kalendripäev)=NädalaAlguseVäärtus,CONCATENATE(\"Nädal \",WEEKNUM(Kalendripäev),\"/Päev \",,Kalendripäev-DATE(YEAR(Kalendripäev),1,0)),CONCATENATE(\"Päev \",Kalendripäev-DATE(YEAR(Kalendripäev),1,0)))","v":"Päev 282"},{"$f":"IF(WEEKDAY(Kalendripäev)=NädalaAlguseVäärtus,CONCATENATE(\"Nädal \",WEEKNUM(Kalendripäev),\"/Päev \",,Kalendripäev-DATE(YEAR(Kalendripäev),1,0)),CONCATENATE(\"Päev \",Kalendripäev-DATE(YEAR(Kalendripäev),1,0)))","v":"Päev 283"},{"$f":"IF(WEEKDAY(Kalendripäev)=NädalaAlguseVäärtus,CONCATENATE(\"Nädal \",WEEKNUM(Kalendripäev),\"/Päev \",,Kalendripäev-DATE(YEAR(Kalendripäev),1,0)),CONCATENATE(\"Päev \",Kalendripäev-DATE(YEAR(Kalendripäev),1,0)))","v":"Päev 284"},{"$f":"IF(WEEKDAY(Kalendripäev)=NädalaAlguseVäärtus,CONCATENATE(\"Nädal \",WEEKNUM(Kalendripäev),\"/Päev \",,Kalendripäev-DATE(YEAR(Kalendripäev),1,0)),CONCATENATE(\"Päev \",Kalendripäev-DATE(YEAR(Kalendripäev),1,0)))","v":"Päev 285"},{"$f":"IF(WEEKDAY(Kalendripäev)=NädalaAlguseVäärtus,CONCATENATE(\"Nädal \",WEEKNUM(Kalendripäev),\"/Päev \",,Kalendripäev-DATE(YEAR(Kalendripäev),1,0)),CONCATENATE(\"Päev \",Kalendripäev-DATE(YEAR(Kalendripäev),1,0)))","v":"Päev 286"}]
[]
[null,null,{"$f":"PäevadJaNädalad+DATE(Kalendriaasta,10,1)-WEEKDAY(DATE(Kalendriaasta,10,1),(NädalaAlgus=\"E\")+1)+15","v":"2018-10-14"},"2018-10-15","2018-10-16","2018-10-17","2018-10-18","2018-10-19","2018-10-20"]
[null,null,{"$f":"IF(WEEKDAY(Kalendripäev)=NädalaAlguseVäärtus,CONCATENATE(\"Nädal \",WEEKNUM(Kalendripäev),\"/Päev \",,Kalendripäev-DATE(YEAR(Kalendripäev),1,0)),CONCATENATE(\"Päev \",Kalendripäev-DATE(YEAR(Kalendripäev),1,0)))","v":"Nädal 42/Päev 287"},{"$f":"IF(WEEKDAY(Kalendripäev)=NädalaAlguseVäärtus,CONCATENATE(\"Nädal \",WEEKNUM(Kalendripäev),\"/Päev \",,Kalendripäev-DATE(YEAR(Kalendripäev),1,0)),CONCATENATE(\"Päev \",Kalendripäev-DATE(YEAR(Kalendripäev),1,0)))","v":"Päev 288"},{"$f":"IF(WEEKDAY(Kalendripäev)=NädalaAlguseVäärtus,CONCATENATE(\"Nädal \",WEEKNUM(Kalendripäev),\"/Päev \",,Kalendripäev-DATE(YEAR(Kalendripäev),1,0)),CONCATENATE(\"Päev \",Kalendripäev-DATE(YEAR(Kalendripäev),1,0)))","v":"Päev 289"},{"$f":"IF(WEEKDAY(Kalendripäev)=NädalaAlguseVäärtus,CONCATENATE(\"Nädal \",WEEKNUM(Kalendripäev),\"/Päev \",,Kalendripäev-DATE(YEAR(Kalendripäev),1,0)),CONCATENATE(\"Päev \",Kalendripäev-DATE(YEAR(Kalendripäev),1,0)))","v":"Päev 290"},{"$f":"IF(WEEKDAY(Kalendripäev)=NädalaAlguseVäärtus,CONCATENATE(\"Nädal \",WEEKNUM(Kalendripäev),\"/Päev \",,Kalendripäev-DATE(YEAR(Kalendripäev),1,0)),CONCATENATE(\"Päev \",Kalendripäev-DATE(YEAR(Kalendripäev),1,0)))","v":"Päev 291"},{"$f":"IF(WEEKDAY(Kalendripäev)=NädalaAlguseVäärtus,CONCATENATE(\"Nädal \",WEEKNUM(Kalendripäev),\"/Päev \",,Kalendripäev-DATE(YEAR(Kalendripäev),1,0)),CONCATENATE(\"Päev \",Kalendripäev-DATE(YEAR(Kalendripäev),1,0)))","v":"Päev 292"},{"$f":"IF(WEEKDAY(Kalendripäev)=NädalaAlguseVäärtus,CONCATENATE(\"Nädal \",WEEKNUM(Kalendripäev),\"/Päev \",,Kalendripäev-DATE(YEAR(Kalendripäev),1,0)),CONCATENATE(\"Päev \",Kalendripäev-DATE(YEAR(Kalendripäev),1,0)))","v":"Päev 293"}]
[]
[null,null,{"$f":"PäevadJaNädalad+DATE(Kalendriaasta,10,1)-WEEKDAY(DATE(Kalendriaasta,10,1),(NädalaAlgus=\"E\")+1)+22","v":"2018-10-21"},"2018-10-22","2018-10-23","2018-10-24","2018-10-25","2018-10-26","2018-10-27"]
[null,null,{"$f":"IF(WEEKDAY(Kalendripäev)=NädalaAlguseVäärtus,CONCATENATE(\"Nädal \",WEEKNUM(Kalendripäev),\"/Päev \",,Kalendripäev-DATE(YEAR(Kalendripäev),1,0)),CONCATENATE(\"Päev \",Kalendripäev-DATE(YEAR(Kalendripäev),1,0)))","v":"Nädal 43/Päev 294"},{"$f":"IF(WEEKDAY(Kalendripäev)=NädalaAlguseVäärtus,CONCATENATE(\"Nädal \",WEEKNUM(Kalendripäev),\"/Päev \",,Kalendripäev-DATE(YEAR(Kalendripäev),1,0)),CONCATENATE(\"Päev \",Kalendripäev-DATE(YEAR(Kalendripäev),1,0)))","v":"Päev 295"},{"$f":"IF(WEEKDAY(Kalendripäev)=NädalaAlguseVäärtus,CONCATENATE(\"Nädal \",WEEKNUM(Kalendripäev),\"/Päev \",,Kalendripäev-DATE(YEAR(Kalendripäev),1,0)),CONCATENATE(\"Päev \",Kalendripäev-DATE(YEAR(Kalendripäev),1,0)))","v":"Päev 296"},{"$f":"IF(WEEKDAY(Kalendripäev)=NädalaAlguseVäärtus,CONCATENATE(\"Nädal \",WEEKNUM(Kalendripäev),\"/Päev \",,Kalendripäev-DATE(YEAR(Kalendripäev),1,0)),CONCATENATE(\"Päev \",Kalendripäev-DATE(YEAR(Kalendripäev),1,0)))","v":"Päev 297"},{"$f":"IF(WEEKDAY(Kalendripäev)=NädalaAlguseVäärtus,CONCATENATE(\"Nädal \",WEEKNUM(Kalendripäev),\"/Päev \",,Kalendripäev-DATE(YEAR(Kalendripäev),1,0)),CONCATENATE(\"Päev \",Kalendripäev-DATE(YEAR(Kalendripäev),1,0)))","v":"Päev 298"},{"$f":"IF(WEEKDAY(Kalendripäev)=NädalaAlguseVäärtus,CONCATENATE(\"Nädal \",WEEKNUM(Kalendripäev),\"/Päev \",,Kalendripäev-DATE(YEAR(Kalendripäev),1,0)),CONCATENATE(\"Päev \",Kalendripäev-DATE(YEAR(Kalendripäev),1,0)))","v":"Päev 299"},{"$f":"IF(WEEKDAY(Kalendripäev)=NädalaAlguseVäärtus,CONCATENATE(\"Nädal \",WEEKNUM(Kalendripäev),\"/Päev \",,Kalendripäev-DATE(YEAR(Kalendripäev),1,0)),CONCATENATE(\"Päev \",Kalendripäev-DATE(YEAR(Kalendripäev),1,0)))","v":"Päev 300"}]
[]
[null,null,{"$f":"PäevadJaNädalad+DATE(Kalendriaasta,10,1)-WEEKDAY(DATE(Kalendriaasta,10,1),(NädalaAlgus=\"E\")+1)+29","v":"2018-10-28"},"2018-10-29","2018-10-30","2018-10-31","2018-11-01","2018-11-02","2018-11-03"]
[null,null,{"$f":"IF(WEEKDAY(Kalendripäev)=NädalaAlguseVäärtus,CONCATENATE(\"Nädal \",WEEKNUM(Kalendripäev),\"/Päev \",,Kalendripäev-DATE(YEAR(Kalendripäev),1,0)),CONCATENATE(\"Päev \",Kalendripäev-DATE(YEAR(Kalendripäev),1,0)))","v":"Nädal 44/Päev 301"},{"$f":"IF(WEEKDAY(Kalendripäev)=NädalaAlguseVäärtus,CONCATENATE(\"Nädal \",WEEKNUM(Kalendripäev),\"/Päev \",,Kalendripäev-DATE(YEAR(Kalendripäev),1,0)),CONCATENATE(\"Päev \",Kalendripäev-DATE(YEAR(Kalendripäev),1,0)))","v":"Päev 302"},{"$f":"IF(WEEKDAY(Kalendripäev)=NädalaAlguseVäärtus,CONCATENATE(\"Nädal \",WEEKNUM(Kalendripäev),\"/Päev \",,Kalendripäev-DATE(YEAR(Kalendripäev),1,0)),CONCATENATE(\"Päev \",Kalendripäev-DATE(YEAR(Kalendripäev),1,0)))","v":"Päev 303"},{"$f":"IF(WEEKDAY(Kalendripäev)=NädalaAlguseVäärtus,CONCATENATE(\"Nädal \",WEEKNUM(Kalendripäev),\"/Päev \",,Kalendripäev-DATE(YEAR(Kalendripäev),1,0)),CONCATENATE(\"Päev \",Kalendripäev-DATE(YEAR(Kalendripäev),1,0)))","v":"Päev 304"},{"$f":"IF(WEEKDAY(Kalendripäev)=NädalaAlguseVäärtus,CONCATENATE(\"Nädal \",WEEKNUM(Kalendripäev),\"/Päev \",,Kalendripäev-DATE(YEAR(Kalendripäev),1,0)),CONCATENATE(\"Päev \",Kalendripäev-DATE(YEAR(Kalendripäev),1,0)))","v":"Päev 305"},{"$f":"IF(WEEKDAY(Kalendripäev)=NädalaAlguseVäärtus,CONCATENATE(\"Nädal \",WEEKNUM(Kalendripäev),\"/Päev \",,Kalendripäev-DATE(YEAR(Kalendripäev),1,0)),CONCATENATE(\"Päev \",Kalendripäev-DATE(YEAR(Kalendripäev),1,0)))","v":"Päev 306"},{"$f":"IF(WEEKDAY(Kalendripäev)=NädalaAlguseVäärtus,CONCATENATE(\"Nädal \",WEEKNUM(Kalendripäev),\"/Päev \",,Kalendripäev-DATE(YEAR(Kalendripäev),1,0)),CONCATENATE(\"Päev \",Kalendripäev-DATE(YEAR(Kalendripäev),1,0)))","v":"Päev 307"}]
[{"$nulls":4},"MÄRKMED"]
[]
[null,null,{"$f":"PäevadJaNädalad+DATE(Kalendriaasta,10,1)-WEEKDAY(DATE(Kalendriaasta,10,1),(NädalaAlgus=\"E\")+1)+36","v":"2018-11-04"},"2018-11-05"]
[null,null,{"$f":"IF(WEEKDAY(Kalendripäev)=NädalaAlguseVäärtus,CONCATENATE(\"Nädal \",WEEKNUM(Kalendripäev),\"/Päev \",,Kalendripäev-DATE(YEAR(Kalendripäev),1,0)),CONCATENATE(\"Päev \",Kalendripäev-DATE(YEAR(Kalendripäev),1,0)))","v":"Nädal 45/Päev 308"},{"$f":"IF(WEEKDAY(Kalendripäev)=NädalaAlguseVäärtus,CONCATENATE(\"Nädal \",WEEKNUM(Kalendripäev),\"/Päev \",,Kalendripäev-DATE(YEAR(Kalendripäev),1,0)),CONCATENATE(\"Päev \",Kalendripäev-DATE(YEAR(Kalendripäev),1,0)))","v":"Päev 309"}]

{"sheet":"NOV","index":10,"n_rows":20,"n_cols":9,"rows_kept":20,"merged":[[16,2,17,2],[17,4,19,8]]}
[null,"NOV",{"$f":"UPPER(TEXT(NädalaAlgus,\"ddd\"))","v":"P"},{"$f":"UPPER(TEXT(D3,\"ddd\"))","v":"E"},"T","K","N","R","L"]
[null,{"$f":"Kalendriaasta","v":2018}]
[null,null,{"$f":"PäevadJaNädalad+DATE(Kalendriaasta,11,1)-WEEKDAY(DATE(Kalendriaasta,11,1),(NädalaAlgus=\"E\")+1)+1","v":"2018-10-28"},"2018-10-29","2018-10-30","2018-10-31","2018-11-01","2018-11-02","2018-11-03"]
[null,null,{"$f":"IF(DAY(Kalendripäev)=1,CONCATENATE(\"Nädal \",WEEKNUM(Kalendripäev),\"/Päev \",,Kalendripäev-DATE(YEAR(Kalendripäev),1,0)),CONCATENATE(\"Päev \",Kalendripäev-DATE(YEAR(Kalendripäev),1,0)))","v":"Päev 301"},{"$f":"IF(DAY(Kalendripäev)=1,CONCATENATE(\"Nädal \",WEEKNUM(Kalendripäev),\"/Päev \",,Kalendripäev-DATE(YEAR(Kalendripäev),1,0)),CONCATENATE(\"Päev \",Kalendripäev-DATE(YEAR(Kalendripäev),1,0)))","v":"Päev 302"},{"$f":"IF(DAY(Kalendripäev)=1,CONCATENATE(\"Nädal \",WEEKNUM(Kalendripäev),\"/Päev \",,Kalendripäev-DATE(YEAR(Kalendripäev),1,0)),CONCATENATE(\"Päev \",Kalendripäev-DATE(YEAR(Kalendripäev),1,0)))","v":"Päev 303"},{"$f":"IF(DAY(Kalendripäev)=1,CONCATENATE(\"Nädal \",WEEKNUM(Kalendripäev),\"/Päev \",,Kalendripäev-DATE(YEAR(Kalendripäev),1,0)),CONCATENATE(\"Päev \",Kalendripäev-DATE(YEAR(Kalendripäev),1,0)))","v":"Päev 304"},{"$f":"IF(DAY(Kalendripäev)=1,CONCATENATE(\"Nädal \",WEEKNUM(Kalendripäev),\"/Päev \",,Kalendripäev-DATE(YEAR(Kalendripäev),1,0)),CONCATENATE(\"Päev \",Kalendripäev-DATE(YEAR(Kalendripäev),1,0)))","v":"Nädal 44/Päev 305"},{"$f":"IF(DAY(Kalendripäev)=1,CONCATENATE(\"Nädal \",WEEKNUM(Kalendripäev),\"/Päev \",,Kalendripäev-DATE(YEAR(Kalendripäev),1,0)),CONCATENATE(\"Päev \",Kalendripäev-DATE(YEAR(Kalendripäev),1,0)))","v":"Päev 306"},{"$f":"IF(DAY(Kalendripäev)=1,CONCATENATE(\"Nädal \",WEEKNUM(Kalendripäev),\"/Päev \",,Kalendripäev-DATE(YEAR(Kalendripäev),1,0)),CONCATENATE(\"Päev \",Kalendripäev-DATE(YEAR(Kalendripäev),1,0)))","v":"Päev 307"}]
[]
[null,null,{"$f":"PäevadJaNädalad+DATE(Kalendriaasta,11,1)-WEEKDAY(DATE(Kalendriaasta,11,1),(NädalaAlgus=\"E\")+1)+8","v":"2018-11-04"},"2018-11-05","2018-11-06","2018-11-07","2018-11-08","2018-11-09","2018-11-10"]
[null,null,{"$f":"IF(WEEKDAY(Kalendripäev)=NädalaAlguseVäärtus,CONCATENATE(\"Nädal \",WEEKNUM(Kalendripäev),\"/Päev \",,Kalendripäev-DATE(YEAR(Kalendripäev),1,0)),CONCATENATE(\"Päev \",Kalendripäev-DATE(YEAR(Kalendripäev),1,0)))","v":"Nädal 45/Päev 308"},{"$f":"IF(WEEKDAY(Kalendripäev)=NädalaAlguseVäärtus,CONCATENATE(\"Nädal \",WEEKNUM(Kalendripäev),\"/Päev \",,Kalendripäev-DATE(YEAR(Kalendripäev),1,0)),CONCATENATE(\"Päev \",Kalendripäev-DATE(YEAR(Kalendripäev),1,0)))","v":"Päev 309"},{"$f":"IF(WEEKDAY(Kalendripäev)=NädalaAlguseVäärtus,CONCATENATE(\"Nädal \",WEEKNUM(Kalendripäev),\"/Päev \",,Kalendripäev-DATE(YEAR(Kalendripäev),1,0)),CONCATENATE(\"Päev \",Kalendripäev-DATE(YEAR(Kalendripäev),1,0)))","v":"Päev 310"},{"$f":"IF(WEEKDAY(Kalendripäev)=NädalaAlguseVäärtus,CONCATENATE(\"Nädal \",WEEKNUM(Kalendripäev),\"/Päev \",,Kalendripäev-DATE(YEAR(Kalendripäev),1,0)),CONCATENATE(\"Päev \",Kalendripäev-DATE(YEAR(Kalendripäev),1,0)))","v":"Päev 311"},{"$f":"IF(WEEKDAY(Kalendripäev)=NädalaAlguseVäärtus,CONCATENATE(\"Nädal \",WEEKNUM(Kalendripäev),\"/Päev \",,Kalendripäev-DATE(YEAR(Kalendripäev),1,0)),CONCATENATE(\"Päev \",Kalendripäev-DATE(YEAR(Kalendripäev),1,0)))","v":"Päev 312"},{"$f":"IF(WEEKDAY(Kalendripäev)=NädalaAlguseVäärtus,CONCATENATE(\"Nädal \",WEEKNUM(Kalendripäev),\"/Päev \",,Kalendripäev-DATE(YEAR(Kalendripäev),1,0)),CONCATENATE(\"Päev \",Kalendripäev-DATE(YEAR(Kalendripäev),1,0)))","v":"Päev 313"},{"$f":"IF(WEEKDAY(Kalendripäev)=NädalaAlguseVäärtus,CONCATENATE(\"Nädal \",WEEKNUM(Kalendripäev),\"/Päev \",,Kalendripäev-DATE(YEAR(Kalendripäev),1,0)),CONCATENATE(\"Päev \",Kalendripäev-DATE(YEAR(Kalendripäev),1,0)))","v":"Päev 314"}]
[]
[null,null,{"$f":"PäevadJaNädalad+DATE(Kalendriaasta,11,1)-WEEKDAY(DATE(Kalendriaasta,11,1),(NädalaAlgus=\"E\")+1)+15","v":"2018-11-11"},"2018-11-12","2018-11-13","2018-11-14","2018-11-15","2018-11-16","2018-11-17"]
[null,null,{"$f":"IF(WEEKDAY(Kalendripäev)=NädalaAlguseVäärtus,CONCATENATE(\"Nädal \",WEEKNUM(Kalendripäev),\"/Päev \",,Kalendripäev-DATE(YEAR(Kalendripäev),1,0)),CONCATENATE(\"Päev \",Kalendripäev-DATE(YEAR(Kalendripäev),1,0)))","v":"Nädal 46/Päev 315"},{"$f":"IF(WEEKDAY(Kalendripäev)=NädalaAlguseVäärtus,CONCATENATE(\"Nädal \",WEEKNUM(Kalendripäev),\"/Päev \",,Kalendripäev-DATE(YEAR(Kalendripäev),1,0)),CONCATENATE(\"Päev \",Kalendripäev-DATE(YEAR(Kalendripäev),1,0)))","v":"Päev 316"},{"$f":"IF(WEEKDAY(Kalendripäev)=NädalaAlguseVäärtus,CONCATENATE(\"Nädal \",WEEKNUM(Kalendripäev),\"/Päev \",,Kalendripäev-DATE(YEAR(Kalendripäev),1,0)),CONCATENATE(\"Päev \",Kalendripäev-DATE(YEAR(Kalendripäev),1,0)))","v":"Päev 317"},{"$f":"IF(WEEKDAY(Kalendripäev)=NädalaAlguseVäärtus,CONCATENATE(\"Nädal \",WEEKNUM(Kalendripäev),\"/Päev \",,Kalendripäev-DATE(YEAR(Kalendripäev),1,0)),CONCATENATE(\"Päev \",Kalendripäev-DATE(YEAR(Kalendripäev),1,0)))","v":"Päev 318"},{"$f":"IF(WEEKDAY(Kalendripäev)=NädalaAlguseVäärtus,CONCATENATE(\"Nädal \",WEEKNUM(Kalendripäev),\"/Päev \",,Kalendripäev-DATE(YEAR(Kalendripäev),1,0)),CONCATENATE(\"Päev \",Kalendripäev-DATE(YEAR(Kalendripäev),1,0)))","v":"Päev 319"},{"$f":"IF(WEEKDAY(Kalendripäev)=NädalaAlguseVäärtus,CONCATENATE(\"Nädal \",WEEKNUM(Kalendripäev),\"/Päev \",,Kalendripäev-DATE(YEAR(Kalendripäev),1,0)),CONCATENATE(\"Päev \",Kalendripäev-DATE(YEAR(Kalendripäev),1,0)))","v":"Päev 320"},{"$f":"IF(WEEKDAY(Kalendripäev)=NädalaAlguseVäärtus,CONCATENATE(\"Nädal \",WEEKNUM(Kalendripäev),\"/Päev \",,Kalendripäev-DATE(YEAR(Kalendripäev),1,0)),CONCATENATE(\"Päev \",Kalendripäev-DATE(YEAR(Kalendripäev),1,0)))","v":"Päev 321"}]
[]
[null,null,{"$f":"PäevadJaNädalad+DATE(Kalendriaasta,11,1)-WEEKDAY(DATE(Kalendriaasta,11,1),(NädalaAlgus=\"E\")+1)+22","v":"2018-11-18"},"2018-11-19","2018-11-20","2018-11-21","2018-11-22","2018-11-23","2018-11-24"]
[null,null,{"$f":"IF(WEEKDAY(Kalendripäev)=NädalaAlguseVäärtus,CONCATENATE(\"Nädal \",WEEKNUM(Kalendripäev),\"/Päev \",,Kalendripäev-DATE(YEAR(Kalendripäev),1,0)),CONCATENATE(\"Päev \",Kalendripäev-DATE(YEAR(Kalendripäev),1,0)))","v":"Nädal 47/Päev 322"},{"$f":"IF(WEEKDAY(Kalendripäev)=NädalaAlguseVäärtus,CONCATENATE(\"Nädal \",WEEKNUM(Kalendripäev),\"/Päev \",,Kalendripäev-DATE(YEAR(Kalendripäev),1,0)),CONCATENATE(\"Päev \",Kalendripäev-DATE(YEAR(Kalendripäev),1,0)))","v":"Päev 323"},{"$f":"IF(WEEKDAY(Kalendripäev)=NädalaAlguseVäärtus,CONCATENATE(\"Nädal \",WEEKNUM(Kalendripäev),\"/Päev \",,Kalendripäev-DATE(YEAR(Kalendripäev),1,0)),CONCATENATE(\"Päev \",Kalendripäev-DATE(YEAR(Kalendripäev),1,0)))","v":"Päev 324"},{"$f":"IF(WEEKDAY(Kalendripäev)=NädalaAlguseVäärtus,CONCATENATE(\"Nädal \",WEEKNUM(Kalendripäev),\"/Päev \",,Kalendripäev-DATE(YEAR(Kalendripäev),1,0)),CONCATENATE(\"Päev \",Kalendripäev-DATE(YEAR(Kalendripäev),1,0)))","v":"Päev 325"},{"$f":"IF(WEEKDAY(Kalendripäev)=NädalaAlguseVäärtus,CONCATENATE(\"Nädal \",WEEKNUM(Kalendripäev),\"/Päev \",,Kalendripäev-DATE(YEAR(Kalendripäev),1,0)),CONCATENATE(\"Päev \",Kalendripäev-DATE(YEAR(Kalendripäev),1,0)))","v":"Päev 326"},{"$f":"IF(WEEKDAY(Kalendripäev)=NädalaAlguseVäärtus,CONCATENATE(\"Nädal \",WEEKNUM(Kalendripäev),\"/Päev \",,Kalendripäev-DATE(YEAR(Kalendripäev),1,0)),CONCATENATE(\"Päev \",Kalendripäev-DATE(YEAR(Kalendripäev),1,0)))","v":"Päev 327"},{"$f":"IF(WEEKDAY(Kalendripäev)=NädalaAlguseVäärtus,CONCATENATE(\"Nädal \",WEEKNUM(Kalendripäev),\"/Päev \",,Kalendripäev-DATE(YEAR(Kalendripäev),1,0)),CONCATENATE(\"Päev \",Kalendripäev-DATE(YEAR(Kalendripäev),1,0)))","v":"Päev 328"}]
[]
[null,null,{"$f":"PäevadJaNädalad+DATE(Kalendriaasta,11,1)-WEEKDAY(DATE(Kalendriaasta,11,1),(NädalaAlgus=\"E\")+1)+29","v":"2018-11-25"},"2018-11-26","2018-11-27","2018-11-28","2018-11-29","2018-11-30","2018-12-01"]
[null,null,{"$f":"IF(WEEKDAY(Kalendripäev)=NädalaAlguseVäärtus,CONCATENATE(\"Nädal \",WEEKNUM(Kalendripäev),\"/Päev \",,Kalendripäev-DATE(YEAR(Kalendripäev),1,0)),CONCATENATE(\"Päev \",Kalendripäev-DATE(YEAR(Kalendripäev),1,0)))","v":"Nädal 48/Päev 329"},{"$f":"IF(WEEKDAY(Kalendripäev)=NädalaAlguseVäärtus,CONCATENATE(\"Nädal \",WEEKNUM(Kalendripäev),\"/Päev \",,Kalendripäev-DATE(YEAR(Kalendripäev),1,0)),CONCATENATE(\"Päev \",Kalendripäev-DATE(YEAR(Kalendripäev),1,0)))","v":"Päev 330"},{"$f":"IF(WEEKDAY(Kalendripäev)=NädalaAlguseVäärtus,CONCATENATE(\"Nädal \",WEEKNUM(Kalendripäev),\"/Päev \",,Kalendripäev-DATE(YEAR(Kalendripäev),1,0)),CONCATENATE(\"Päev \",Kalendripäev-DATE(YEAR(Kalendripäev),1,0)))","v":"Päev 331"},{"$f":"IF(WEEKDAY(Kalendripäev)=NädalaAlguseVäärtus,CONCATENATE(\"Nädal \",WEEKNUM(Kalendripäev),\"/Päev \",,Kalendripäev-DATE(YEAR(Kalendripäev),1,0)),CONCATENATE(\"Päev \",Kalendripäev-DATE(YEAR(Kalendripäev),1,0)))","v":"Päev 332"},{"$f":"IF(WEEKDAY(Kalendripäev)=NädalaAlguseVäärtus,CONCATENATE(\"Nädal \",WEEKNUM(Kalendripäev),\"/Päev \",,Kalendripäev-DATE(YEAR(Kalendripäev),1,0)),CONCATENATE(\"Päev \",Kalendripäev-DATE(YEAR(Kalendripäev),1,0)))","v":"Päev 333"},{"$f":"IF(WEEKDAY(Kalendripäev)=NädalaAlguseVäärtus,CONCATENATE(\"Nädal \",WEEKNUM(Kalendripäev),\"/Päev \",,Kalendripäev-DATE(YEAR(Kalendripäev),1,0)),CONCATENATE(\"Päev \",Kalendripäev-DATE(YEAR(Kalendripäev),1,0)))","v":"Päev 334"},{"$f":"IF(WEEKDAY(Kalendripäev)=NädalaAlguseVäärtus,CONCATENATE(\"Nädal \",WEEKNUM(Kalendripäev),\"/Päev \",,Kalendripäev-DATE(YEAR(Kalendripäev),1,0)),CONCATENATE(\"Päev \",Kalendripäev-DATE(YEAR(Kalendripäev),1,0)))","v":"Päev 335"}]
[{"$nulls":4},"MÄRKMED"]
[]
[null,null,{"$f":"PäevadJaNädalad+DATE(Kalendriaasta,11,1)-WEEKDAY(DATE(Kalendriaasta,11,1),(NädalaAlgus=\"E\")+1)+36","v":"2018-12-02"},"2018-12-03"]
[null,null,{"$f":"IF(WEEKDAY(Kalendripäev)=NädalaAlguseVäärtus,CONCATENATE(\"Nädal \",WEEKNUM(Kalendripäev),\"/Päev \",,Kalendripäev-DATE(YEAR(Kalendripäev),1,0)),CONCATENATE(\"Päev \",Kalendripäev-DATE(YEAR(Kalendripäev),1,0)))","v":"Nädal 49/Päev 336"},{"$f":"IF(WEEKDAY(Kalendripäev)=NädalaAlguseVäärtus,CONCATENATE(\"Nädal \",WEEKNUM(Kalendripäev),\"/Päev \",,Kalendripäev-DATE(YEAR(Kalendripäev),1,0)),CONCATENATE(\"Päev \",Kalendripäev-DATE(YEAR(Kalendripäev),1,0)))","v":"Päev 337"}]

{"sheet":"DETS","index":11,"n_rows":20,"n_cols":9,"rows_kept":20,"merged":[[16,2,17,2],[17,4,19,8]]}
[null,"DETS",{"$f":"UPPER(TEXT(NädalaAlgus,\"ddd\"))","v":"P"},{"$f":"UPPER(TEXT(D3,\"ddd\"))","v":"E"},"T","K","N","R","L"]
[null,{"$f":"Kalendriaasta","v":2018}]
[null,null,{"$f":"PäevadJaNädalad+DATE(Kalendriaasta,12,1)-WEEKDAY(DATE(Kalendriaasta,12,1),(NädalaAlgus=\"E\")+1)+1","v":"2018-11-25"},"2018-11-26","2018-11-27","2018-11-28","2018-11-29","2018-11-30","2018-12-01"]
[null,null,{"$f":"IF(DAY(Kalendripäev)=1,CONCATENATE(\"Nädal \",WEEKNUM(Kalendripäev),\"/Päev \",,Kalendripäev-DATE(YEAR(Kalendripäev),1,0)),CONCATENATE(\"Päev \",Kalendripäev-DATE(YEAR(Kalendripäev),1,0)))","v":"Päev 329"},{"$f":"IF(DAY(Kalendripäev)=1,CONCATENATE(\"Nädal \",WEEKNUM(Kalendripäev),\"/Päev \",,Kalendripäev-DATE(YEAR(Kalendripäev),1,0)),CONCATENATE(\"Päev \",Kalendripäev-DATE(YEAR(Kalendripäev),1,0)))","v":"Päev 330"},{"$f":"IF(DAY(Kalendripäev)=1,CONCATENATE(\"Nädal \",WEEKNUM(Kalendripäev),\"/Päev \",,Kalendripäev-DATE(YEAR(Kalendripäev),1,0)),CONCATENATE(\"Päev \",Kalendripäev-DATE(YEAR(Kalendripäev),1,0)))","v":"Päev 331"},{"$f":"IF(DAY(Kalendripäev)=1,CONCATENATE(\"Nädal \",WEEKNUM(Kalendripäev),\"/Päev \",,Kalendripäev-DATE(YEAR(Kalendripäev),1,0)),CONCATENATE(\"Päev \",Kalendripäev-DATE(YEAR(Kalendripäev),1,0)))","v":"Päev 332"},{"$f":"IF(DAY(Kalendripäev)=1,CONCATENATE(\"Nädal \",WEEKNUM(Kalendripäev),\"/Päev \",,Kalendripäev-DATE(YEAR(Kalendripäev),1,0)),CONCATENATE(\"Päev \",Kalendripäev-DATE(YEAR(Kalendripäev),1,0)))","v":"Päev 333"},{"$f":"IF(DAY(Kalendripäev)=1,CONCATENATE(\"Nädal \",WEEKNUM(Kalendripäev),\"/Päev \",,Kalendripäev-DATE(YEAR(Kalendripäev),1,0)),CONCATENATE(\"Päev \",Kalendripäev-DATE(YEAR(Kalendripäev),1,0)))","v":"Päev 334"},{"$f":"IF(DAY(Kalendripäev)=1,CONCATENATE(\"Nädal \",WEEKNUM(Kalendripäev),\"/Päev \",,Kalendripäev-DATE(YEAR(Kalendripäev),1,0)),CONCATENATE(\"Päev \",Kalendripäev-DATE(YEAR(Kalendripäev),1,0)))","v":"Nädal 48/Päev 335"}]
[]
[null,null,{"$f":"PäevadJaNädalad+DATE(Kalendriaasta,12,1)-WEEKDAY(DATE(Kalendriaasta,12,1),(NädalaAlgus=\"E\")+1)+8","v":"2018-12-02"},"2018-12-03","2018-12-04","2018-12-05","2018-12-06","2018-12-07","2018-12-08"]
[null,null,{"$f":"IF(WEEKDAY(Kalendripäev)=NädalaAlguseVäärtus,CONCATENATE(\"Nädal \",WEEKNUM(Kalendripäev),\"/Päev \",,Kalendripäev-DATE(YEAR(Kalendripäev),1,0)),CONCATENATE(\"Päev \",Kalendripäev-DATE(YEAR(Kalendripäev),1,0)))","v":"Nädal 49/Päev 336"},{"$f":"IF(WEEKDAY(Kalendripäev)=NädalaAlguseVäärtus,CONCATENATE(\"Nädal \",WEEKNUM(Kalendripäev),\"/Päev \",,Kalendripäev-DATE(YEAR(Kalendripäev),1,0)),CONCATENATE(\"Päev \",Kalendripäev-DATE(YEAR(Kalendripäev),1,0)))","v":"Päev 337"},{"$f":"IF(WEEKDAY(Kalendripäev)=NädalaAlguseVäärtus,CONCATENATE(\"Nädal \",WEEKNUM(Kalendripäev),\"/Päev \",,Kalendripäev-DATE(YEAR(Kalendripäev),1,0)),CONCATENATE(\"Päev \",Kalendripäev-DATE(YEAR(Kalendripäev),1,0)))","v":"Päev 338"},{"$f":"IF(WEEKDAY(Kalendripäev)=NädalaAlguseVäärtus,CONCATENATE(\"Nädal \",WEEKNUM(Kalendripäev),\"/Päev \",,Kalendripäev-DATE(YEAR(Kalendripäev),1,0)),CONCATENATE(\"Päev \",Kalendripäev-DATE(YEAR(Kalendripäev),1,0)))","v":"Päev 339"},{"$f":"IF(WEEKDAY(Kalendripäev)=NädalaAlguseVäärtus,CONCATENATE(\"Nädal \",WEEKNUM(Kalendripäev),\"/Päev \",,Kalendripäev-DATE(YEAR(Kalendripäev),1,0)),CONCATENATE(\"Päev \",Kalendripäev-DATE(YEAR(Kalendripäev),1,0)))","v":"Päev 340"},{"$f":"IF(WEEKDAY(Kalendripäev)=NädalaAlguseVäärtus,CONCATENATE(\"Nädal \",WEEKNUM(Kalendripäev),\"/Päev \",,Kalendripäev-DATE(YEAR(Kalendripäev),1,0)),CONCATENATE(\"Päev \",Kalendripäev-DATE(YEAR(Kalendripäev),1,0)))","v":"Päev 341"},{"$f":"IF(WEEKDAY(Kalendripäev)=NädalaAlguseVäärtus,CONCATENATE(\"Nädal \",WEEKNUM(Kalendripäev),\"/Päev \",,Kalendripäev-DATE(YEAR(Kalendripäev),1,0)),CONCATENATE(\"Päev \",Kalendripäev-DATE(YEAR(Kalendripäev),1,0)))","v":"Päev 342"}]
[]
[null,null,{"$f":"PäevadJaNädalad+DATE(Kalendriaasta,12,1)-WEEKDAY(DATE(Kalendriaasta,12,1),(NädalaAlgus=\"E\")+1)+15","v":"2018-12-09"},"2018-12-10","2018-12-11","2018-12-12","2018-12-13","2018-12-14","2018-12-15"]
[null,null,{"$f":"IF(WEEKDAY(Kalendripäev)=NädalaAlguseVäärtus,CONCATENATE(\"Nädal \",WEEKNUM(Kalendripäev),\"/Päev \",,Kalendripäev-DATE(YEAR(Kalendripäev),1,0)),CONCATENATE(\"Päev \",Kalendripäev-DATE(YEAR(Kalendripäev),1,0)))","v":"Nädal 50/Päev 343"},{"$f":"IF(WEEKDAY(Kalendripäev)=NädalaAlguseVäärtus,CONCATENATE(\"Nädal \",WEEKNUM(Kalendripäev),\"/Päev \",,Kalendripäev-DATE(YEAR(Kalendripäev),1,0)),CONCATENATE(\"Päev \",Kalendripäev-DATE(YEAR(Kalendripäev),1,0)))","v":"Päev 344"},{"$f":"IF(WEEKDAY(Kalendripäev)=NädalaAlguseVäärtus,CONCATENATE(\"Nädal \",WEEKNUM(Kalendripäev),\"/Päev \",,Kalendripäev-DATE(YEAR(Kalendripäev),1,0)),CONCATENATE(\"Päev \",Kalendripäev-DATE(YEAR(Kalendripäev),1,0)))","v":"Päev 345"},{"$f":"IF(WEEKDAY(Kalendripäev)=NädalaAlguseVäärtus,CONCATENATE(\"Nädal \",WEEKNUM(Kalendripäev),\"/Päev \",,Kalendripäev-DATE(YEAR(Kalendripäev),1,0)),CONCATENATE(\"Päev \",Kalendripäev-DATE(YEAR(Kalendripäev),1,0)))","v":"Päev 346"},{"$f":"IF(WEEKDAY(Kalendripäev)=NädalaAlguseVäärtus,CONCATENATE(\"Nädal \",WEEKNUM(Kalendripäev),\"/Päev \",,Kalendripäev-DATE(YEAR(Kalendripäev),1,0)),CONCATENATE(\"Päev \",Kalendripäev-DATE(YEAR(Kalendripäev),1,0)))","v":"Päev 347"},{"$f":"IF(WEEKDAY(Kalendripäev)=NädalaAlguseVäärtus,CONCATENATE(\"Nädal \",WEEKNUM(Kalendripäev),\"/Päev \",,Kalendripäev-DATE(YEAR(Kalendripäev),1,0)),CONCATENATE(\"Päev \",Kalendripäev-DATE(YEAR(Kalendripäev),1,0)))","v":"Päev 348"},{"$f":"IF(WEEKDAY(Kalendripäev)=NädalaAlguseVäärtus,CONCATENATE(\"Nädal \",WEEKNUM(Kalendripäev),\"/Päev \",,Kalendripäev-DATE(YEAR(Kalendripäev),1,0)),CONCATENATE(\"Päev \",Kalendripäev-DATE(YEAR(Kalendripäev),1,0)))","v":"Päev 349"}]
[]
[null,null,{"$f":"PäevadJaNädalad+DATE(Kalendriaasta,12,1)-WEEKDAY(DATE(Kalendriaasta,12,1),(NädalaAlgus=\"E\")+1)+22","v":"2018-12-16"},"2018-12-17","2018-12-18","2018-12-19","2018-12-20","2018-12-21","2018-12-22"]
[null,null,{"$f":"IF(WEEKDAY(Kalendripäev)=NädalaAlguseVäärtus,CONCATENATE(\"Nädal \",WEEKNUM(Kalendripäev),\"/Päev \",,Kalendripäev-DATE(YEAR(Kalendripäev),1,0)),CONCATENATE(\"Päev \",Kalendripäev-DATE(YEAR(Kalendripäev),1,0)))","v":"Nädal 51/Päev 350"},{"$f":"IF(WEEKDAY(Kalendripäev)=NädalaAlguseVäärtus,CONCATENATE(\"Nädal \",WEEKNUM(Kalendripäev),\"/Päev \",,Kalendripäev-DATE(YEAR(Kalendripäev),1,0)),CONCATENATE(\"Päev \",Kalendripäev-DATE(YEAR(Kalendripäev),1,0)))","v":"Päev 351"},{"$f":"IF(WEEKDAY(Kalendripäev)=NädalaAlguseVäärtus,CONCATENATE(\"Nädal \",WEEKNUM(Kalendripäev),\"/Päev \",,Kalendripäev-DATE(YEAR(Kalendripäev),1,0)),CONCATENATE(\"Päev \",Kalendripäev-DATE(YEAR(Kalendripäev),1,0)))","v":"Päev 352"},{"$f":"IF(WEEKDAY(Kalendripäev)=NädalaAlguseVäärtus,CONCATENATE(\"Nädal \",WEEKNUM(Kalendripäev),\"/Päev \",,Kalendripäev-DATE(YEAR(Kalendripäev),1,0)),CONCATENATE(\"Päev \",Kalendripäev-DATE(YEAR(Kalendripäev),1,0)))","v":"Päev 353"},{"$f":"IF(WEEKDAY(Kalendripäev)=NädalaAlguseVäärtus,CONCATENATE(\"Nädal \",WEEKNUM(Kalendripäev),\"/Päev \",,Kalendripäev-DATE(YEAR(Kalendripäev),1,0)),CONCATENATE(\"Päev \",Kalendripäev-DATE(YEAR(Kalendripäev),1,0)))","v":"Päev 354"},{"$f":"IF(WEEKDAY(Kalendripäev)=NädalaAlguseVäärtus,CONCATENATE(\"Nädal \",WEEKNUM(Kalendripäev),\"/Päev \",,Kalendripäev-DATE(YEAR(Kalendripäev),1,0)),CONCATENATE(\"Päev \",Kalendripäev-DATE(YEAR(Kalendripäev),1,0)))","v":"Päev 355"},{"$f":"IF(WEEKDAY(Kalendripäev)=NädalaAlguseVäärtus,CONCATENATE(\"Nädal \",WEEKNUM(Kalendripäev),\"/Päev \",,Kalendripäev-DATE(YEAR(Kalendripäev),1,0)),CONCATENATE(\"Päev \",Kalendripäev-DATE(YEAR(Kalendripäev),1,0)))","v":"Päev 356"}]
[]
[null,null,{"$f":"PäevadJaNädalad+DATE(Kalendriaasta,12,1)-WEEKDAY(DATE(Kalendriaasta,12,1),(NädalaAlgus=\"E\")+1)+29","v":"2018-12-23"},"2018-12-24","2018-12-25","2018-12-26","2018-12-27","2018-12-28","2018-12-29"]
[null,null,{"$f":"IF(WEEKDAY(Kalendripäev)=NädalaAlguseVäärtus,CONCATENATE(\"Nädal \",WEEKNUM(Kalendripäev),\"/Päev \",,Kalendripäev-DATE(YEAR(Kalendripäev),1,0)),CONCATENATE(\"Päev \",Kalendripäev-DATE(YEAR(Kalendripäev),1,0)))","v":"Nädal 52/Päev 357"},{"$f":"IF(WEEKDAY(Kalendripäev)=NädalaAlguseVäärtus,CONCATENATE(\"Nädal \",WEEKNUM(Kalendripäev),\"/Päev \",,Kalendripäev-DATE(YEAR(Kalendripäev),1,0)),CONCATENATE(\"Päev \",Kalendripäev-DATE(YEAR(Kalendripäev),1,0)))","v":"Päev 358"},{"$f":"IF(WEEKDAY(Kalendripäev)=NädalaAlguseVäärtus,CONCATENATE(\"Nädal \",WEEKNUM(Kalendripäev),\"/Päev \",,Kalendripäev-DATE(YEAR(Kalendripäev),1,0)),CONCATENATE(\"Päev \",Kalendripäev-DATE(YEAR(Kalendripäev),1,0)))","v":"Päev 359"},{"$f":"IF(WEEKDAY(Kalendripäev)=NädalaAlguseVäärtus,CONCATENATE(\"Nädal \",WEEKNUM(Kalendripäev),\"/Päev \",,Kalendripäev-DATE(YEAR(Kalendripäev),1,0)),CONCATENATE(\"Päev \",Kalendripäev-DATE(YEAR(Kalendripäev),1,0)))","v":"Päev 360"},{"$f":"IF(WEEKDAY(Kalendripäev)=NädalaAlguseVäärtus,CONCATENATE(\"Nädal \",WEEKNUM(Kalendripäev),\"/Päev \",,Kalendripäev-DATE(YEAR(Kalendripäev),1,0)),CONCATENATE(\"Päev \",Kalendripäev-DATE(YEAR(Kalendripäev),1,0)))","v":"Päev 361"},{"$f":"IF(WEEKDAY(Kalendripäev)=NädalaAlguseVäärtus,CONCATENATE(\"Nädal \",WEEKNUM(Kalendripäev),\"/Päev \",,Kalendripäev-DATE(YEAR(Kalendripäev),1,0)),CONCATENATE(\"Päev \",Kalendripäev-DATE(YEAR(Kalendripäev),1,0)))","v":"Päev 362"},{"$f":"IF(WEEKDAY(Kalendripäev)=NädalaAlguseVäärtus,CONCATENATE(\"Nädal \",WEEKNUM(Kalendripäev),\"/Päev \",,Kalendripäev-DATE(YEAR(Kalendripäev),1,0)),CONCATENATE(\"Päev \",Kalendripäev-DATE(YEAR(Kalendripäev),1,0)))","v":"Päev 363"}]
[{"$nulls":4},"MÄRKMED"]
[]
[null,null,{"$f":"PäevadJaNädalad+DATE(Kalendriaasta,12,1)-WEEKDAY(DATE(Kalendriaasta,12,1),(NädalaAlgus=\"E\")+1)+36","v":"2018-12-30"},"2018-12-31"]
[null,null,{"$f":"IF(WEEKDAY(Kalendripäev)=NädalaAlguseVäärtus,CONCATENATE(\"Nädal \",WEEKNUM(Kalendripäev),\"/Päev \",,Kalendripäev-DATE(YEAR(Kalendripäev),1,0)),CONCATENATE(\"Päev \",Kalendripäev-DATE(YEAR(Kalendripäev),1,0)))","v":"Nädal 53/Päev 364"},{"$f":"IF(WEEKDAY(Kalendripäev)=NädalaAlguseVäärtus,CONCATENATE(\"Nädal \",WEEKNUM(Kalendripäev),\"/Päev \",,Kalendripäev-DATE(YEAR(Kalendripäev),1,0)),CONCATENATE(\"Päev \",Kalendripäev-DATE(YEAR(Kalendripäev),1,0)))","v":"Päev 365"}]